Workbook

Sheet OVS Proposal Form - ROMANIAN
C3: Open Value Subscription - Reseller Proposal Form | IP3: 0
F4: Ultima actualizare: | G4: 01-Septembrie-2010 | IP4: RAB
IP5: All Languages
B7: Atentie: Pentru o functionare corecta, alegeti la deschiderea fisierului optiunea <<Enable Macros>>/ <<Enable Content>>.
B8: Daca aceasta optiune nu apare la deshiderea fisierului, alegeti nivelul Medium la Macro Security din meniul Tools/Options/Security
B9: Se completeaza celulele verzi
B10: Detaliile Beneficiarului | D10: Detaliile Resellerului
B11: Nume Beneficiar: | D11: Nume Reseller:
B12: Nume Contact Beneficiar: | D12: Nume Contact Reseller:
B13: Adresa de email Beneficiar: | D13: Adresa de email Reseller:
D14: Adresa postala Reseller:
D15: Tel/Fax Reseller:
B17: Nr. Total de PC-uri eligibile: | C17: 40 | D17: (Minim 5 PC-uri: Titular contract + eventuali afiliati)
B19: Achizitie de platforma sau de componente - alegeti una dintre cele 2 variante
B21: Platforma | C21: include discount de platforma 5% | G21: Distribuirea platilor (EURO)
G22: Plata anul 1 | H22: =H65+lblAdditionalProductsTotalValue -> 11364
B23: Componente | G23: Plata anul 2 | H23: =H75+lblAdditionalProductsTotalValue -> 11364
G24: Plata anul 3 | H24: =H85+lblAdditionalProductsTotalValue -> 11364
B25: Varianta limba pentru platforma sau componente - ROMANIAN
B26: Include dreptul de folosire a produselor componente sau platforma doar in ROMANA si Bulgara; daca doriti orice alta varianta de limba suplimentara,
B27: inclusiv Engleza, va rugam folositi foaia urmatoare "OVS Proposal Form ALL Languages"
B30: Discountul UTD (Up To Date) 50% - se acorda in primul an pentru produsele detinute in versiuni curente (N si N-1)
B31: Suma produselor Current + NonCurrent trebuie sa fie egala cu nr total de PC-uri eligibile
B32: SKU | C32: Descriere | D32: Current/Non-Current | E32: Nivel | F32: Cantitate | G32: Pret | H32: Total
B33: =VLOOKUP(O33,'OVS Price List'!A:C,2,0) -> W06-01598 | C33: =IF($IP$3=0,IF(D33="Current (UTD)","Core CAL (Client Access License) Platform UTD","Core CAL (Client Access License) Platform"),IF(D33="Current (UTD)","Core CAL (Client Access License) Component UTD","Core CAL (Client Access License) Component")) -> Core CAL (Client Access License) Platform UTD | D33: Current (UTD) | E33: =IF(sysEligiblePCs<=249,"Non-Specific","C") -> Non-Specific | F33: 0 | G33: =IF(ISERROR(B33),0,VLOOKUP(O33,'OVS Price List'!A:Q,16,0)) -> 31.05 | H33: =F33*G33 -> 0 | O33: =CONCATENATE(C33," ",D33," ",E33," ",$IP$4) -> Core CAL (Client Access License) Platform UTD Current (UTD) Non-Specific RAB
B34: =VLOOKUP(O34,'OVS Price List'!A:C,2,0) -> W06-01508 | C34: =IF($IP$3=0,IF(D34="Current (UTD)","Core CAL (Client Access License) Platform UTD","Core CAL (Client Access License) Platform"),IF(D34="Current (UTD)","Core CAL (Client Access License) Component UTD","Core CAL (Client Access License) Component")) -> Core CAL (Client Access License) Platform | D34: Non-Current | E34: Non-Specific | F34: 40 | G34: =IF(ISERROR(B34),0,VLOOKUP(O34,'OVS Price List'!A:Q,16,0)) -> 62.1 | H34: =F34*G34 -> 2484 | O34: =CONCATENATE(C34," ",D34," ",E34," ",$IP$4) -> Core CAL (Client Access License) Platform Non-Current Non-Specific RAB
B35: =VLOOKUP(O35,'OVS Price List'!A:C,2,0) -> 76A-00825 | C35: =IF($IP$3=0,IF(D35="Current (UTD)","Enterprise CAL Platform UTD","Enterprise CAL Platform"),IF(D35="Current (UTD)","Enterprise CAL Component UTD","Enterprise CAL Component")) -> Enterprise CAL Platform UTD | D35: Current (UTD) | E35: Non-Specific | F35: 0 | G35: =IF(ISERROR(B35),0,VLOOKUP(O35,'OVS Price List'!A:Q,16,0)) -> 82.8 | H35: 0 | O35: Enterprise CAL Platform UTD Current (UTD) Non-Specific RAB
B36: =VLOOKUP(O36,'OVS Price List'!A:C,2,0) -> 76A-00499 | C36: =IF($IP$3=0,IF(D36="Current (UTD)","Enterprise CAL Platform UTD","Enterprise CAL Platform"),IF(D36="Current (UTD)","Enterprise CAL Component UTD","Enterprise CAL Component")) -> Enterprise CAL Platform | D36: Non-Current | E36: Non-Specific | F36: 0 | G36: =IF(ISERROR(B36),0,VLOOKUP(O36,'OVS Price List'!A:Q,16,0)) -> 165.6 | H36: 0 | O36: Enterprise CAL Platform Non-Current Non-Specific RAB
B37: =VLOOKUP(O37,'OVS Price List'!A:C,2,0) -> 6UA-02461 | C37: =IF($IP$3=0,IF(D37="Current (UTD)","Windows Small Bus CAL Ste Platform UTD","Windows Small Bus CAL Ste Platform"),IF(D37="Current (UTD)","Windows Small Bus CAL Ste Component UTD","Windows Small Bus CAL Ste Component")) -> Windows Small Bus CAL Ste Platform UTD | D37: Current (UTD) | E37: Non-Specific | F37: 0 | G37: =IF(ISERROR(B37),0,VLOOKUP(O37,'OVS Price List'!A:Q,16,0)) -> 10.5 | H37: 0 | O37: Windows Small Bus CAL Ste Platform UTD Current (UTD) Non-Specific RAB
B38: =VLOOKUP(O38,'OVS Price List'!A:C,2,0) -> 6UA-02367 | C38: =IF($IP$3=0,IF(D38="Current (UTD)","Windows Small Bus CAL Ste Platform UTD","Windows Small Bus CAL Ste Platform"),IF(D38="Current (UTD)","Windows Small Bus CAL Ste Component UTD","Windows Small Bus CAL Ste Component")) -> Windows Small Bus CAL Ste Platform | D38: Non-Current | E38: Non-Specific | F38: 0 | G38: =IF(ISERROR(B38),0,VLOOKUP(O38,'OVS Price List'!A:Q,16,0)) -> 21 | H38: 0 | O38: Windows Small Bus CAL Ste Platform Non-Current Non-Specific RAB
B39: =VLOOKUP(O39,'OVS Price List'!A:C,2,0) -> 6VA-02639 | C39: =IF($IP$3=0,IF(D39="Current (UTD)","Windows Small Bus Svr Prem CAL Ste Platform UTD","Windows Small Bus Svr Prem CAL Ste Platform"),IF(D39="Current (UTD)","Windows Small Bus Svr Prem CAL Ste Component UTD","Windows Small Bus Svr Prem CAL Ste Component")) -> Windows Small Bus Svr Prem CAL Ste Platform UTD | D39: Current (UTD) | E39: Non-Specific | F39: 0 | G39: =IF(ISERROR(B39),0,VLOOKUP(O39,'OVS Price List'!A:Q,16,0)) -> 25.8 | H39: 0 | O39: Windows Small Bus Svr Prem CAL Ste Platform UTD Current (UTD) Non-Specific RAB
B40: =VLOOKUP(O40,'OVS Price List'!A:C,2,0) -> 6VA-02557 | C40: =IF($IP$3=0,IF(D40="Current (UTD)","Windows Small Bus Svr Prem CAL Ste Platform UTD","Windows Small Bus Svr Prem CAL Ste Platform"),IF(D40="Current (UTD)","Windows Small Bus Svr Prem CAL Ste Component UTD","Windows Small Bus Svr Prem CAL Ste Component")) -> Windows Small Bus Svr Prem CAL Ste Platform | D40: Non-Current | E40: Non-Specific | G40: =IF(ISERROR(B40),0,VLOOKUP(O40,'OVS Price List'!A:Q,16,0)) -> 51.6 | H40: 0 | O40: Windows Small Bus Svr Prem CAL Ste Platform Non-Current Non-Specific RAB
B41: =VLOOKUP(O41,'OVS Price List'!A:C,2,0) -> 79P-02406 | C41: =IF($IP$3=0,IF(D41="Current (UTD)","Office Professional Plus Platform UTD","Office Professional Plus Platform"),IF(D41="Current (UTD)","Office Professional Plus Component UTD","Office Professional Plus Component")) -> Office Professional Plus Platform UTD | D41: Current (UTD) | E41: Non-Specific | F41: 0 | G41: =IF(ISERROR(B41),0,VLOOKUP(O41,'OVS Price List'!A:Q,16,0)) -> 77.175 | H41: 0 | O41: Office Professional Plus Platform UTD Current (UTD) Non-Specific RAB
B42: =VLOOKUP(O42,'OVS Price List'!A:C,2,0) -> 79P-02340 | C42: =IF($IP$3=0,IF(D42="Current (UTD)","Office Professional Plus Platform UTD","Office Professional Plus Platform"),IF(D42="Current (UTD)","Office Professional Plus Component UTD","Office Professional Plus Component")) -> Office Professional Plus Platform | D42: Non-Current | E42: Non-Specific | F42: 40 | G42: =IF(ISERROR(B42),0,VLOOKUP(O42,'OVS Price List'!A:Q,16,0)) -> 154.35 | H42: 6174 | O42: Office Professional Plus Platform Non-Current Non-Specific RAB
B43: =VLOOKUP(O43,'OVS Price List'!A:C,2,0) -> FQC-02747 | C43: =IF($IP$3=0,IF(D43="Current (UTD)","Win Pro Upgr Platform UTD","Win Pro Upgr Platform"),IF(D43="Current (UTD)","Win Pro Upgr Component UTD","Win Pro Upgr Component")) -> Win Pro Upgr Platform UTD | D43: Current (UTD) | E43: Non-Specific | F43: 0 | G43: =IF(ISERROR(B43),0,VLOOKUP(O43,'OVS Price List'!A:Q,16,0)) -> 33.825 | H43: 0 | O43: Win Pro Upgr Platform UTD Current (UTD) Non-Specific RAB
B44: =VLOOKUP(O44,'OVS Price List'!A:C,2,0) -> FQC-02745 | C44: =IF($IP$3=0,IF(D44="Current (UTD)","Win Pro Upgr Platform UTD","Win Pro Upgr Platform"),IF(D44="Current (UTD)","Win Pro 7 Component UTD","Win Pro Upgr Component")) -> Win Pro Upgr Platform | D44: Non-Current | E44: Non-Specific | F44: 40 | G44: =IF(ISERROR(B44),0,VLOOKUP(O44,'OVS Price List'!A:Q,16,0)) -> 67.65 | H44: 2706 | O44: Win Pro Upgr Platform Non-Current Non-Specific RAB
B45: =VLOOKUP(O45,'OVS Price List'!A:C,2,0) -> FQC-02930 | C45: =IF($IP$3=0,IF(D45="Current (UTD)","Win Pro Upgr w/MDOP Platform UTD","Win Pro Upgr w/MDOP Platform"),IF(D45="Current (UTD)","Win Pro Upgr w/MDOP Component UTD","Win Pro Upgr w/MDOP Component")) -> Win Pro Upgr w/MDOP Platform UTD | D45: Current (UTD) | E45: Non-Specific | F45: 0 | G45: =IF(ISERROR(B45),0,VLOOKUP(O45,'OVS Price List'!A:Q,16,0)) -> 39.15 | H45: 0 | O45: Win Pro Upgr w/MDOP Platform UTD Current (UTD) Non-Specific RAB
B46: =VLOOKUP(O46,'OVS Price List'!A:C,2,0) -> FQC-02926 | C46: =IF($IP$3=0,IF(D46="Current (UTD)","Win Pro Upgr w/MDOP Platform UTD","Win Pro Upgr w/MDOP Platform"),IF(D46="Current (UTD)","Win Pro Upgr w/MDOP Component UTD","Win Pro Upgr w/MDOP Component")) -> Win Pro Upgr w/MDOP Platform | D46: Non-Current | E46: Non-Specific | F46: 0 | G46: =IF(ISERROR(B46),0,VLOOKUP(O46,'OVS Price List'!A:Q,16,0)) -> 78.3 | H46: 0 | O46: Win Pro Upgr w/MDOP Platform Non-Current Non-Specific RAB
G47: Total : | H47: =SUM(H33:H46) -> 11364
B48: Detaliile achizitiei
B49: Produse platforma
A50: Anul 1 | B50: SKU | C50: Descriere | D50: Current/Non-Current | E50: Nivel | F50: Cantitate | G50: Pret | H50: Total
B51: =B33 -> W06-01598 | C51: Core CAL (Client Access License) Platform UTD | D51: Current (UTD) | E51: Non-Specific | F51: 0 | G51: 31.05 | H51: =F51*G51 -> 0
B52: W06-01508 | C52: Core CAL (Client Access License) Platform | D52: Non-Current | E52: Non-Specific | F52: 40 | G52: 62.1 | H52: =F52*G52 -> 2484
B53: 76A-00825 | C53: Enterprise CAL Platform UTD | D53: Current (UTD) | E53: Non-Specific | F53: 0 | G53: 82.8 | H53: 0
B54: 76A-00499 | C54: Enterprise CAL Platform | D54: Non-Current | E54: Non-Specific | F54: 0 | G54: 165.6 | H54: 0
B55: 6UA-02461 | C55: Windows Small Bus CAL Ste Platform UTD | D55: Current (UTD) | E55: Non-Specific | F55: 0 | G55: 10.5 | H55: 0
B56: 6UA-02367 | C56: Windows Small Bus CAL Ste Platform | D56: Non-Current | E56: Non-Specific | F56: 0 | G56: 21 | H56: 0
B57: 6VA-02639 | C57: Windows Small Bus Svr Prem CAL Ste Platform UTD | D57: Current (UTD) | E57: Non-Specific | F57: 0 | G57: 25.8 | H57: 0
B58: 6VA-02557 | C58: Windows Small Bus Svr Prem CAL Ste Platform | D58: Non-Current | E58: Non-Specific | F58: 0 | G58: 51.6 | H58: 0
B59: 79P-02406 | C59: Office Professional Plus Platform UTD | D59: Current (UTD) | E59: Non-Specific | F59: 0 | G59: 77.175 | H59: 0
B60: 79P-02340 | C60: Office Professional Plus Platform | D60: Non-Current | E60: Non-Specific | F60: 40 | G60: 154.35 | H60: 6174
B61: FQC-02747 | C61: Win Pro Upgr Platform UTD | D61: Current (UTD) | E61: Non-Specific | F61: 0 | G61: 33.825 | H61: 0
B62: FQC-02745 | C62: Win Pro Upgr Platform | D62: Non-Current | E62: Non-Specific | F62: 40 | G62: 67.65 | H62: 2706
B63: FQC-02930 | C63: Win Pro Upgr w/MDOP Platform UTD | D63: Current (UTD) | E63: Non-Specific | F63: 0 | G63: 39.15 | H63: 0
B64: FQC-02926 | C64: Win Pro Upgr w/MDOP Platform | D64: Non-Current | E64: Non-Specific | F64: 0 | G64: 78.3 | H64: 0
G65: Anul 1 Total | H65: =SUM(H51:H64) -> 11364
A67: Anul 2 | B67: SKU | C67: Descriere | D67: Current/Non-Current | E67: Nivel | F67: Cantitate | G67: Pret | H67: Total
B68: =B52 -> W06-01508 | C68: =C52 -> Core CAL (Client Access License) Platform | D68: N/A | E68: =E52 -> Non-Specific | F68: =F51+F52 -> 40 | G68: =G52 -> 62.1 | H68: =F68*G68 -> 2484
B69: =B54 -> 76A-00499 | C69: =C54 -> Enterprise CAL Platform | D69: N/A | E69: =E54 -> Non-Specific | F69: =F53+F54 -> 0 | G69: =G54 -> 165.6 | H69: =F69*G69 -> 0
B70: =B56 -> 6UA-02367 | C70: =C56 -> Windows Small Bus CAL Ste Platform | D70: N/A | E70: =E56 -> Non-Specific | F70: =F55+F56 -> 0 | G70: =G56 -> 21 | H70: 0
B71: =B58 -> 6VA-02557 | C71: =C58 -> Windows Small Bus Svr Prem CAL Ste Platform | D71: N/A | E71: =E58 -> Non-Specific | F71: =F57+F58 -> 0 | G71: =G58 -> 51.6 | H71: 0
B72: =B60 -> 79P-02340 | C72: =C60 -> Office Professional Plus Platform | D72: N/A | E72: =E60 -> Non-Specific | F72: =F59+F60 -> 40 | G72: =G60 -> 154.35 | H72: =F72*G72 -> 6174
B73: =B62 -> FQC-02745 | C73: =C62 -> Win Pro Upgr Platform | D73: N/A | E73: =E62 -> Non-Specific | F73: =F61+F62 -> 40 | G73: =G62 -> 67.65 | H73: 2706
B74: =B64 -> FQC-02926 | C74: =C64 -> Win Pro Upgr w/MDOP Platform | D74: N/A | E74: =E64 -> Non-Specific | F74: =F63+F64 -> 0 | G74: =G64 -> 78.3 | H74: 0
G75: Anul 2 Total | H75: =SUM(H68:H74) -> 11364
A77: Anul 3 | B77: SKU | C77: Descriere | D77: Current/Non-Current | E77: Nivel | F77: Cantitate | G77: Pret | H77: Total
B78: =B68 -> W06-01508 | C78: Core CAL (Client Access License) Platform | D78: N/A | E78: Non-Specific | F78: 40 | G78: 62.1 | H78: 2484
B79: 76A-00499 | C79: Enterprise CAL Platform | D79: N/A | E79: Non-Specific | F79: 0 | G79: 165.6 | H79: 0
B80: 6UA-02367 | C80: Windows Small Bus CAL Ste Platform | D80: N/A | E80: Non-Specific | F80: 0 | G80: 21 | H80: 0
B81: 6VA-02557 | C81: Windows Small Bus Svr Prem CAL Ste Platform | D81: N/A | E81: Non-Specific | F81: 0 | G81: 51.6 | H81: 0
B82: 79P-02340 | C82: Office Professional Plus Platform | D82: N/A | E82: Non-Specific | F82: 40 | G82: 154.35 | H82: 6174
B83: FQC-02745 | C83: Win Pro Upgr Platform | D83: N/A | E83: Non-Specific | F83: 40 | G83: 67.65 | H83: 2706
B84: FQC-02926 | C84: Win Pro Upgr w/MDOP Platform | D84: N/A | E84: Non-Specific | F84: 0 | G84: 78.3 | H84: 0
G85: Anul 3 Total | H85: =SUM(H78:H84) -> 11364
B88: Produse aditionale - Toate produsele aditionale au varianta de licenta si limba: ALL Languages
B89: Produse aditionale neincluse in comanda initiala a contractului se pot comanda ulterior la preturile in vigoare in luna de comanda, preturi ce pot fi diferite fata de cele de mai jos
A90: Aplicatii | B90: SKU | C90: Descriere | D90: Nivel | E90: Pret | F90: Cantitate | G90: Total | H90: Nr useri/ nr srvs | I90: Obs
B91: =VLOOKUP(O91,'OVS Price List'!A:C,2,0) -> 077-03627 | C91: Access | D91: =IF(sysEligiblePCs<=249,"Non-Specific","C") -> Non-Specific | E91: =IF(ISERROR(B91),0,VLOOKUP(O91,'OVS Price List'!A:Q,16,0)) -> 97.5 | G91: =IF(F91<>0,E91*F91,0) -> 0 | O91: =CONCATENATE(C91,D91," ",$IP$5) -> Access Non-Specific All Languages
B92: =VLOOKUP(O92,'OVS Price List'!A:C,2,0) -> 689-00741 | C92: AutoRoute Euro | D92: Non-Specific | E92: =IF(ISERROR(B92),0,VLOOKUP(O92,'OVS Price List'!A:Q,16,0)) -> 16.05 | G92: =IF(F92<>0,E92*F92,0) -> 0 | O92: =CONCATENATE(C92,D92," ",$IP$5) -> AutoRoute Euro Non-Specific All Languages
B93: =VLOOKUP(O93,'OVS Price List'!A:C,2,0) -> Q56-00264 | C93: Entourage | D93: Non-Specific | E93: =IF(ISERROR(B93),0,VLOOKUP(O93,'OVS Price List'!A:Q,16,0)) -> 35.4 | G93: =IF(F93<>0,E93*F93,0) -> 0 | O93: Entourage Non-Specific All Languages
B94: =VLOOKUP(O94,'OVS Price List'!A:C,2,0) -> 065-04766 | C94: Excel | D94: Non-Specific | E94: =IF(ISERROR(B94),0,VLOOKUP(O94,'OVS Price List'!A:Q,16,0)) -> 95.25 | G94: 0 | O94: Excel Non-Specific All Languages
B95: =VLOOKUP(O95,'OVS Price List'!A:C,2,0) -> D46-00525 | C95: Excel Mac | D95: Non-Specific | E95: =IF(ISERROR(B95),0,VLOOKUP(O95,'OVS Price List'!A:Q,16,0)) -> 109.95 | G95: 0 | O95: Excel Mac Non-Specific All Languages
B96: =VLOOKUP(O96,'OVS Price List'!A:C,2,0) -> NKF-00397 | C96: Expression Studio Ultimate | D96: Non-Specific | E96: =IF(ISERROR(B96),0,VLOOKUP(O96,'OVS Price List'!A:Q,16,0)) -> 246.15 | G96: 0 | O96: Expression Studio Ultimate Non-Specific All Languages
B97: =VLOOKUP(O97,'OVS Price List'!A:C,2,0) -> NHF-00171 | C97: Expression Studio Web Professional | D97: Non-Specific | E97: =IF(ISERROR(B97),0,VLOOKUP(O97,'OVS Price List'!A:Q,16,0)) -> 61.2 | G97: 0 | O97: Expression Studio Web Professional Non-Specific All Languages
B98: =VLOOKUP(O98,'OVS Price List'!A:C,2,0) -> 47F-00109 | C98: Expression Encoder Pro | D98: Non-Specific | E98: =IF(ISERROR(B98),0,VLOOKUP(O98,'OVS Price List'!A:Q,16,0)) -> 24.6 | G98: =IF(F98<>0,E98*F98,0) -> 0 | O98: Expression Encoder Pro Non-Specific All Languages
B99: =VLOOKUP(O99,'OVS Price List'!A:C,2,0) -> S27-01198 | C99: InfoPath | D99: Non-Specific | E99: =IF(ISERROR(B99),0,VLOOKUP(O99,'OVS Price List'!A:Q,16,0)) -> 91.5 | G99: 0 | O99: InfoPath Non-Specific All Languages
B100: =VLOOKUP(O100,'OVS Price List'!A:C,2,0) -> B21-00756 | C100: MapPoint | D100: Non-Specific | E100: =IF(ISERROR(B100),0,VLOOKUP(O100,'OVS Price List'!A:Q,16,0)) -> 122.7 | G100: 0 | O100: MapPoint Non-Specific All Languages
B101: =VLOOKUP(O101,'OVS Price List'!A:C,2,0) -> ZS3-00250 | C101: MapPoint Fleet | D101: Non-Specific | E101: =IF(ISERROR(B101),0,VLOOKUP(O101,'OVS Price List'!A:Q,16,0)) -> 603.15 | G101: 0 | O101: MapPoint Fleet Non-Specific All Languages
B102: =VLOOKUP(O102,'OVS Price List'!A:C,2,0) -> G71-03832 | C102: MSDN OS | D102: Non-Specific | E102: =IF(ISERROR(B102),0,VLOOKUP(O102,'OVS Price List'!A:Q,16,0)) -> 530.1 | G102: 0 | O102: MSDN OS Non-Specific All Languages
B103: =VLOOKUP(O103,'OVS Price List'!A:C,2,0) -> B6I-00342 | C103: Office Communicator | D103: Non-Specific | E103: =IF(ISERROR(B103),0,VLOOKUP(O103,'OVS Price List'!A:Q,16,0)) -> 16.05 | G103: 0 | O103: Office Communicator Non-Specific All Languages
B104: =VLOOKUP(O104,'OVS Price List'!A:C,2,0) -> ZUD-00348 | C104: SharePoint Workspace | D104: Non-Specific | E104: =IF(ISERROR(B104),0,VLOOKUP(O104,'OVS Price List'!A:Q,16,0)) -> 66.9 | G104: 0 | O104: SharePoint Workspace Non-Specific All Languages
B105: =VLOOKUP(O105,'OVS Price List'!A:C,2,0) -> 731-01323 | C105: Office Mac | D105: Non-Specific | E105: =IF(ISERROR(B105),0,VLOOKUP(O105,'OVS Price List'!A:Q,16,0)) -> 193.35 | G105: 0 | O105: Office Mac Non-Specific All Languages
B106: =VLOOKUP(O106,'OVS Price List'!A:C,2,0) -> 021-09106 | C106: Office Standard | D106: Non-Specific | E106: =IF(ISERROR(B106),0,VLOOKUP(O106,'OVS Price List'!A:Q,16,0)) -> 193.35 | G106: 0 | O106: Office Standard Non-Specific All Languages
B107: =VLOOKUP(O107,'OVS Price List'!A:C,2,0) -> S26-01776 | C107: OneNote | D107: Non-Specific | E107: =IF(ISERROR(B107),0,VLOOKUP(O107,'OVS Price List'!A:Q,16,0)) -> 36.45 | G107: 0 | O107: OneNote Non-Specific All Languages
B108: =VLOOKUP(O108,'OVS Price List'!A:C,2,0) -> 543-02834 | C108: Outlook | D108: Non-Specific | E108: =IF(ISERROR(B108),0,VLOOKUP(O108,'OVS Price List'!A:Q,16,0)) -> 40.95 | G108: 0 | O108: Outlook Non-Specific All Languages
B109: =VLOOKUP(O109,'OVS Price List'!A:C,2,0) -> 164-03900 | C109: Publisher | D109: Non-Specific | E109: =IF(ISERROR(B109),0,VLOOKUP(O109,'OVS Price List'!A:Q,16,0)) -> 67.8 | G109: 0 | O109: Publisher Non-Specific All Languages
B110: =VLOOKUP(O110,'OVS Price List'!A:C,2,0) -> 076-03609 | C110: Project | D110: Non-Specific | E110: =IF(ISERROR(B110),0,VLOOKUP(O110,'OVS Price List'!A:Q,16,0)) -> 278.55 | G110: 0 | O110: Project Non-Specific All Languages
B111: =VLOOKUP(O111,'OVS Price List'!A:C,2,0) -> H30-01671 | C111: Project Professional | D111: Non-Specific | E111: =IF(ISERROR(B111),0,VLOOKUP(O111,'OVS Price List'!A:Q,16,0)) -> 464.4 | G111: 0 | O111: Project Professional Non-Specific All Languages
B112: =VLOOKUP(O112,'OVS Price List'!A:C,2,0) -> 079-02674 | C112: PowerPoint | D112: Non-Specific | E112: =IF(ISERROR(B112),0,VLOOKUP(O112,'OVS Price List'!A:Q,16,0)) -> 95.25 | G112: 0 | O112: PowerPoint Non-Specific All Languages
B113: =VLOOKUP(O113,'OVS Price List'!A:C,2,0) -> D47-00347 | C113: PowerPoint Mac | D113: Non-Specific | E113: =IF(ISERROR(B113),0,VLOOKUP(O113,'OVS Price List'!A:Q,16,0)) -> 109.95 | G113: 0 | O113: PowerPoint Mac Non-Specific All Languages
B114: =VLOOKUP(O114,'OVS Price List'!A:C,2,0) -> JT9-00044 | C114: TechNet Plus Direct | D114: Non-Specific | E114: =IF(ISERROR(B114),0,VLOOKUP(O114,'OVS Price List'!A:Q,16,0)) -> 309.6 | G114: 0 | O114: TechNet Plus Direct Non-Specific All Languages
B115: =VLOOKUP(O115,'OVS Price List'!A:C,2,0) -> D87-02619 | C115: Visio Professional | D115: Non-Specific | E115: =IF(ISERROR(B115),0,VLOOKUP(O115,'OVS Price List'!A:Q,16,0)) -> 238.35 | G115: 0 | O115: Visio Professional Non-Specific All Languages
B116: =VLOOKUP(O116,'OVS Price List'!A:C,2,0) -> D86-02606 | C116: Visio Standard | D116: Non-Specific | E116: =IF(ISERROR(B116),0,VLOOKUP(O116,'OVS Price List'!A:Q,16,0)) -> 107.85 | G116: 0 | O116: Visio Standard Non-Specific All Languages
B117: =VLOOKUP(O117,'OVS Price List'!A:C,2,0) -> 77D-00053 | C117: Visual Studio Pro w/MSDN | D117: Non-Specific | E117: =IF(ISERROR(B117),0,VLOOKUP(O117,'OVS Price List'!A:Q,16,0)) -> 580.35 | G117: 0 | O117: Visual Studio Pro w/MSDN Non-Specific All Languages
B118: =VLOOKUP(O118,'OVS Price List'!A:C,2,0) -> 6KD-00053 | C118: Visual Studio Pro w/MSDN Emb | D118: Non-Specific | E118: =IF(ISERROR(B118),0,VLOOKUP(O118,'OVS Price List'!A:Q,16,0)) -> 580.35 | G118: 0 | O118: Visual Studio Pro w/MSDN Emb Non-Specific All Languages
B119: =VLOOKUP(O119,'OVS Price List'!A:C,2,0) -> 9ED-00079 | C119: Visual Studio Prem w/MSDN | D119: Non-Specific | E119: =IF(ISERROR(B119),0,VLOOKUP(O119,'OVS Price List'!A:Q,16,0)) -> 2330.7 | G119: 0 | O119: Visual Studio Prem w/MSDN Non-Specific All Languages
B120: =VLOOKUP(O120,'OVS Price List'!A:C,2,0) -> 9JD-00097 | C120: Visual Studio Ult w/MSDN | D120: Non-Specific | E120: =IF(ISERROR(B120),0,VLOOKUP(O120,'OVS Price List'!A:Q,16,0)) -> 5083.95 | G120: 0 | O120: Visual Studio Ult w/MSDN Non-Specific All Languages
B121: =VLOOKUP(O121,'OVS Price List'!A:C,2,0) -> L5D-00104 | C121: Visual Studio Test Pro w/MSDN | D121: Non-Specific | E121: =IF(ISERROR(B121),0,VLOOKUP(O121,'OVS Price List'!A:Q,16,0)) -> 939.15 | G121: 0 | O121: Visual Studio Test Pro w/MSDN Non-Specific All Languages
B122: =VLOOKUP(O122,'OVS Price List'!A:C,2,0) -> KKF-00298 | C122: Visual Studio Team Explrer Everywhr | D122: Non-Specific | E122: =IF(ISERROR(B122),0,VLOOKUP(O122,'OVS Price List'!A:Q,16,0)) -> 123.3 | G122: 0 | O122: Visual Studio Team Explrer Everywhr Non-Specific All Languages
B123: =VLOOKUP(O123,'OVS Price List'!A:C,2,0) -> 059-05310 | C123: Word | D123: Non-Specific | E123: =IF(ISERROR(B123),0,VLOOKUP(O123,'OVS Price List'!A:Q,16,0)) -> 95.25 | G123: 0 | O123: Word Non-Specific All Languages
B124: =VLOOKUP(O124,'OVS Price List'!A:C,2,0) -> D48-00675 | C124: Word Mac | D124: Non-Specific | E124: =IF(ISERROR(B124),0,VLOOKUP(O124,'OVS Price List'!A:Q,16,0)) -> 109.95 | G124: 0 | O124: Word Mac Non-Specific All Languages
A125: Sys | B125: =VLOOKUP(O125,'OVS Price List'!A:C,2,0) -> WSB-00074 | C125: Desktop Optimization Pack for SA (Per Device; monthly) | D125: =IF(sysEligiblePCs<=249,"Non-Specific","C") -> Non-Specific | E125: =IF(ISERROR(B125),0,VLOOKUP(O125,'OVS Price List'!A:Q,16,0)) -> 1.0125 | G125: =IF(F125<>0,E125*F125*H125,0) -> 0 | H125: 12 | I125: nr de luni pana la urmatoarea aniversare, cu care se va inmulti automat cantitatea | O125: Desktop Optimization Pack for SA (Per Device; monthly) Non-Specific All Languages
B126: =VLOOKUP(O126,'OVS Price List'!A:C,2,0) -> 4ZF-00010 | C126: Virtual Desktop Access (Per Device; monthly) | D126: Non-Specific | E126: =IF(ISERROR(B126),0,VLOOKUP(O126,'OVS Price List'!A:Q,16,0)) -> 9.6 | G126: =IF(F126<>0,E126*F126*H126,0) -> 0 | H126: 12 | I126: nr de luni pana la urmatoarea aniversare, cu care se va inmulti automat cantitatea | O126: =CONCATENATE(C126,D126," ",$IP$4) -> Virtual Desktop Access (Per Device; monthly) Non-Specific RAB
A127: Servere | B127: =VLOOKUP(O127,'OVS Price List'!A:C,2,0) -> 73F-00020 | C127: Antigen Enterprise Manager (Services; monthly) | D127: Non-Specific | E127: =IF(ISERROR(B127),0,VLOOKUP(O127,'OVS Price List'!A:Q,16,0)) -> 9.275 | G127: =IF(F127<>0,E127*F127*H127,0) -> 0 | H127: 12 | I127: nr de luni pana la urmatoarea aniversare, cu care se va inmulti automat cantitatea | O127: Antigen Enterprise Manager (Services; monthly) Non-Specific All Languages
B128: =VLOOKUP(O128,'OVS Price List'!A:C,2,0) -> XRA-00107 | C128: BizTalk Adapter Pack 1 Proc Lic | D128: Non-Specific | E128: =IF(ISERROR(B128),0,VLOOKUP(O128,'OVS Price List'!A:Q,16,0)) -> 2663.55 | G128: 0 | O128: BizTalk Adapter Pack 1 Proc Lic Non-Specific All Languages
B129: =VLOOKUP(O129,'OVS Price List'!A:C,2,0) -> HJA-00352 | C129: BizTalk Server Branch 1 Proc Lic | D129: Non-Specific | E129: =IF(ISERROR(B129),0,VLOOKUP(O129,'OVS Price List'!A:Q,16,0)) -> 814.5 | G129: 0 | O129: BizTalk Server Branch 1 Proc Lic Non-Specific All Languages
B130: =VLOOKUP(O130,'OVS Price List'!A:C,2,0) -> R04-00558 | C130: BizTalk Server Developer | D130: Non-Specific | E130: =IF(ISERROR(B130),0,VLOOKUP(O130,'OVS Price List'!A:Q,16,0)) -> 225.75 | G130: 0 | O130: BizTalk Server Developer Non-Specific All Languages
B131: =VLOOKUP(O131,'OVS Price List'!A:C,2,0) -> F52-01292 | C131: BizTalk Server Enterprise 1 Proc Lic | D131: Non-Specific | E131: =IF(ISERROR(B131),0,VLOOKUP(O131,'OVS Price List'!A:Q,16,0)) -> 15847.2 | G131: 0 | O131: BizTalk Server Enterprise 1 Proc Lic Non-Specific All Languages
B132: =VLOOKUP(O132,'OVS Price List'!A:C,2,0) -> D75-00851 | C132: BizTalk Server Standard 1 Proc Lic | D132: Non-Specific | E132: =IF(ISERROR(B132),0,VLOOKUP(O132,'OVS Price List'!A:Q,16,0)) -> 3848.25 | G132: 0 | O132: BizTalk Server Standard 1 Proc Lic Non-Specific All Languages
B133: =VLOOKUP(O133,'OVS Price List'!A:C,2,0) -> DHD-00059 | C133: BizTalk Svr Ent RFID 1 Proc Lic | D133: Non-Specific | E133: =IF(ISERROR(B133),0,VLOOKUP(O133,'OVS Price List'!A:Q,16,0)) -> 2253.3 | G133: 0 | O133: BizTalk Svr Ent RFID 1 Proc Lic Non-Specific All Languages
B134: =VLOOKUP(O134,'OVS Price List'!A:C,2,0) -> G20-00360 | C134: Commerce Server Enterprise 1 Proc Lic | D134: Non-Specific | E134: =IF(ISERROR(B134),0,VLOOKUP(O134,'OVS Price List'!A:Q,16,0)) -> 9055.05 | G134: 0 | O134: Commerce Server Enterprise 1 Proc Lic Non-Specific All Languages
B135: =VLOOKUP(O135,'OVS Price List'!A:C,2,0) -> 532-01151 | C135: Commerce Server Standard 1 Proc Lic | D135: Non-Specific | E135: =IF(ISERROR(B135),0,VLOOKUP(O135,'OVS Price List'!A:Q,16,0)) -> 3168.75 | G135: 0 | O135: Commerce Server Standard 1 Proc Lic Non-Specific All Languages
B136: =VLOOKUP(O136,'OVS Price List'!A:C,2,0) -> JS6-00187 | C136: Duet for MS Office and SAP CAL | D136: Non-Specific | E136: =IF(ISERROR(B136),0,VLOOKUP(O136,'OVS Price List'!A:Q,16,0)) -> 50.7 | G136: 0 | O136: Duet for MS Office and SAP CAL Non-Specific All Languages
B137: =VLOOKUP(O137,'OVS Price List'!A:C,2,0) -> JS5-00094 | C137: Duet for MS Office SAP Svr | D137: =IF(sysEligiblePCs<=249,"Non-Specific","C") -> Non-Specific | E137: =IF(ISERROR(B137),0,VLOOKUP(O137,'OVS Price List'!A:Q,16,0)) -> 50.7 | G137: 0 | O137: Duet for MS Office SAP Svr Non-Specific All Languages
B138: =VLOOKUP(O138,'OVS Price List'!A:C,2,0) -> QYA-00046 | C138: Dynamics CRM Full Use Add CAL | D138: Non-Specific | E138: =IF(ISERROR(B138),0,VLOOKUP(O138,'OVS Price List'!A:Q,16,0)) -> 220.8 | G138: 0 | O138: =CONCATENATE(C138,D138," ",$IP$5) -> Dynamics CRM Full Use Add CAL Non-Specific All Languages
B139: =VLOOKUP(O139,'OVS Price List'!A:C,2,0) -> QHA-00007 | C139: Dynamics CRM FU Add Extrnl Con | D139: Non-Specific | E139: =IF(ISERROR(B139),0,VLOOKUP(O139,'OVS Price List'!A:Q,16,0)) -> 946.5 | G139: 0 | O139: Dynamics CRM FU Add Extrnl Con Non-Specific All Languages
B140: =VLOOKUP(O140,'OVS Price List'!A:C,2,0) -> ZFA-00409 | C140: Dynamics CRM CAL | D140: Non-Specific | E140: =IF(ISERROR(B140),0,VLOOKUP(O140,'OVS Price List'!A:Q,16,0)) -> 314.85 | G140: 0 | O140: Dynamics CRM CAL Non-Specific All Languages
B141: =VLOOKUP(O141,'OVS Price List'!A:C,2,0) -> QJA-00839 | C141: Dynamics CRM Enterprise Svr | D141: Non-Specific | E141: =IF(ISERROR(B141),0,VLOOKUP(O141,'OVS Price List'!A:Q,16,0)) -> 1577.4 | G141: 0 | O141: Dynamics CRM Enterprise Svr Non-Specific All Languages
B142: =VLOOKUP(O142,'OVS Price List'!A:C,2,0) -> ZGA-00228 | C142: Dynamics CRM External Connector | D142: Non-Specific | E142: =IF(ISERROR(B142),0,VLOOKUP(O142,'OVS Price List'!A:Q,16,0)) -> 1577.4 | G142: =IF(F142<>0,E142*F142,0) -> 0 | O142: Dynamics CRM External Connector Non-Specific All Languages
B143: =VLOOKUP(O143,'OVS Price List'!A:C,2,0) -> QZA-00254 | C143: Dynamics CRM Limited CAL | D143: Non-Specific | E143: =IF(ISERROR(B143),0,VLOOKUP(O143,'OVS Price List'!A:Q,16,0)) -> 94.5 | G143: 0 | O143: Dynamics CRM Limited CAL Non-Specific All Languages
B144: =VLOOKUP(O144,'OVS Price List'!A:C,2,0) -> Q5A-00007 | C144: Dynamics CRM Ltd Extrnl Con | D144: Non-Specific | E144: =IF(ISERROR(B144),0,VLOOKUP(O144,'OVS Price List'!A:Q,16,0)) -> 630.9 | G144: 0 | O144: Dynamics CRM Ltd Extrnl Con Non-Specific All Languages
B145: =VLOOKUP(O145,'OVS Price List'!A:C,2,0) -> QCA-01050 | C145: Dynamics CRM Professional Svr 5 Clts | D145: Non-Specific | E145: =IF(ISERROR(B145),0,VLOOKUP(O145,'OVS Price List'!A:Q,16,0)) -> 2205.9 | G145: 0 | O145: Dynamics CRM Professional Svr 5 Clts Non-Specific All Languages
B146: =VLOOKUP(O146,'OVS Price List'!A:C,2,0) -> QCA-00729 | C146: Dynamics CRM Professional Svr | D146: Non-Specific | E146: =IF(ISERROR(B146),0,VLOOKUP(O146,'OVS Price List'!A:Q,16,0)) -> 630.9 | G146: 0 | O146: Dynamics CRM Professional SvrNon-Specific All Languages
B147: =VLOOKUP(O147,'OVS Price List'!A:C,2,0) -> QAA-00083 | C147: Dynamics CRM Workgroup Svr | D147: Non-Specific | E147: =IF(ISERROR(B147),0,VLOOKUP(O147,'OVS Price List'!A:Q,16,0)) -> 788.55 | G147: 0 | O147: Dynamics CRM Workgroup Svr Non-Specific All Languages
B148: =VLOOKUP(O148,'OVS Price List'!A:C,2,0) -> PGI-00144 | C148: Exchange Enterprise CAL w Svc | D148: Non-Specific | E148: =IF(ISERROR(B148),0,VLOOKUP(O148,'OVS Price List'!A:Q,16,0)) -> 33.6 | G148: 0 | O148: Exchange Enterprise CAL w Svc Non-Specific All Languages
B149: =VLOOKUP(O149,'OVS Price List'!A:C,2,0) -> 74P-00007 | C149: MS Exchange Hosted Archive (monthly) | D149: Non-Specific | E149: =IF(ISERROR(B149),0,VLOOKUP(O149,'OVS Price List'!A:Q,16,0)) -> 5.0125 | G149: =IF(F149<>0,E149*F149*H149,0) -> 0 | H149: 12 | I149: nr de luni pana la urmatoarea aniversare, cu care se va inmulti automat cantitatea | O149: MS Exchange Hosted Archive (monthly) Non-Specific All Languages
B150: =VLOOKUP(O150,'OVS Price List'!A:C,2,0) -> 74G-00007 | C150: MS Exchange Hosted Encryption (monthly) | D150: Non-Specific | E150: =IF(ISERROR(B150),0,VLOOKUP(O150,'OVS Price List'!A:Q,16,0)) -> 2.1375 | G150: =IF(F150<>0,E150*F150*H150,0) -> 0 | H150: 12 | I150: nr de luni pana la urmatoarea aniversare, cu care se va inmulti automat cantitatea | O150: MS Exchange Hosted Encryption (monthly) Non-Specific All Languages
B151: =VLOOKUP(O151,'OVS Price List'!A:C,2,0) -> 395-03516 | C151: Exchange Server - Enterprise | D151: Non-Specific | E151: =IF(ISERROR(B151),0,VLOOKUP(O151,'OVS Price List'!A:Q,16,0)) -> 1814.25 | G151: =IF(F151<>0,E151*F151,0) -> 0 | O151: Exchange Server - Enterprise Non-Specific All Languages
B152: =VLOOKUP(O152,'OVS Price List'!A:C,2,0) -> 394-00837 | C152: Exchange Svr ExtrnConn | D152: Non-Specific | E152: =IF(ISERROR(B152),0,VLOOKUP(O152,'OVS Price List'!A:Q,16,0)) -> 22639.05 | G152: =IF(F152<>0,E152*F152,0) -> 0 | O152: Exchange Svr ExtrnConn Non-Specific All Languages
B153: =VLOOKUP(O153,'OVS Price List'!A:C,2,0) -> 312-03195 | C153: Exchange Server - Standard | D153: Non-Specific | E153: =IF(ISERROR(B153),0,VLOOKUP(O153,'OVS Price List'!A:Q,16,0)) -> 316.95 | G153: =IF(F153<>0,E153*F153,0) -> 0 | O153: Exchange Server - Standard Non-Specific All Languages
B154: =VLOOKUP(O154,'OVS Price List'!A:C,2,0) -> UFB-00063 | C154: Forefront Client Security (Per User; monthly) | D154: Non-Specific | E154: =IF(ISERROR(B154),0,VLOOKUP(O154,'OVS Price List'!A:Q,16,0)) -> 1.2 | G154: =IF(F154<>0,E154*F154*H154,0) -> 0 | H154: 12 | I154: nr de luni pana la urmatoarea aniversare, cu care se va inmulti automat cantitatea | O154: Forefront Client Security (Per User; monthly) Non-Specific All Languages
B155: =VLOOKUP(O155,'OVS Price List'!A:C,2,0) -> FTZ-00050 | C155: Forefront Client Sec Mgt Cnsl (monthly) | D155: Non-Specific | E155: =IF(ISERROR(B155),0,VLOOKUP(O155,'OVS Price List'!A:Q,16,0)) -> 9.2875 | G155: 0 | H155: 12 | I155: nr de luni pana la urmatoarea aniversare, cu care se va inmulti automat cantitatea | O155: Forefront Client Sec Mgt Cnsl (monthly) Non-Specific All Languages
B156: =VLOOKUP(O156,'OVS Price List'!A:C,2,0) -> FTZ-00017 | C156: Forefront Client Sec Mgt Cnsl (wSQL; monthly) | D156: Non-Specific | E156: =IF(ISERROR(B156),0,VLOOKUP(O156,'OVS Price List'!A:Q,16,0)) -> 233.9375 | G156: 0 | H156: 12 | I156: nr de luni pana la urmatoarea aniversare, cu care se va inmulti automat cantitatea | O156: Forefront Client Sec Mgt Cnsl (wSQL; monthly) Non-Specific All Languages
B157: =VLOOKUP(O157,'OVS Price List'!A:C,2,0) -> 5KD-00002 | C157: Forefront Protection Exchange Svr Ext Conn (monthly) | D157: Non-Specific | E157: =IF(ISERROR(B157),0,VLOOKUP(O157,'OVS Price List'!A:Q,16,0)) -> 1579.8 | G157: 0 | H157: 12 | I157: nr de luni pana la urmatoarea aniversare, cu care se va inmulti automat cantitatea | O157: Forefront Protection Exchange Svr Ext Conn (monthly) Non-Specific All Languages
B158: =VLOOKUP(O158,'OVS Price List'!A:C,2,0) -> 5FD-00038 | C158: Forefront Protection Exchange Svr (Per User; monthly) | D158: Non-Specific | E158: =IF(ISERROR(B158),0,VLOOKUP(O158,'OVS Price List'!A:Q,16,0)) -> 1.4 | G158: 0 | H158: 12 | I158: nr de luni pana la urmatoarea aniversare, cu care se va inmulti automat cantitatea | O158: Forefront Protection Exchange Svr (Per User; monthly) Non-Specific All Languages
B159: =VLOOKUP(O159,'OVS Price List'!A:C,2,0) -> 74H-00145 | C159: Forefront Online Protection for Exchange (monthly) PROMO | D159: Non-Specific | E159: =IF(ISERROR(B159),0,VLOOKUP(O159,'OVS Price List'!A:Q,16,0)) -> 1.4 | G159: 0 | H159: 12 | I159: nr de luni pana la urmatoarea aniversare, cu care se va inmulti automat cantitatea | O159: Forefront Online Protection for Exchange (monthly) PROMO Non-Specific All Languages
B160: =VLOOKUP(O160,'OVS Price List'!A:C,2,0) -> PFF-00047 | C160: Forefront Sec SharePoint (IntrntSitesAdd-on; monthly) | D160: Non-Specific | E160: =IF(ISERROR(B160),0,VLOOKUP(O160,'OVS Price List'!A:Q,16,0)) -> 1639.35 | G160: 0 | H160: 12 | I160: nr de luni pana la urmatoarea aniversare, cu care se va inmulti automat cantitatea | O160: Forefront Sec SharePoint (IntrntSitesAdd-on; monthly) Non-Specific All Languages
B161: =VLOOKUP(O161,'OVS Price List'!A:C,2,0) -> PFF-00068 | C161: Forefront Sec SharePoint (Per User; monthly) | D161: Non-Specific | E161: =IF(ISERROR(B161),0,VLOOKUP(O161,'OVS Price List'!A:Q,16,0)) -> 0.65 | G161: 0 | H161: 12 | I161: nr de luni pana la urmatoarea aniversare, cu care se va inmulti automat cantitatea | O161: Forefront Sec SharePoint (Per User; monthly) Non-Specific All Languages
B162: =VLOOKUP(O162,'OVS Price List'!A:C,2,0) -> 9SE-00042 | C162: Forefront Sec Suite (Per User; monthly) | D162: Non-Specific | E162: =IF(ISERROR(B162),0,VLOOKUP(O162,'OVS Price List'!A:Q,16,0)) -> 5.0625 | G162: 0 | H162: 12 | I162: nr de luni pana la urmatoarea aniversare, cu care se va inmulti automat cantitatea | O162: Forefront Sec Suite (Per User; monthly) Non-Specific All Languages
B163: =VLOOKUP(O163,'OVS Price List'!A:C,2,0) -> HTC-00052 | C163: Forefront Sec Off Comm Svr (Per User; monthly) | D163: Non-Specific | E163: =IF(ISERROR(B163),0,VLOOKUP(O163,'OVS Price List'!A:Q,16,0)) -> 0.65 | G163: 0 | H163: 12 | I163: nr de luni pana la urmatoarea aniversare, cu care se va inmulti automat cantitatea | O163: Forefront Sec Off Comm Svr (Per User; monthly) Non-Specific All Languages
B164: =VLOOKUP(O164,'OVS Price List'!A:C,2,0) -> HTC-00090 | C164: Forefront Sec Off Comm Svr ExtConnector AddOn (Services; monthly) | D164: Non-Specific | E164: =IF(ISERROR(B164),0,VLOOKUP(O164,'OVS Price List'!A:Q,16,0)) -> 1639.35 | G164: =IF(F164<>0,E164*F164*H164,0) -> 0 | H164: 12 | I164: nr de luni pana la urmatoarea aniversare, cu care se va inmulti automat cantitatea | O164: Forefront Sec Off Comm Svr ExtConnector AddOn (Services; monthly) Non-Specific All Languages
B165: =VLOOKUP(O165,'OVS Price List'!A:C,2,0) -> 4VD-00074 | C165: Forefront TMG Enterprise | D165: Non-Specific | E165: =IF(ISERROR(B165),0,VLOOKUP(O165,'OVS Price List'!A:Q,16,0)) -> 2580.45 | G165: =IF(F165<>0,E165*F165,0) -> 0 | O165: Forefront TMG Enterprise Non-Specific All Languages
B166: =VLOOKUP(O166,'OVS Price List'!A:C,2,0) -> 4WD-00098 | C166: Forefront TMG Standard | D166: Non-Specific | E166: =IF(ISERROR(B166),0,VLOOKUP(O166,'OVS Price List'!A:Q,16,0)) -> 586.95 | G166: 0 | O166: Forefront TMG Standard Non-Specific All Languages
B167: =VLOOKUP(O167,'OVS Price List'!A:C,2,0) -> 5TD-00002 | C167: Forefront TMG Web Protection Service (Per User; monthly) | D167: Non-Specific | E167: =IF(ISERROR(B167),0,VLOOKUP(O167,'OVS Price List'!A:Q,16,0)) -> 1.1125 | G167: =IF(F167<>0,E167*F167*H167,0) -> 0 | H167: 12 | I167: nr de luni pana la urmatoarea aniversare, cu care se va inmulti automat cantitatea | O167: Forefront TMG Web Protection Service (Per User; monthly) Non-Specific All Languages
B168: =VLOOKUP(O168,'OVS Price List'!A:C,2,0) -> 9TA-00586 | C168: HPC Enterprise | D168: Non-Specific | E168: =IF(ISERROR(B168),0,VLOOKUP(O168,'OVS Price List'!A:Q,16,0)) -> 201.6 | G168: 0 | O168: HPC Enterprise Non-Specific All Languages
B169: =VLOOKUP(O169,'OVS Price List'!A:C,2,0) -> 9TA-00419 | C169: HPC for Workstation | D169: Non-Specific | E169: =IF(ISERROR(B169),0,VLOOKUP(O169,'OVS Price List'!A:Q,16,0)) -> 52.05 | G169: =IF(F169<>0,E169*F169,0) -> 0 | O169: HPC for Workstation Non-Specific All Languages
B170: =VLOOKUP(O170,'OVS Price List'!A:C,2,0) -> KPA-00384 | C170: Office Comm Server Ent | D170: Non-Specific | E170: =IF(ISERROR(B170),0,VLOOKUP(O170,'OVS Price List'!A:Q,16,0)) -> 1814.25 | G170: 0 | O170: Office Comm Server Ent Non-Specific All Languages
B171: =VLOOKUP(O171,'OVS Price List'!A:C,2,0) -> KMA-00625 | C171: Office Comm Server Ent CAL | D171: Non-Specific | E171: =IF(ISERROR(B171),0,VLOOKUP(O171,'OVS Price List'!A:Q,16,0)) -> 63 | G171: 0 | O171: Office Comm Server Ent CAL Non-Specific All Languages
B172: =VLOOKUP(O172,'OVS Price List'!A:C,2,0) -> KSA-00050 | C172: Office Comm Server Ext Conn-Ent | D172: Non-Specific | E172: =IF(ISERROR(B172),0,VLOOKUP(O172,'OVS Price List'!A:Q,16,0)) -> 905.25 | G172: 0 | O172: Office Comm Server Ext Conn-Ent Non-Specific All Languages
B173: =VLOOKUP(O173,'OVS Price List'!A:C,2,0) -> KTA-00033 | C173: Office Comm Server Ext Conn-Std | D173: Non-Specific | E173: =IF(ISERROR(B173),0,VLOOKUP(O173,'OVS Price List'!A:Q,16,0)) -> 905.25 | G173: 0 | O173: Office Comm Server Ext Conn-Std Non-Specific All Languages
B174: =VLOOKUP(O174,'OVS Price List'!A:C,2,0) -> KNA-00389 | C174: Office Comm Server Std | D174: Non-Specific | E174: =IF(ISERROR(B174),0,VLOOKUP(O174,'OVS Price List'!A:Q,16,0)) -> 316.95 | G174: 0 | O174: Office Comm Server Std Non-Specific All Languages
B175: =VLOOKUP(O175,'OVS Price List'!A:C,2,0) -> KLA-00465 | C175: Office Comm Server Std CAL | D175: Non-Specific | E175: =IF(ISERROR(B175),0,VLOOKUP(O175,'OVS Price List'!A:Q,16,0)) -> 13.95 | G175: 0 | O175: Office Comm Server Std CAL Non-Specific All Languages
B176: =VLOOKUP(O176,'OVS Price List'!A:C,2,0) -> YYB-00014 | C176: Groove Server | D176: Non-Specific | E176: =IF(ISERROR(B176),0,VLOOKUP(O176,'OVS Price List'!A:Q,16,0)) -> 2206.35 | G176: =IF(F176<>0,E176*F176,0) -> 0 | O176: Groove Server Non-Specific All Languages
B177: =VLOOKUP(O177,'OVS Price List'!A:C,2,0) -> A9S-00031 | C177: Office LCS Connect to Public IM (Per User; monthly) | D177: Non-Specific | E177: =IF(ISERROR(B177),0,VLOOKUP(O177,'OVS Price List'!A:Q,16,0)) -> 0.325 | G177: =IF(F177<>0,E177*F177*H177,0) -> 0 | H177: 12 | I177: nr de luni pana la urmatoarea aniversare, cu care se va inmulti automat cantitatea | O177: Office LCS Connect to Public IM (Per User; monthly) Non-Specific All Languages
B178: =VLOOKUP(O178,'OVS Price List'!A:C,2,0) -> BU8-00044 | C178: Office Live Mtg Professional (Per User; monthly) | D178: Non-Specific | E178: =IF(ISERROR(B178),0,VLOOKUP(O178,'OVS Price List'!A:Q,16,0)) -> 13.625 | G178: =IF(F178<>0,E178*F178*H178,0) -> 0 | H178: 12 | I178: nr de luni pana la urmatoarea aniversare, cu care se va inmulti automat cantitatea | O178: Office Live Mtg Professional (Per User; monthly) Non-Specific All Languages
B179: =VLOOKUP(O179,'OVS Price List'!A:C,2,0) -> BT1-00021 | C179: Office Live Mtg Standard (Per User; monthly) | D179: Non-Specific | E179: =IF(ISERROR(B179),0,VLOOKUP(O179,'OVS Price List'!A:Q,16,0)) -> 4.05 | G179: =IF(F179<>0,E179*F179*H179,0) -> 0 | H179: 12 | I179: nr de luni pana la urmatoarea aniversare, cu care se va inmulti automat cantitatea | O179: Office Live Mtg Standard (Per User; monthly) Non-Specific All Languages
B180: =VLOOKUP(O180,'OVS Price List'!A:C,2,0) -> H04-01506 | C180: Office SharePoint Server | D180: Non-Specific | E180: =IF(ISERROR(B180),0,VLOOKUP(O180,'OVS Price List'!A:Q,16,0)) -> 2206.35 | G180: 0 | O180: Office SharePoint Server Non-Specific All Languages
B181: =VLOOKUP(O181,'OVS Price List'!A:C,2,0) -> H22-01460 | C181: Project Server | D181: Non-Specific | E181: =IF(ISERROR(B181),0,VLOOKUP(O181,'OVS Price List'!A:Q,16,0)) -> 2206.35 | G181: 0 | O181: Project Server Non-Specific All Languages
B182: =VLOOKUP(O182,'OVS Price List'!A:C,2,0) -> H21-02129 | C182: Project Server CAL | D182: Non-Specific | E182: =IF(ISERROR(B182),0,VLOOKUP(O182,'OVS Price List'!A:Q,16,0)) -> 72 | G182: 0 | O182: Project Server CAL Non-Specific All Languages
B183: =VLOOKUP(O183,'OVS Price List'!A:C,2,0) -> 76N-01514 | C183: SharePoint Enterprise CAL | D183: Non-Specific | E183: =IF(ISERROR(B183),0,VLOOKUP(O183,'OVS Price List'!A:Q,16,0)) -> 37.05 | G183: 0 | O183: SharePoint Enterprise CAL Non-Specific All Languages
B184: =VLOOKUP(O184,'OVS Price List'!A:C,2,0) -> CLF-00086 | C184: SharePoint Internet Std | D184: Non-Specific | E184: =IF(ISERROR(B184),0,VLOOKUP(O184,'OVS Price List'!A:Q,16,0)) -> 5281.8 | G184: 0 | O184: SharePoint Internet Std Non-Specific All Languages
B185: =VLOOKUP(O185,'OVS Price List'!A:C,2,0) -> CKF-00086 | C185: SharePoint Internet Ent | D185: Non-Specific | E185: =IF(ISERROR(B185),0,VLOOKUP(O185,'OVS Price List'!A:Q,16,0)) -> 18538.8 | G185: =IF(F185<>0,E185*F185,0) -> 0 | O185: SharePoint Internet Ent Non-Specific All Languages
B186: =VLOOKUP(O186,'OVS Price List'!A:C,2,0) -> 359-01631 | C186: SQL CAL | D186: =IF(sysEligiblePCs<=249,"Non-Specific","C") -> Non-Specific | E186: =IF(ISERROR(B186),0,VLOOKUP(O186,'OVS Price List'!A:Q,16,0)) -> 73.35 | G186: 0 | O186: SQL CAL Non-Specific All Languages
B187: =VLOOKUP(O187,'OVS Price List'!A:C,2,0) -> 810-04921 | C187: SQL Server Enterprise Edition | D187: Non-Specific | E187: =IF(ISERROR(B187),0,VLOOKUP(O187,'OVS Price List'!A:Q,16,0)) -> 3847.95 | G187: 0 | O187: =CONCATENATE(C187,D187," ",$IP$5) -> SQL Server Enterprise Edition Non-Specific All Languages
B188: =VLOOKUP(O188,'OVS Price List'!A:C,2,0) -> 810-03110 | C188: SQL Server Enterprise Edition 1 Proc Lic | D188: Non-Specific | E188: =IF(ISERROR(B188),0,VLOOKUP(O188,'OVS Price List'!A:Q,16,0)) -> 12314.7 | G188: 0 | O188: SQL Server Enterprise Edition 1 Proc Lic Non-Specific All Languages
B189: =VLOOKUP(O189,'OVS Price List'!A:C,2,0) -> 228-04735 | C189: SQL Server Standard Edition | D189: Non-Specific | E189: =IF(ISERROR(B189),0,VLOOKUP(O189,'OVS Price List'!A:Q,16,0)) -> 401.85 | G189: 0 | O189: SQL Server Standard Edition Non-Specific All Languages
B190: =VLOOKUP(O190,'OVS Price List'!A:C,2,0) -> 228-05175 | C190: SQL Server Standard Edition 1 Proc Lic | D190: Non-Specific | E190: =IF(ISERROR(B190),0,VLOOKUP(O190,'OVS Price List'!A:Q,16,0)) -> 3211.65 | G190: 0 | O190: SQL Server Standard Edition 1 Proc Lic Non-Specific All Languages
B191: =VLOOKUP(O191,'OVS Price List'!A:C,2,0) -> TFA-00087 | C191: SQL Server Web Edition 1 Proc Lic | D191: Non-Specific | E191: =IF(ISERROR(B191),0,VLOOKUP(O191,'OVS Price List'!A:Q,16,0)) -> 1567.5 | G191: 0 | O191: SQL Server Web Edition 1 Proc Lic Non-Specific All Languages
B192: =VLOOKUP(O192,'OVS Price List'!A:C,2,0) -> P6R-00138 | C192: Search Server | D192: Non-Specific | E192: =IF(ISERROR(B192),0,VLOOKUP(O192,'OVS Price List'!A:Q,16,0)) -> 7148.7 | G192: 0 | O192: Search Server Non-Specific All Languages
B193: =VLOOKUP(O193,'OVS Price List'!A:C,2,0) -> J3A-00250 | C193: Sys Ctr Config Mgr Svr | D193: Non-Specific | E193: =IF(ISERROR(B193),0,VLOOKUP(O193,'OVS Price List'!A:Q,16,0)) -> 259.35 | G193: 0 | O193: Sys Ctr Config Mgr Svr Non-Specific All Languages
B194: =VLOOKUP(O194,'OVS Price List'!A:C,2,0) -> J7A-00245 | C194: Sys Ctr Config Mgr Svr Mgmt Lic Ent | D194: Non-Specific | E194: =IF(ISERROR(B194),0,VLOOKUP(O194,'OVS Price List'!A:Q,16,0)) -> 192.75 | G194: 0 | O194: Sys Ctr Config Mgr Svr Mgmt Lic Ent Non-Specific All Languages
B195: =VLOOKUP(O195,'OVS Price List'!A:C,2,0) -> J6A-00007 | C195: Sys Ctr Config Mgr Svr Mgmt Lic Std | D195: Non-Specific | E195: =IF(ISERROR(B195),0,VLOOKUP(O195,'OVS Price List'!A:Q,16,0)) -> 70.05 | G195: 0 | O195: Sys Ctr Config Mgr Svr Mgmt Lic Std Non-Specific All Languages
B196: =VLOOKUP(O196,'OVS Price List'!A:C,2,0) -> J4A-00243 | C196: Sys Ctr Config Mgr Svr wSQL | D196: Non-Specific | E196: =IF(ISERROR(B196),0,VLOOKUP(O196,'OVS Price List'!A:Q,16,0)) -> 591.6 | G196: 0 | O196: Sys Ctr Config Mgr Svr wSQL Non-Specific All Languages
B197: =VLOOKUP(O197,'OVS Price List'!A:C,2,0) -> TSC-00243 | C197: Sys Ctr Data Prtcn Mgr Clt Mgmt Lic Per OSE | D197: Non-Specific | E197: =IF(ISERROR(B197),0,VLOOKUP(O197,'OVS Price List'!A:Q,16,0)) -> 10.65 | G197: 0 | O197: Sys Ctr Data Prtcn Mgr Clt Mgmt Lic Per OSE Non-Specific All Languages
B198: =VLOOKUP(O198,'OVS Price List'!A:C,2,0) -> TSC-00760 | C198: Sys Ctr Data Prtcn Mgr Clt Mgmt Lic Per USER | D198: Non-Specific | E198: =IF(ISERROR(B198),0,VLOOKUP(O198,'OVS Price List'!A:Q,16,0)) -> 10.65 | G198: 0 | O198: Sys Ctr Data Prtcn Mgr Clt Mgmt Lic Per USER Non-Specific All Languages
B199: =VLOOKUP(O199,'OVS Price List'!A:C,2,0) -> CGA-00051 | C199: Sys Ctr Data Prtcn Mgr Svr ML Ent | D199: Non-Specific | E199: =IF(ISERROR(B199),0,VLOOKUP(O199,'OVS Price List'!A:Q,16,0)) -> 193.2 | G199: 0 | O199: Sys Ctr Data Prtcn Mgr Svr ML Ent Non-Specific All Languages
B200: =VLOOKUP(O200,'OVS Price List'!A:C,2,0) -> CVA-00032 | C200: Sys Ctr Data Prtcn Mgr Svr ML Std | D200: Non-Specific | E200: =IF(ISERROR(B200),0,VLOOKUP(O200,'OVS Price List'!A:Q,16,0)) -> 70.2 | G200: 0 | O200: Sys Ctr Data Prtcn Mgr Svr ML Std Non-Specific All Languages
B201: =VLOOKUP(O201,'OVS Price List'!A:C,2,0) -> UCH-02308 | C201: Sys Ctr Essentials | D201: Non-Specific | E201: =IF(ISERROR(B201),0,VLOOKUP(O201,'OVS Price List'!A:Q,16,0)) -> 44.55 | G201: 0 | O201: Sys Ctr Essentials Non-Specific All Languages
B202: =VLOOKUP(O202,'OVS Price List'!A:C,2,0) -> 4PX-01516 | C202: Sys Ctr Essentials Clt Mgmt Lic | D202: Non-Specific | E202: =IF(ISERROR(B202),0,VLOOKUP(O202,'OVS Price List'!A:Q,16,0)) -> 7.05 | G202: 0 | O202: Sys Ctr Essentials Clt Mgmt Lic Non-Specific All Languages
B203: =VLOOKUP(O203,'OVS Price List'!A:C,2,0) -> DJA-00869 | C203: Sys Ctr Essentials Svr Mgmt Lic | D203: Non-Specific | E203: =IF(ISERROR(B203),0,VLOOKUP(O203,'OVS Price List'!A:Q,16,0)) -> 44.55 | G203: 0 | O203: Sys Ctr Essentials Svr Mgmt Lic Non-Specific All Languages
B204: =VLOOKUP(O204,'OVS Price List'!A:C,2,0) -> EEC-00736 | C204: Sys Ctr Essentials wSQL | D204: Non-Specific | E204: =IF(ISERROR(B204),0,VLOOKUP(O204,'OVS Price List'!A:Q,16,0)) -> 361.5 | G204: 0 | O204: Sys Ctr Essentials wSQL Non-Specific All Languages
B205: =VLOOKUP(O205,'OVS Price List'!A:C,2,0) -> T7F-00345 | C205: Sys Ctr EssentialsPlusSvrMgmtLicSte | D205: Non-Specific | E205: =IF(ISERROR(B205),0,VLOOKUP(O205,'OVS Price List'!A:Q,16,0)) -> 178.05 | G205: =IF(F205<>0,E205*F205,0) -> 0 | O205: Sys Ctr EssentialsPlusSvrMgmtLicSte Non-Specific All Languages
B206: =VLOOKUP(O206,'OVS Price List'!A:C,2,0) -> T9F-00361 | C206: Sys Ctr EssentialsPlusCltMgmtLicSte | D206: Non-Specific | E206: =IF(ISERROR(B206),0,VLOOKUP(O206,'OVS Price List'!A:Q,16,0)) -> 13.65 | G206: 0 | O206: Sys Ctr EssentialsPlusCltMgmtLicSte Non-Specific All Languages
B207: =VLOOKUP(O207,'OVS Price List'!A:C,2,0) -> WRA-00050 | C207: Sys Ctr Mobile Device Mgr CAL | D207: Non-Specific | E207: =IF(ISERROR(B207),0,VLOOKUP(O207,'OVS Price List'!A:Q,16,0)) -> 25.95 | G207: 0 | O207: Sys Ctr Mobile Device Mgr CAL Non-Specific All Languages
B208: =VLOOKUP(O208,'OVS Price List'!A:C,2,0) -> WQA-00300 | C208: Sys Ctr Mobile Device Mgr Svr | D208: Non-Specific | E208: =IF(ISERROR(B208),0,VLOOKUP(O208,'OVS Price List'!A:Q,16,0)) -> 973.2 | G208: 0 | O208: Sys Ctr Mobile Device Mgr Svr Non-Specific All Languages
B209: =VLOOKUP(O209,'OVS Price List'!A:C,2,0) -> WQA-00073 | C209: Sys Ctr Mobile Device Mgr Svr wSQL | D209: Non-Specific | E209: =IF(ISERROR(B209),0,VLOOKUP(O209,'OVS Price List'!A:Q,16,0)) -> 1376.55 | G209: 0 | O209: Sys Ctr Mobile Device Mgr Svr wSQL Non-Specific All Languages
B210: =VLOOKUP(O210,'OVS Price List'!A:C,2,0) -> MUY-00071 | C210: Sys Ctr Svr Mgmt Suite Ent | D210: Non-Specific | E210: =IF(ISERROR(B210),0,VLOOKUP(O210,'OVS Price List'!A:Q,16,0)) -> 468.45 | G210: 0 | O210: Sys Ctr Svr Mgmt Suite Ent Non-Specific All Languages
B211: =VLOOKUP(O211,'OVS Price List'!A:C,2,0) -> 9TX-00727 | C211: Sys Ctr Ops Mgr Clt Mgmt Lic Per OSE | D211: Non-Specific | E211: =IF(ISERROR(B211),0,VLOOKUP(O211,'OVS Price List'!A:Q,16,0)) -> 10.8 | G211: 0 | O211: Sys Ctr Ops Mgr Clt Mgmt Lic Per OSE Non-Specific All Languages
B212: =VLOOKUP(O212,'OVS Price List'!A:C,2,0) -> 9TX-00296 | C212: Sys Ctr Ops Mgr Clt Mgmt Lic Per USER | D212: Non-Specific | E212: =IF(ISERROR(B212),0,VLOOKUP(O212,'OVS Price List'!A:Q,16,0)) -> 10.8 | G212: 0 | O212: Sys Ctr Ops Mgr Clt Mgmt Lic Per USER Non-Specific All Languages
... 44 more rows

Sheet OVS Proposal Form ALL Languages
C3: Open Value Subscription - Reseller Proposal Form | IP3: 0
F4: Ultima actualizare: | G4: 01-Septembrie-2010 | IP4: All Languages
IP5: All Languages
B7: Atentie: Pentru o functionare corecta, alegeti la deschiderea fisierului optiunea <<Enable Macros>>/ <<Enable Content>>.
B8: Daca aceasta optiune nu apare la deshiderea fisierului, alegeti nivelul Medium la Macro Security din meniul Tools/Options/Security
B9: Se completeaza celulele verzi
B10: Detaliile Beneficiarului | D10: Detaliile Resellerului
B11: Nume Beneficiar: | D11: Nume Reseller:
B12: Nume Contact Beneficiar: | D12: Nume Contact Reseller:
B13: Adresa de email Beneficiar: | D13: Adresa de email Reseller:
D14: Adresa postala Reseller:
D15: Tel/Fax Reseller:
B17: Nr. Total de PC-uri eligibile: | C17: 50 | D17: (Minim 5 PC-uri: Titular contract + eventuali afiliati)
B19: Achizitie de platforma sau de componente - alegeti una dintre cele 2 variante
B21: Platforma | C21: include discount de platforma 5% | G21: Distribuirea platilor (EURO)
G22: Plata anul 1 | H22: =H70+lblAdditionalProductsTotal -> 15675
B23: Componente | G23: Plata anul 2 | H23: =H82+lblAdditionalProductsTotal -> 15675
G24: Plata anul 3 | H24: =H94+lblAdditionalProductsTotal -> 15675
B26: Varianta limba pentru platforma sau componente - ALL Languages
B27: Include dreptul de folosire a produselor componente sau platforma in toate variantele de limba suportate la acest moment de Microsoft, inclusiv Engleza.
B28: Daca doriti doar variantele ROMANA si Bulgara, va rugam folositi foaia precendenta "OVS Proposal Form - ROMANIAN"
B31: Discountul UTD (Up To Date) 50% - se acorda in primul an pentru produsele detinute in versiuni curente (N si N-1)
B32: Suma produselor Current + NonCurrent trebuie sa fie egala cu nr total de PC-uri eligibile
B33: SKU | C33: Descriere | D33: Current/Non-Current | E33: Nivel | F33: Cantitate | G33: Pret | H33: Total
B34: =VLOOKUP(O34,'OVS Price List'!A:C,2,0) -> W06-01594 | C34: =IF($IP$3=0,IF(D34="Current (UTD)","Core CAL (Client Access License) Platform UTD","Core CAL (Client Access License) Platform"),IF(D34="Current (UTD)","Core CAL (Client Access License) Component UTD","Core CAL (Client Access License) Component")) -> Core CAL (Client Access License) Platform UTD | D34: Current (UTD) | E34: =IF(sysEligiblePCs<=249,"Non-Specific","C") -> Non-Specific | F34: 0 | G34: =IF(ISERROR(B34),0,VLOOKUP(O34,'OVS Price List'!A:Q,16,0)) -> 31.05 | H34: =F34*G34 -> 0 | O34: =CONCATENATE(C34," ",D34," ",E34," ",$IP$4) -> Core CAL (Client Access License) Platform UTD Current (UTD) Non-Specific All Languages
B35: =VLOOKUP(O35,'OVS Price List'!A:C,2,0) -> W06-01504 | C35: =IF($IP$3=0,IF(D35="Current (UTD)","Core CAL (Client Access License) Platform UTD","Core CAL (Client Access License) Platform"),IF(D35="Current (UTD)","Core CAL (Client Access License) Component UTD","Core CAL (Client Access License) Component")) -> Core CAL (Client Access License) Platform | D35: Non-Current | E35: Non-Specific | F35: 50 | G35: =IF(ISERROR(B35),0,VLOOKUP(O35,'OVS Price List'!A:Q,16,0)) -> 62.1 | H35: =F35*G35 -> 3105 | O35: =CONCATENATE(C35," ",D35," ",E35," ",$IP$4) -> Core CAL (Client Access License) Platform Non-Current Non-Specific All Languages
B36: =VLOOKUP(O36,'OVS Price List'!A:C,2,0) -> 76A-00821 | C36: =IF($IP$3=0,IF(D36="Current (UTD)","Enterprise CAL Platform UTD","Enterprise CAL Platform"),IF(D36="Current (UTD)","Enterprise CAL Component UTD","Enterprise CAL Component")) -> Enterprise CAL Platform UTD | D36: Current (UTD) | E36: Non-Specific | F36: 0 | G36: =IF(ISERROR(B36),0,VLOOKUP(O36,'OVS Price List'!A:Q,16,0)) -> 82.8 | H36: 0 | O36: Enterprise CAL Platform UTD Current (UTD) Non-Specific All Languages
B37: =VLOOKUP(O37,'OVS Price List'!A:C,2,0) -> 76A-00495 | C37: =IF($IP$3=0,IF(D37="Current (UTD)","Enterprise CAL Platform UTD","Enterprise CAL Platform"),IF(D37="Current (UTD)","Enterprise CAL Component UTD","Enterprise CAL Component")) -> Enterprise CAL Platform | D37: Non-Current | E37: Non-Specific | F37: 0 | G37: =IF(ISERROR(B37),0,VLOOKUP(O37,'OVS Price List'!A:Q,16,0)) -> 165.6 | H37: 0 | O37: Enterprise CAL Platform Non-Current Non-Specific All Languages
B38: =VLOOKUP(O38,'OVS Price List'!A:C,2,0) -> 6UA-02457 | C38: =IF($IP$3=0,IF(D38="Current (UTD)","Windows Small Bus CAL Ste Platform UTD","Windows Small Bus CAL Ste Platform"),IF(D38="Current (UTD)","Windows Small Bus CAL Ste Component UTD","Windows Small Bus CAL Ste Component")) -> Windows Small Bus CAL Ste Platform UTD | D38: Current (UTD) | E38: Non-Specific | F38: 0 | G38: =IF(ISERROR(B38),0,VLOOKUP(O38,'OVS Price List'!A:Q,16,0)) -> 10.5 | H38: 0 | O38: Windows Small Bus CAL Ste Platform UTD Current (UTD) Non-Specific All Languages
B39: =VLOOKUP(O39,'OVS Price List'!A:C,2,0) -> 6UA-02363 | C39: =IF($IP$3=0,IF(D39="Current (UTD)","Windows Small Bus CAL Ste Platform UTD","Windows Small Bus CAL Ste Platform"),IF(D39="Current (UTD)","Windows Small Bus CAL Ste Component UTD","Windows Small Bus CAL Ste Component")) -> Windows Small Bus CAL Ste Platform | D39: Non-Current | E39: Non-Specific | F39: 0 | G39: =IF(ISERROR(B39),0,VLOOKUP(O39,'OVS Price List'!A:Q,16,0)) -> 21 | H39: 0 | O39: Windows Small Bus CAL Ste Platform Non-Current Non-Specific All Languages
B40: =VLOOKUP(O40,'OVS Price List'!A:C,2,0) -> 6VA-02635 | C40: =IF($IP$3=0,IF(D40="Current (UTD)","Windows Small Bus Svr Prem CAL Ste Platform UTD","Windows Small Bus Svr Prem CAL Ste Platform"),IF(D40="Current (UTD)","Windows Small Bus Svr Prem CAL Ste Component UTD","Windows Small Bus Svr Prem CAL Ste Component")) -> Windows Small Bus Svr Prem CAL Ste Platform UTD | D40: Current (UTD) | E40: Non-Specific | F40: 0 | G40: =IF(ISERROR(B40),0,VLOOKUP(O40,'OVS Price List'!A:Q,16,0)) -> 25.8 | H40: 0 | O40: Windows Small Bus Svr Prem CAL Ste Platform UTD Current (UTD) Non-Specific All Languages
B41: =VLOOKUP(O41,'OVS Price List'!A:C,2,0) -> 6VA-02553 | C41: =IF($IP$3=0,IF(D41="Current (UTD)","Windows Small Bus Svr Prem CAL Ste Platform UTD","Windows Small Bus Svr Prem CAL Ste Platform"),IF(D41="Current (UTD)","Windows Small Bus Svr Prem CAL Ste Component UTD","Windows Small Bus Svr Prem CAL Ste Component")) -> Windows Small Bus Svr Prem CAL Ste Platform | D41: Non-Current | E41: Non-Specific | F41: 0 | G41: =IF(ISERROR(B41),0,VLOOKUP(O41,'OVS Price List'!A:Q,16,0)) -> 51.6 | H41: 0 | O41: Windows Small Bus Svr Prem CAL Ste Platform Non-Current Non-Specific All Languages
B42: =VLOOKUP(O42,'OVS Price List'!A:C,2,0) -> 6YA-01764 | C42: =IF($IP$3=0,IF(D42="Current (UTD)","Windows Essntl Bus CAL Ste Platform UTD","Windows Essntl Bus CAL Ste Platform"),IF(D42="Current (UTD)","Windows Essntl Bus CAL Ste Component UTD","Windows Essntl Bus CAL Ste Component")) -> Windows Essntl Bus CAL Ste Platform | D42: Non-Current | E42: Non-Specific | F42: 0 | G42: =IF(ISERROR(B42),0,VLOOKUP(O42,'OVS Price List'!A:Q,16,0)) -> 25.2 | H42: 0 | O42: Windows Essntl Bus CAL Ste Platform Non-Current Non-Specific All Languages
B43: =VLOOKUP(O43,'OVS Price List'!A:C,2,0) -> 7AA-02045 | C43: =IF($IP$3=0,IF(D43="Current (UTD)","Windows Essntl Bus Prem CAL Ste Platform UTD","Windows Essntl Bus Prem CAL Ste Platform"),IF(D43="Current (UTD)","Windows Essntl Bus Prem CAL Ste UTD","Windows Essntl Bus Prem CAL Ste Component")) -> Windows Essntl Bus Prem CAL Ste Platform | D43: Non-Current | E43: Non-Specific | F43: 0 | G43: =IF(ISERROR(B43),0,VLOOKUP(O43,'OVS Price List'!A:Q,16,0)) -> 60.9 | H43: 0 | O43: Windows Essntl Bus Prem CAL Ste Platform Non-Current Non-Specific All Languages
B44: =VLOOKUP(O44,'OVS Price List'!A:C,2,0) -> 79P-02404 | C44: =IF($IP$3=0,IF(D44="Current (UTD)","Office Professional Plus Platform UTD","Office Professional Plus Platform"),IF(D44="Current (UTD)","Office Professional Plus Component UTD","Office Professional Plus Component")) -> Office Professional Plus Platform UTD | D44: Current (UTD) | E44: Non-Specific | F44: 0 | G44: =IF(ISERROR(B44),0,VLOOKUP(O44,'OVS Price List'!A:Q,16,0)) -> 91.875 | H44: 0 | O44: Office Professional Plus Platform UTD Current (UTD) Non-Specific All Languages
B45: =VLOOKUP(O45,'OVS Price List'!A:C,2,0) -> 79P-02338 | C45: =IF($IP$3=0,IF(D45="Current (UTD)","Office Professional Plus Platform UTD","Office Professional Plus Platform"),IF(D45="Current (UTD)","Office Professional Plus Component UTD","Office Professional Plus Component")) -> Office Professional Plus Platform | D45: Non-Current | E45: Non-Specific | F45: 50 | G45: =IF(ISERROR(B45),0,VLOOKUP(O45,'OVS Price List'!A:Q,16,0)) -> 183.75 | H45: 9187.5 | O45: Office Professional Plus Platform Non-Current Non-Specific All Languages
B46: =VLOOKUP(O46,'OVS Price List'!A:C,2,0) -> FQC-02154 | C46: =IF($IP$3=0,IF(D46="Current (UTD)","Win Pro Upgr Platform UTD","Win Pro Upgr Platform"),IF(D46="Current (UTD)","Win Pro Upgr Component UTD","Win Pro Upgr Component")) -> Win Pro Upgr Platform UTD | D46: Current (UTD) | E46: Non-Specific | F46: 0 | G46: =IF(ISERROR(B46),0,VLOOKUP(O46,'OVS Price List'!A:Q,16,0)) -> 33.825 | H46: 0 | O46: Win Pro Upgr Platform UTD Current (UTD) Non-Specific All Languages
B47: =VLOOKUP(O47,'OVS Price List'!A:C,2,0) -> FQC-02152 | C47: =IF($IP$3=0,IF(D47="Current (UTD)","Win Pro Upgr Platform UTD","Win Pro Upgr Platform"),IF(D47="Current (UTD)","Win Pro 7 Component UTD","Win Pro Upgr Component")) -> Win Pro Upgr Platform | D47: Non-Current | E47: Non-Specific | F47: 50 | G47: =IF(ISERROR(B47),0,VLOOKUP(O47,'OVS Price List'!A:Q,16,0)) -> 67.65 | H47: 3382.5 | O47: Win Pro Upgr Platform Non-Current Non-Specific All Languages
B48: =VLOOKUP(O48,'OVS Price List'!A:C,2,0) -> FQC-02928 | C48: =IF($IP$3=0,IF(D48="Current (UTD)","Win Pro Upgr w/MDOP Platform UTD","Win Pro Upgr w/MDOP Platform"),IF(D48="Current (UTD)","Win Pro Upgr w/MDOP Component UTD","Win Pro Upgr w/MDOP Component")) -> Win Pro Upgr w/MDOP Platform UTD | D48: Current (UTD) | E48: Non-Specific | F48: 0 | G48: =IF(ISERROR(B48),0,VLOOKUP(O48,'OVS Price List'!A:Q,16,0)) -> 39.15 | H48: 0 | O48: Win Pro Upgr w/MDOP Platform UTD Current (UTD) Non-Specific All Languages
B49: =VLOOKUP(O49,'OVS Price List'!A:C,2,0) -> FQC-02924 | C49: =IF($IP$3=0,IF(D49="Current (UTD)","Win Pro Upgr w/MDOP Platform UTD","Win Pro Upgr w/MDOP Platform"),IF(D49="Current (UTD)","Win Pro Upgr w/MDOP Component UTD","Win Pro Upgr w/MDOP Component")) -> Win Pro Upgr w/MDOP Platform | D49: Non-Current | E49: Non-Specific | F49: 0 | G49: =IF(ISERROR(B49),0,VLOOKUP(O49,'OVS Price List'!A:Q,16,0)) -> 78.3 | H49: 0 | O49: Win Pro Upgr w/MDOP Platform Non-Current Non-Specific All Languages
G50: Total : | H50: =SUM(H34:H49) -> 15675
B51: Detaliile achizitiei
B52: Produse platforma
A53: Anul 1 | B53: SKU | C53: Descriere | D53: Current/Non-Current | E53: Nivel | F53: Cantitate | G53: Pret | H53: Total
B54: =B34 -> W06-01594 | C54: Core CAL (Client Access License) Platform UTD | D54: Current (UTD) | E54: Non-Specific | F54: 0 | G54: 31.05 | H54: =F54*G54 -> 0
B55: W06-01504 | C55: Core CAL (Client Access License) Platform | D55: Non-Current | E55: Non-Specific | F55: 50 | G55: 62.1 | H55: =F55*G55 -> 3105
B56: 76A-00821 | C56: Enterprise CAL Platform UTD | D56: Current (UTD) | E56: Non-Specific | F56: 0 | G56: 82.8 | H56: 0
B57: 76A-00495 | C57: Enterprise CAL Platform | D57: Non-Current | E57: Non-Specific | F57: 0 | G57: 165.6 | H57: 0
B58: 6UA-02457 | C58: Windows Small Bus CAL Ste Platform UTD | D58: Current (UTD) | E58: Non-Specific | F58: 0 | G58: 10.5 | H58: 0
B59: 6UA-02363 | C59: Windows Small Bus CAL Ste Platform | D59: Non-Current | E59: Non-Specific | F59: 0 | G59: 21 | H59: 0
B60: 6VA-02635 | C60: Windows Small Bus Svr Prem CAL Ste Platform UTD | D60: Current (UTD) | E60: Non-Specific | F60: 0 | G60: 25.8 | H60: 0
B61: 6VA-02553 | C61: Windows Small Bus Svr Prem CAL Ste Platform | D61: Non-Current | E61: Non-Specific | F61: 0 | G61: 51.6 | H61: 0
B62: 6YA-01764 | C62: Windows Essntl Bus CAL Ste Platform | D62: Non-Current | E62: Non-Specific | F62: 0 | G62: 25.2 | H62: 0
B63: 7AA-02045 | C63: Windows Essntl Bus Prem CAL Ste Platform | D63: Non-Current | E63: Non-Specific | F63: 0 | G63: 60.9 | H63: 0
B64: =B44 -> 79P-02404 | C64: Office Professional Plus Platform UTD | D64: Current (UTD) | E64: Non-Specific | F64: 0 | G64: 91.875 | H64: 0
B65: 79P-02338 | C65: Office Professional Plus Platform | D65: Non-Current | E65: Non-Specific | F65: 50 | G65: 183.75 | H65: 9187.5
B66: FQC-02154 | C66: Win Pro Upgr Platform UTD | D66: Current (UTD) | E66: Non-Specific | F66: 0 | G66: 33.825 | H66: 0
B67: FQC-02152 | C67: Win Pro Upgr Platform | D67: Non-Current | E67: Non-Specific | F67: 50 | G67: 67.65 | H67: 3382.5
B68: FQC-02928 | C68: Win Pro Upgr w/MDOP Platform UTD | D68: Current (UTD) | E68: Non-Specific | F68: 0 | G68: 39.15 | H68: 0
B69: FQC-02924 | C69: Win Pro Upgr w/MDOP Platform | D69: Non-Current | E69: Non-Specific | F69: 0 | G69: 78.3 | H69: 0
G70: Anul 1 Total | H70: =SUM(H54:H69) -> 15675
A72: Anul 2 | B72: SKU | C72: Descriere | D72: Current/Non-Current | E72: Nivel | F72: Cantitate | G72: Pret | H72: Total
B73: =B55 -> W06-01504 | C73: =C55 -> Core CAL (Client Access License) Platform | D73: N/A | E73: =E55 -> Non-Specific | F73: =F54+F55 -> 50 | G73: =G55 -> 62.1 | H73: =F73*G73 -> 3105
B74: =B57 -> 76A-00495 | C74: =C57 -> Enterprise CAL Platform | D74: N/A | E74: =E57 -> Non-Specific | F74: =F56+F57 -> 0 | G74: =G57 -> 165.6 | H74: =F74*G74 -> 0
B75: =B59 -> 6UA-02363 | C75: =C59 -> Windows Small Bus CAL Ste Platform | D75: N/A | E75: =E59 -> Non-Specific | F75: =F58+F59 -> 0 | G75: =G59 -> 21 | H75: 0
B76: =B61 -> 6VA-02553 | C76: Windows Small Bus Svr Prem CAL Ste Platform | D76: N/A | E76: =E61 -> Non-Specific | F76: =F60+F61 -> 0 | G76: =G61 -> 51.6 | H76: 0
B77: 6YA-01764 | C77: Windows Essntl Bus CAL Ste Platform | D77: N/A | E77: =E62 -> Non-Specific | F77: =F62 -> 0 | G77: =G62 -> 25.2 | H77: =F77*G77 -> 0
B78: 7AA-02045 | C78: Windows Essntl Bus Prem CAL Ste Platform | D78: N/A | E78: =E63 -> Non-Specific | F78: =F63 -> 0 | G78: =G63 -> 60.9 | H78: =F78*G78 -> 0
B79: =B65 -> 79P-02338 | C79: =C65 -> Office Professional Plus Platform | D79: N/A | E79: =E65 -> Non-Specific | F79: =F64+F65 -> 50 | G79: =G65 -> 183.75 | H79: =F79*G79 -> 9187.5
B80: =B67 -> FQC-02152 | C80: =C67 -> Win Pro Upgr Platform | D80: N/A | E80: =E67 -> Non-Specific | F80: =F66+F67 -> 50 | G80: =G67 -> 67.65 | H80: 3382.5
B81: =B69 -> FQC-02924 | C81: =C69 -> Win Pro Upgr w/MDOP Platform | D81: N/A | E81: =E69 -> Non-Specific | F81: =F68+F69 -> 0 | G81: =G69 -> 78.3 | H81: 0
G82: Anul 2 Total | H82: =SUM(H73:H81) -> 15675
A84: Anul 3 | B84: SKU | C84: Descriere | D84: Current/Non-Current | E84: Nivel | F84: Cantitate | G84: Pret | H84: Total
B85: =B73 -> W06-01504 | C85: Core CAL (Client Access License) Platform | D85: N/A | E85: Non-Specific | F85: 50 | G85: 62.1 | H85: 3105
B86: 76A-00495 | C86: Enterprise CAL Platform | D86: N/A | E86: Non-Specific | F86: 0 | G86: 165.6 | H86: 0
B87: 6UA-02363 | C87: Windows Small Bus CAL Ste Platform | D87: N/A | E87: Non-Specific | F87: 0 | G87: 21 | H87: 0
B88: 6VA-02553 | C88: Windows Small Bus Svr Prem CAL Ste Platform | D88: N/A | E88: Non-Specific | F88: 0 | G88: 51.6 | H88: 0
B89: 6YA-01764 | C89: Windows Essntl Bus CAL Ste Platform | D89: N/A | E89: Non-Specific | F89: 0 | G89: 25.2 | H89: 0
B90: 7AA-02045 | C90: Windows Essntl Bus Prem CAL Ste Platform | D90: N/A | E90: Non-Specific | F90: 0 | G90: 60.9 | H90: 0
B91: 79P-02338 | C91: Office Professional Plus Platform | D91: N/A | E91: Non-Specific | F91: 50 | G91: 183.75 | H91: 9187.5
B92: FQC-02152 | C92: Win Pro Upgr Platform | D92: N/A | E92: Non-Specific | F92: 50 | G92: 67.65 | H92: 3382.5
B93: FQC-02924 | C93: Win Pro Upgr w/MDOP Platform | D93: N/A | E93: Non-Specific | F93: 0 | G93: 78.3 | H93: 0
G94: Anul 3 Total | H94: =SUM(H85:H93) -> 15675
B97: Produse aditionale - Toate produsele aditionale au varianta de licenta si limba: ALL Languages
B98: Produse aditionale neincluse in comanda initiala a contractului se pot comanda ulterior la preturile in vigoare in luna de comanda, preturi ce pot fi diferite fata de cele de mai jos
A99: Aplicatii | B99: SKU | C99: Descriere | D99: Nivel | E99: Pret | F99: Cantitate | G99: Total | H99: Nr useri/ nr srvs | I99: Obs
B100: =VLOOKUP(O100,'OVS Price List'!A:C,2,0) -> 077-03627 | C100: Access | D100: =IF(sysEligiblePCs<=249,"Non-Specific","C") -> Non-Specific | E100: =IF(ISERROR(B100),0,VLOOKUP(O100,'OVS Price List'!A:Q,16,0)) -> 97.5 | G100: =IF(F100<>0,E100*F100,0) -> 0 | O100: =CONCATENATE(C100,D100," ",$IP$5) -> Access Non-Specific All Languages
B101: =VLOOKUP(O101,'OVS Price List'!A:C,2,0) -> 689-00741 | C101: AutoRoute Euro | D101: Non-Specific | E101: =IF(ISERROR(B101),0,VLOOKUP(O101,'OVS Price List'!A:Q,16,0)) -> 16.05 | G101: =IF(F101<>0,E101*F101,0) -> 0 | O101: =CONCATENATE(C101,D101," ",$IP$5) -> AutoRoute Euro Non-Specific All Languages
B102: =VLOOKUP(O102,'OVS Price List'!A:C,2,0) -> Q56-00264 | C102: Entourage | D102: Non-Specific | E102: =IF(ISERROR(B102),0,VLOOKUP(O102,'OVS Price List'!A:Q,16,0)) -> 35.4 | G102: =IF(F102<>0,E102*F102,0) -> 0 | O102: Entourage Non-Specific All Languages
B103: =VLOOKUP(O103,'OVS Price List'!A:C,2,0) -> 065-04766 | C103: Excel | D103: Non-Specific | E103: =IF(ISERROR(B103),0,VLOOKUP(O103,'OVS Price List'!A:Q,16,0)) -> 95.25 | G103: 0 | O103: Excel Non-Specific All Languages
B104: =VLOOKUP(O104,'OVS Price List'!A:C,2,0) -> D46-00525 | C104: Excel Mac | D104: Non-Specific | E104: =IF(ISERROR(B104),0,VLOOKUP(O104,'OVS Price List'!A:Q,16,0)) -> 109.95 | G104: 0 | O104: Excel Mac Non-Specific All Languages
B105: =VLOOKUP(O105,'OVS Price List'!A:C,2,0) -> NKF-00397 | C105: Expression Studio Ultimate | D105: Non-Specific | E105: =IF(ISERROR(B105),0,VLOOKUP(O105,'OVS Price List'!A:Q,16,0)) -> 246.15 | G105: 0 | O105: Expression Studio Ultimate Non-Specific All Languages
B106: =VLOOKUP(O106,'OVS Price List'!A:C,2,0) -> NHF-00171 | C106: Expression Studio Web Professional | D106: Non-Specific | E106: =IF(ISERROR(B106),0,VLOOKUP(O106,'OVS Price List'!A:Q,16,0)) -> 61.2 | G106: 0 | O106: Expression Studio Web Professional Non-Specific All Languages
B107: =VLOOKUP(O107,'OVS Price List'!A:C,2,0) -> 47F-00109 | C107: Expression Encoder Pro | D107: Non-Specific | E107: =IF(ISERROR(B107),0,VLOOKUP(O107,'OVS Price List'!A:Q,16,0)) -> 24.6 | G107: =IF(F107<>0,E107*F107,0) -> 0 | O107: =CONCATENATE(C107,D107," ",$IP$5) -> Expression Encoder Pro Non-Specific All Languages
B108: =VLOOKUP(O108,'OVS Price List'!A:C,2,0) -> S27-01198 | C108: InfoPath | D108: Non-Specific | E108: =IF(ISERROR(B108),0,VLOOKUP(O108,'OVS Price List'!A:Q,16,0)) -> 91.5 | G108: 0 | O108: InfoPath Non-Specific All Languages
B109: =VLOOKUP(O109,'OVS Price List'!A:C,2,0) -> B21-00756 | C109: MapPoint | D109: Non-Specific | E109: =IF(ISERROR(B109),0,VLOOKUP(O109,'OVS Price List'!A:Q,16,0)) -> 122.7 | G109: 0 | O109: MapPoint Non-Specific All Languages
B110: =VLOOKUP(O110,'OVS Price List'!A:C,2,0) -> ZS3-00250 | C110: MapPoint Fleet | D110: Non-Specific | E110: =IF(ISERROR(B110),0,VLOOKUP(O110,'OVS Price List'!A:Q,16,0)) -> 603.15 | G110: 0 | O110: MapPoint Fleet Non-Specific All Languages
B111: =VLOOKUP(O111,'OVS Price List'!A:C,2,0) -> G71-03832 | C111: MSDN OS | D111: Non-Specific | E111: =IF(ISERROR(B111),0,VLOOKUP(O111,'OVS Price List'!A:Q,16,0)) -> 530.1 | G111: 0 | O111: MSDN OS Non-Specific All Languages
B112: =VLOOKUP(O112,'OVS Price List'!A:C,2,0) -> B6I-00342 | C112: Office Communicator | D112: Non-Specific | E112: =IF(ISERROR(B112),0,VLOOKUP(O112,'OVS Price List'!A:Q,16,0)) -> 16.05 | G112: 0 | O112: Office Communicator Non-Specific All Languages
B113: =VLOOKUP(O113,'OVS Price List'!A:C,2,0) -> ZUD-00348 | C113: SharePoint Workspace | D113: Non-Specific | E113: =IF(ISERROR(B113),0,VLOOKUP(O113,'OVS Price List'!A:Q,16,0)) -> 66.9 | G113: 0 | O113: SharePoint Workspace Non-Specific All Languages
B114: =VLOOKUP(O114,'OVS Price List'!A:C,2,0) -> 731-01323 | C114: Office Mac | D114: Non-Specific | E114: =IF(ISERROR(B114),0,VLOOKUP(O114,'OVS Price List'!A:Q,16,0)) -> 193.35 | G114: 0 | O114: Office Mac Non-Specific All Languages
B115: =VLOOKUP(O115,'OVS Price List'!A:C,2,0) -> 021-09106 | C115: Office Standard | D115: Non-Specific | E115: =IF(ISERROR(B115),0,VLOOKUP(O115,'OVS Price List'!A:Q,16,0)) -> 193.35 | G115: 0 | O115: Office Standard Non-Specific All Languages
B116: =VLOOKUP(O116,'OVS Price List'!A:C,2,0) -> S26-01776 | C116: OneNote | D116: Non-Specific | E116: =IF(ISERROR(B116),0,VLOOKUP(O116,'OVS Price List'!A:Q,16,0)) -> 36.45 | G116: 0 | O116: OneNote Non-Specific All Languages
B117: =VLOOKUP(O117,'OVS Price List'!A:C,2,0) -> 543-02834 | C117: Outlook | D117: Non-Specific | E117: =IF(ISERROR(B117),0,VLOOKUP(O117,'OVS Price List'!A:Q,16,0)) -> 40.95 | G117: 0 | O117: Outlook Non-Specific All Languages
B118: =VLOOKUP(O118,'OVS Price List'!A:C,2,0) -> 164-03900 | C118: Publisher | D118: Non-Specific | E118: =IF(ISERROR(B118),0,VLOOKUP(O118,'OVS Price List'!A:Q,16,0)) -> 67.8 | G118: 0 | O118: Publisher Non-Specific All Languages
B119: =VLOOKUP(O119,'OVS Price List'!A:C,2,0) -> 076-03609 | C119: Project | D119: Non-Specific | E119: =IF(ISERROR(B119),0,VLOOKUP(O119,'OVS Price List'!A:Q,16,0)) -> 278.55 | G119: 0 | O119: Project Non-Specific All Languages
B120: =VLOOKUP(O120,'OVS Price List'!A:C,2,0) -> H30-01671 | C120: Project Professional | D120: Non-Specific | E120: =IF(ISERROR(B120),0,VLOOKUP(O120,'OVS Price List'!A:Q,16,0)) -> 464.4 | G120: 0 | O120: Project Professional Non-Specific All Languages
B121: =VLOOKUP(O121,'OVS Price List'!A:C,2,0) -> 079-02674 | C121: PowerPoint | D121: Non-Specific | E121: =IF(ISERROR(B121),0,VLOOKUP(O121,'OVS Price List'!A:Q,16,0)) -> 95.25 | G121: 0 | O121: PowerPoint Non-Specific All Languages
B122: =VLOOKUP(O122,'OVS Price List'!A:C,2,0) -> D47-00347 | C122: PowerPoint Mac | D122: Non-Specific | E122: =IF(ISERROR(B122),0,VLOOKUP(O122,'OVS Price List'!A:Q,16,0)) -> 109.95 | G122: 0 | O122: PowerPoint Mac Non-Specific All Languages
B123: =VLOOKUP(O123,'OVS Price List'!A:C,2,0) -> JT9-00044 | C123: TechNet Plus Direct | D123: Non-Specific | E123: =IF(ISERROR(B123),0,VLOOKUP(O123,'OVS Price List'!A:Q,16,0)) -> 309.6 | G123: 0 | O123: TechNet Plus Direct Non-Specific All Languages
B124: =VLOOKUP(O124,'OVS Price List'!A:C,2,0) -> D87-02619 | C124: Visio Professional | D124: Non-Specific | E124: =IF(ISERROR(B124),0,VLOOKUP(O124,'OVS Price List'!A:Q,16,0)) -> 238.35 | G124: 0 | O124: Visio Professional Non-Specific All Languages
B125: =VLOOKUP(O125,'OVS Price List'!A:C,2,0) -> D86-02606 | C125: Visio Standard | D125: Non-Specific | E125: =IF(ISERROR(B125),0,VLOOKUP(O125,'OVS Price List'!A:Q,16,0)) -> 107.85 | G125: 0 | O125: Visio Standard Non-Specific All Languages
B126: =VLOOKUP(O126,'OVS Price List'!A:C,2,0) -> 77D-00053 | C126: Visual Studio Pro w/MSDN | D126: Non-Specific | E126: =IF(ISERROR(B126),0,VLOOKUP(O126,'OVS Price List'!A:Q,16,0)) -> 580.35 | G126: 0 | O126: Visual Studio Pro w/MSDN Non-Specific All Languages
B127: =VLOOKUP(O127,'OVS Price List'!A:C,2,0) -> 6KD-00053 | C127: Visual Studio Pro w/MSDN Emb | D127: Non-Specific | E127: =IF(ISERROR(B127),0,VLOOKUP(O127,'OVS Price List'!A:Q,16,0)) -> 580.35 | G127: 0 | O127: Visual Studio Pro w/MSDN Emb Non-Specific All Languages
B128: =VLOOKUP(O128,'OVS Price List'!A:C,2,0) -> 9ED-00079 | C128: Visual Studio Prem w/MSDN | D128: Non-Specific | E128: =IF(ISERROR(B128),0,VLOOKUP(O128,'OVS Price List'!A:Q,16,0)) -> 2330.7 | G128: 0 | O128: Visual Studio Prem w/MSDN Non-Specific All Languages
B129: =VLOOKUP(O129,'OVS Price List'!A:C,2,0) -> 9JD-00097 | C129: Visual Studio Ult w/MSDN | D129: Non-Specific | E129: =IF(ISERROR(B129),0,VLOOKUP(O129,'OVS Price List'!A:Q,16,0)) -> 5083.95 | G129: 0 | O129: Visual Studio Ult w/MSDN Non-Specific All Languages
B130: =VLOOKUP(O130,'OVS Price List'!A:C,2,0) -> L5D-00104 | C130: Visual Studio Test Pro w/MSDN | D130: Non-Specific | E130: =IF(ISERROR(B130),0,VLOOKUP(O130,'OVS Price List'!A:Q,16,0)) -> 939.15 | G130: 0 | O130: Visual Studio Test Pro w/MSDN Non-Specific All Languages
B131: =VLOOKUP(O131,'OVS Price List'!A:C,2,0) -> KKF-00298 | C131: Visual Studio Team Explrer Everywhr | D131: Non-Specific | E131: =IF(ISERROR(B131),0,VLOOKUP(O131,'OVS Price List'!A:Q,16,0)) -> 123.3 | G131: 0 | O131: Visual Studio Team Explrer Everywhr Non-Specific All Languages
B132: =VLOOKUP(O132,'OVS Price List'!A:C,2,0) -> 059-05310 | C132: Word | D132: Non-Specific | E132: =IF(ISERROR(B132),0,VLOOKUP(O132,'OVS Price List'!A:Q,16,0)) -> 95.25 | G132: 0 | O132: Word Non-Specific All Languages
B133: =VLOOKUP(O133,'OVS Price List'!A:C,2,0) -> D48-00675 | C133: Word Mac | D133: Non-Specific | E133: =IF(ISERROR(B133),0,VLOOKUP(O133,'OVS Price List'!A:Q,16,0)) -> 109.95 | G133: 0 | O133: Word Mac Non-Specific All Languages
A134: Sys | B134: =VLOOKUP(O134,'OVS Price List'!A:C,2,0) -> WSB-00074 | C134: Desktop Optimization Pack for SA (Per Device; monthly) | D134: Non-Specific | E134: =IF(ISERROR(B134),0,VLOOKUP(O134,'OVS Price List'!A:Q,16,0)) -> 1.0125 | G134: =IF(F134<>0,E134*F134*H134,0) -> 0 | H134: 12 | I134: nr de luni pana la urmatoarea aniversare, cu care se va inmulti automat cantitatea | O134: Desktop Optimization Pack for SA (Per Device; monthly) Non-Specific All Languages
B135: =VLOOKUP(O135,'OVS Price List'!A:C,2,0) -> 4ZF-00002 | C135: Virtual Desktop Access (Per Device; monthly) | D135: Non-Specific | E135: =IF(ISERROR(B135),0,VLOOKUP(O135,'OVS Price List'!A:Q,16,0)) -> 9.6 | G135: =IF(F135<>0,E135*F135*H135,0) -> 0 | H135: 12 | I135: nr de luni pana la urmatoarea aniversare, cu care se va inmulti automat cantitatea | O135: Virtual Desktop Access (Per Device; monthly) Non-Specific All Languages
A136: Servere | B136: =VLOOKUP(O136,'OVS Price List'!A:C,2,0) -> 73F-00020 | C136: Antigen Enterprise Manager (Services; monthly) | D136: Non-Specific | E136: =IF(ISERROR(B136),0,VLOOKUP(O136,'OVS Price List'!A:Q,16,0)) -> 9.275 | G136: =IF(F136<>0,E136*F136*H136,0) -> 0 | H136: 12 | I136: nr de luni pana la urmatoarea aniversare, cu care se va inmulti automat cantitatea | O136: Antigen Enterprise Manager (Services; monthly) Non-Specific All Languages
B137: =VLOOKUP(O137,'OVS Price List'!A:C,2,0) -> XRA-00107 | C137: BizTalk Adapter Pack 1 Proc Lic | D137: Non-Specific | E137: =IF(ISERROR(B137),0,VLOOKUP(O137,'OVS Price List'!A:Q,16,0)) -> 2663.55 | G137: 0 | O137: BizTalk Adapter Pack 1 Proc Lic Non-Specific All Languages
B138: =VLOOKUP(O138,'OVS Price List'!A:C,2,0) -> HJA-00352 | C138: BizTalk Server Branch 1 Proc Lic | D138: Non-Specific | E138: =IF(ISERROR(B138),0,VLOOKUP(O138,'OVS Price List'!A:Q,16,0)) -> 814.5 | G138: 0 | O138: BizTalk Server Branch 1 Proc Lic Non-Specific All Languages
B139: =VLOOKUP(O139,'OVS Price List'!A:C,2,0) -> R04-00558 | C139: BizTalk Server Developer | D139: Non-Specific | E139: =IF(ISERROR(B139),0,VLOOKUP(O139,'OVS Price List'!A:Q,16,0)) -> 225.75 | G139: 0 | O139: BizTalk Server Developer Non-Specific All Languages
B140: =VLOOKUP(O140,'OVS Price List'!A:C,2,0) -> F52-01292 | C140: BizTalk Server Enterprise 1 Proc Lic | D140: Non-Specific | E140: =IF(ISERROR(B140),0,VLOOKUP(O140,'OVS Price List'!A:Q,16,0)) -> 15847.2 | G140: 0 | O140: BizTalk Server Enterprise 1 Proc Lic Non-Specific All Languages
B141: =VLOOKUP(O141,'OVS Price List'!A:C,2,0) -> D75-00851 | C141: BizTalk Server Standard 1 Proc Lic | D141: Non-Specific | E141: =IF(ISERROR(B141),0,VLOOKUP(O141,'OVS Price List'!A:Q,16,0)) -> 3848.25 | G141: 0 | O141: BizTalk Server Standard 1 Proc Lic Non-Specific All Languages
B142: =VLOOKUP(O142,'OVS Price List'!A:C,2,0) -> DHD-00059 | C142: BizTalk Svr Ent RFID 1 Proc Lic | D142: =IF(sysEligiblePCs<=249,"Non-Specific","C") -> Non-Specific | E142: =IF(ISERROR(B142),0,VLOOKUP(O142,'OVS Price List'!A:Q,16,0)) -> 2253.3 | G142: 0 | O142: BizTalk Svr Ent RFID 1 Proc Lic Non-Specific All Languages
B143: =VLOOKUP(O143,'OVS Price List'!A:C,2,0) -> G20-00360 | C143: Commerce Server Enterprise 1 Proc Lic | D143: Non-Specific | E143: =IF(ISERROR(B143),0,VLOOKUP(O143,'OVS Price List'!A:Q,16,0)) -> 9055.05 | G143: 0 | O143: Commerce Server Enterprise 1 Proc Lic Non-Specific All Languages
B144: =VLOOKUP(O144,'OVS Price List'!A:C,2,0) -> 532-01151 | C144: Commerce Server Standard 1 Proc Lic | D144: Non-Specific | E144: =IF(ISERROR(B144),0,VLOOKUP(O144,'OVS Price List'!A:Q,16,0)) -> 3168.75 | G144: 0 | O144: Commerce Server Standard 1 Proc Lic Non-Specific All Languages
B145: =VLOOKUP(O145,'OVS Price List'!A:C,2,0) -> JS6-00187 | C145: Duet for MS Office and SAP CAL | D145: Non-Specific | E145: =IF(ISERROR(B145),0,VLOOKUP(O145,'OVS Price List'!A:Q,16,0)) -> 50.7 | G145: 0 | O145: Duet for MS Office and SAP CAL Non-Specific All Languages
B146: =VLOOKUP(O146,'OVS Price List'!A:C,2,0) -> JS5-00094 | C146: Duet for MS Office SAP Svr | D146: =IF(sysEligiblePCs<=249,"Non-Specific","C") -> Non-Specific | E146: =IF(ISERROR(B146),0,VLOOKUP(O146,'OVS Price List'!A:Q,16,0)) -> 50.7 | G146: 0 | O146: =CONCATENATE(C146,D146," ",$IP$5) -> Duet for MS Office SAP Svr Non-Specific All Languages
B147: =VLOOKUP(O147,'OVS Price List'!A:C,2,0) -> QYA-00046 | C147: Dynamics CRM Full Use Add CAL | D147: Non-Specific | E147: =IF(ISERROR(B147),0,VLOOKUP(O147,'OVS Price List'!A:Q,16,0)) -> 220.8 | G147: 0 | O147: Dynamics CRM Full Use Add CAL Non-Specific All Languages
B148: =VLOOKUP(O148,'OVS Price List'!A:C,2,0) -> QHA-00007 | C148: Dynamics CRM FU Add Extrnl Con | D148: Non-Specific | E148: =IF(ISERROR(B148),0,VLOOKUP(O148,'OVS Price List'!A:Q,16,0)) -> 946.5 | G148: 0 | O148: Dynamics CRM FU Add Extrnl Con Non-Specific All Languages
B149: =VLOOKUP(O149,'OVS Price List'!A:C,2,0) -> ZFA-00409 | C149: Dynamics CRM CAL | D149: Non-Specific | E149: =IF(ISERROR(B149),0,VLOOKUP(O149,'OVS Price List'!A:Q,16,0)) -> 314.85 | G149: 0 | O149: Dynamics CRM CAL Non-Specific All Languages
B150: =VLOOKUP(O150,'OVS Price List'!A:C,2,0) -> QJA-00839 | C150: Dynamics CRM Enterprise Svr | D150: Non-Specific | E150: =IF(ISERROR(B150),0,VLOOKUP(O150,'OVS Price List'!A:Q,16,0)) -> 1577.4 | G150: 0 | O150: Dynamics CRM Enterprise Svr Non-Specific All Languages
B151: =VLOOKUP(O151,'OVS Price List'!A:C,2,0) -> ZGA-00228 | C151: Dynamics CRM External Connector | D151: Non-Specific | E151: =IF(ISERROR(B151),0,VLOOKUP(O151,'OVS Price List'!A:Q,16,0)) -> 1577.4 | G151: =IF(F151<>0,E151*F151,0) -> 0 | O151: Dynamics CRM External Connector Non-Specific All Languages
B152: =VLOOKUP(O152,'OVS Price List'!A:C,2,0) -> QZA-00254 | C152: Dynamics CRM Limited CAL | D152: Non-Specific | E152: =IF(ISERROR(B152),0,VLOOKUP(O152,'OVS Price List'!A:Q,16,0)) -> 94.5 | G152: 0 | O152: Dynamics CRM Limited CAL Non-Specific All Languages
B153: =VLOOKUP(O153,'OVS Price List'!A:C,2,0) -> Q5A-00007 | C153: Dynamics CRM Ltd Extrnl Con | D153: Non-Specific | E153: =IF(ISERROR(B153),0,VLOOKUP(O153,'OVS Price List'!A:Q,16,0)) -> 630.9 | G153: 0 | O153: Dynamics CRM Ltd Extrnl Con Non-Specific All Languages
B154: =VLOOKUP(O154,'OVS Price List'!A:C,2,0) -> QCA-01050 | C154: Dynamics CRM Professional Svr 5 Clts | D154: Non-Specific | E154: =IF(ISERROR(B154),0,VLOOKUP(O154,'OVS Price List'!A:Q,16,0)) -> 2205.9 | G154: 0 | O154: Dynamics CRM Professional Svr 5 Clts Non-Specific All Languages
B155: =VLOOKUP(O155,'OVS Price List'!A:C,2,0) -> QCA-00729 | C155: Dynamics CRM Professional Svr | D155: Non-Specific | E155: =IF(ISERROR(B155),0,VLOOKUP(O155,'OVS Price List'!A:Q,16,0)) -> 630.9 | F155: 0 | G155: 0 | O155: Dynamics CRM Professional SvrNon-Specific All Languages
B156: =VLOOKUP(O156,'OVS Price List'!A:C,2,0) -> QAA-00083 | C156: Dynamics CRM Workgroup Svr | D156: Non-Specific | E156: =IF(ISERROR(B156),0,VLOOKUP(O156,'OVS Price List'!A:Q,16,0)) -> 788.55 | G156: 0 | O156: Dynamics CRM Workgroup Svr Non-Specific All Languages
B157: =VLOOKUP(O157,'OVS Price List'!A:C,2,0) -> PGI-00144 | C157: Exchange Enterprise CAL w Svc | D157: Non-Specific | E157: =IF(ISERROR(B157),0,VLOOKUP(O157,'OVS Price List'!A:Q,16,0)) -> 33.6 | G157: 0 | O157: Exchange Enterprise CAL w Svc Non-Specific All Languages
B158: =VLOOKUP(O158,'OVS Price List'!A:C,2,0) -> 74P-00007 | C158: MS Exchange Hosted Archive (monthly) | D158: Non-Specific | E158: =IF(ISERROR(B158),0,VLOOKUP(O158,'OVS Price List'!A:Q,16,0)) -> 5.0125 | G158: =IF(F158<>0,E158*F158*H158,0) -> 0 | H158: 12 | I158: nr de luni pana la urmatoarea aniversare, cu care se va inmulti automat cantitatea | O158: MS Exchange Hosted Archive (monthly) Non-Specific All Languages
B159: =VLOOKUP(O159,'OVS Price List'!A:C,2,0) -> 74G-00007 | C159: MS Exchange Hosted Encryption (monthly) | D159: Non-Specific | E159: =IF(ISERROR(B159),0,VLOOKUP(O159,'OVS Price List'!A:Q,16,0)) -> 2.1375 | G159: =IF(F159<>0,E159*F159*H159,0) -> 0 | H159: 12 | I159: nr de luni pana la urmatoarea aniversare, cu care se va inmulti automat cantitatea | O159: MS Exchange Hosted Encryption (monthly) Non-Specific All Languages
B160: =VLOOKUP(O160,'OVS Price List'!A:C,2,0) -> 395-03516 | C160: Exchange Server - Enterprise | D160: Non-Specific | E160: =IF(ISERROR(B160),0,VLOOKUP(O160,'OVS Price List'!A:Q,16,0)) -> 1814.25 | G160: =IF(F160<>0,E160*F160,0) -> 0 | O160: Exchange Server - Enterprise Non-Specific All Languages
B161: =VLOOKUP(O161,'OVS Price List'!A:C,2,0) -> 394-00837 | C161: Exchange Svr ExtrnConn | D161: Non-Specific | E161: =IF(ISERROR(B161),0,VLOOKUP(O161,'OVS Price List'!A:Q,16,0)) -> 22639.05 | G161: 0 | O161: Exchange Svr ExtrnConn Non-Specific All Languages
B162: =VLOOKUP(O162,'OVS Price List'!A:C,2,0) -> 312-03195 | C162: Exchange Server - Standard | D162: Non-Specific | E162: =IF(ISERROR(B162),0,VLOOKUP(O162,'OVS Price List'!A:Q,16,0)) -> 316.95 | G162: 0 | O162: Exchange Server - Standard Non-Specific All Languages
B163: =VLOOKUP(O163,'OVS Price List'!A:C,2,0) -> UFB-00063 | C163: Forefront Client Security (Per User; monthly) | D163: Non-Specific | E163: =IF(ISERROR(B163),0,VLOOKUP(O163,'OVS Price List'!A:Q,16,0)) -> 1.2 | G163: =IF(F163<>0,E163*F163*H163,0) -> 0 | H163: 12 | I163: nr de luni pana la urmatoarea aniversare, cu care se va inmulti automat cantitatea | O163: Forefront Client Security (Per User; monthly) Non-Specific All Languages
B164: =VLOOKUP(O164,'OVS Price List'!A:C,2,0) -> FTZ-00050 | C164: Forefront Client Sec Mgt Cnsl (monthly) | D164: Non-Specific | E164: =IF(ISERROR(B164),0,VLOOKUP(O164,'OVS Price List'!A:Q,16,0)) -> 9.2875 | G164: 0 | H164: 12 | I164: nr de luni pana la urmatoarea aniversare, cu care se va inmulti automat cantitatea | O164: Forefront Client Sec Mgt Cnsl (monthly) Non-Specific All Languages
B165: =VLOOKUP(O165,'OVS Price List'!A:C,2,0) -> FTZ-00017 | C165: Forefront Client Sec Mgt Cnsl (wSQL; monthly) | D165: Non-Specific | E165: =IF(ISERROR(B165),0,VLOOKUP(O165,'OVS Price List'!A:Q,16,0)) -> 233.9375 | G165: 0 | H165: 12 | I165: nr de luni pana la urmatoarea aniversare, cu care se va inmulti automat cantitatea | O165: Forefront Client Sec Mgt Cnsl (wSQL; monthly) Non-Specific All Languages
B166: =VLOOKUP(O166,'OVS Price List'!A:C,2,0) -> 5KD-00002 | C166: Forefront Protection Exchange Svr Ext Conn (monthly) | D166: Non-Specific | E166: =IF(ISERROR(B166),0,VLOOKUP(O166,'OVS Price List'!A:Q,16,0)) -> 1579.8 | G166: 0 | H166: 12 | I166: nr de luni pana la urmatoarea aniversare, cu care se va inmulti automat cantitatea | O166: Forefront Protection Exchange Svr Ext Conn (monthly) Non-Specific All Languages
B167: =VLOOKUP(O167,'OVS Price List'!A:C,2,0) -> 5FD-00038 | C167: Forefront Protection Exchange Svr (Per User; monthly) | D167: Non-Specific | E167: =IF(ISERROR(B167),0,VLOOKUP(O167,'OVS Price List'!A:Q,16,0)) -> 1.4 | G167: 0 | H167: 12 | I167: nr de luni pana la urmatoarea aniversare, cu care se va inmulti automat cantitatea | O167: Forefront Protection Exchange Svr (Per User; monthly) Non-Specific All Languages
B168: =VLOOKUP(O168,'OVS Price List'!A:C,2,0) -> 74H-00145 | C168: Forefront Online Protection for Exchange (monthly) PROMO | D168: Non-Specific | E168: =IF(ISERROR(B168),0,VLOOKUP(O168,'OVS Price List'!A:Q,16,0)) -> 1.4 | G168: 0 | H168: 12 | I168: nr de luni pana la urmatoarea aniversare, cu care se va inmulti automat cantitatea | O168: Forefront Online Protection for Exchange (monthly) PROMO Non-Specific All Languages
B169: =VLOOKUP(O169,'OVS Price List'!A:C,2,0) -> PFF-00047 | C169: Forefront Sec SharePoint (IntrntSitesAdd-on; monthly) | D169: Non-Specific | E169: =IF(ISERROR(B169),0,VLOOKUP(O169,'OVS Price List'!A:Q,16,0)) -> 1639.35 | G169: 0 | H169: 12 | I169: nr de luni pana la urmatoarea aniversare, cu care se va inmulti automat cantitatea | O169: Forefront Sec SharePoint (IntrntSitesAdd-on; monthly) Non-Specific All Languages
B170: =VLOOKUP(O170,'OVS Price List'!A:C,2,0) -> PFF-00068 | C170: Forefront Sec SharePoint (Per User; monthly) | D170: Non-Specific | E170: =IF(ISERROR(B170),0,VLOOKUP(O170,'OVS Price List'!A:Q,16,0)) -> 0.65 | G170: 0 | H170: 12 | I170: nr de luni pana la urmatoarea aniversare, cu care se va inmulti automat cantitatea | O170: Forefront Sec SharePoint (Per User; monthly) Non-Specific All Languages
B171: =VLOOKUP(O171,'OVS Price List'!A:C,2,0) -> 9SE-00042 | C171: Forefront Sec Suite (Per User; monthly) | D171: Non-Specific | E171: =IF(ISERROR(B171),0,VLOOKUP(O171,'OVS Price List'!A:Q,16,0)) -> 5.0625 | G171: 0 | H171: 12 | I171: nr de luni pana la urmatoarea aniversare, cu care se va inmulti automat cantitatea | O171: Forefront Sec Suite (Per User; monthly) Non-Specific All Languages
B172: =VLOOKUP(O172,'OVS Price List'!A:C,2,0) -> HTC-00052 | C172: Forefront Sec Off Comm Svr (Per User; monthly) | D172: Non-Specific | E172: =IF(ISERROR(B172),0,VLOOKUP(O172,'OVS Price List'!A:Q,16,0)) -> 0.65 | G172: 0 | H172: 12 | I172: nr de luni pana la urmatoarea aniversare, cu care se va inmulti automat cantitatea | O172: Forefront Sec Off Comm Svr (Per User; monthly) Non-Specific All Languages
B173: =VLOOKUP(O173,'OVS Price List'!A:C,2,0) -> HTC-00090 | C173: Forefront Sec Off Comm Svr ExtConnector AddOn (Services; monthly) | D173: Non-Specific | E173: =IF(ISERROR(B173),0,VLOOKUP(O173,'OVS Price List'!A:Q,16,0)) -> 1639.35 | G173: =IF(F173<>0,E173*F173*H173,0) -> 0 | H173: 12 | I173: nr de luni pana la urmatoarea aniversare, cu care se va inmulti automat cantitatea | O173: Forefront Sec Off Comm Svr ExtConnector AddOn (Services; monthly) Non-Specific All Languages
B174: =VLOOKUP(O174,'OVS Price List'!A:C,2,0) -> 4VD-00074 | C174: Forefront TMG Enterprise | D174: Non-Specific | E174: =IF(ISERROR(B174),0,VLOOKUP(O174,'OVS Price List'!A:Q,16,0)) -> 2580.45 | G174: 0 | O174: Forefront TMG Enterprise Non-Specific All Languages
B175: =VLOOKUP(O175,'OVS Price List'!A:C,2,0) -> 4WD-00098 | C175: Forefront TMG Standard | D175: Non-Specific | E175: =IF(ISERROR(B175),0,VLOOKUP(O175,'OVS Price List'!A:Q,16,0)) -> 586.95 | G175: 0 | O175: Forefront TMG Standard Non-Specific All Languages
B176: =VLOOKUP(O176,'OVS Price List'!A:C,2,0) -> 5TD-00002 | C176: Forefront TMG Web Protection Service (Per User; monthly) | D176: Non-Specific | E176: =IF(ISERROR(B176),0,VLOOKUP(O176,'OVS Price List'!A:Q,16,0)) -> 1.1125 | G176: =IF(F176<>0,E176*F176*H176,0) -> 0 | H176: 12 | I176: nr de luni pana la urmatoarea aniversare, cu care se va inmulti automat cantitatea | O176: Forefront TMG Web Protection Service (Per User; monthly) Non-Specific All Languages
B177: =VLOOKUP(O177,'OVS Price List'!A:C,2,0) -> 9TA-00586 | C177: HPC Enterprise | D177: Non-Specific | E177: =IF(ISERROR(B177),0,VLOOKUP(O177,'OVS Price List'!A:Q,16,0)) -> 201.6 | G177: 0 | O177: =CONCATENATE(C177,D177," ",$IP$5) -> HPC Enterprise Non-Specific All Languages
B178: =VLOOKUP(O178,'OVS Price List'!A:C,2,0) -> 9TA-00419 | C178: HPC for Workstation | D178: Non-Specific | E178: =IF(ISERROR(B178),0,VLOOKUP(O178,'OVS Price List'!A:Q,16,0)) -> 52.05 | G178: =IF(F178<>0,E178*F178,0) -> 0 | O178: =CONCATENATE(C178,D178," ",$IP$5) -> HPC for Workstation Non-Specific All Languages
B179: =VLOOKUP(O179,'OVS Price List'!A:C,2,0) -> KPA-00384 | C179: Office Comm Server Ent | D179: Non-Specific | E179: =IF(ISERROR(B179),0,VLOOKUP(O179,'OVS Price List'!A:Q,16,0)) -> 1814.25 | G179: 0 | O179: Office Comm Server Ent Non-Specific All Languages
B180: =VLOOKUP(O180,'OVS Price List'!A:C,2,0) -> KMA-00625 | C180: Office Comm Server Ent CAL | D180: Non-Specific | E180: =IF(ISERROR(B180),0,VLOOKUP(O180,'OVS Price List'!A:Q,16,0)) -> 63 | G180: 0 | O180: Office Comm Server Ent CAL Non-Specific All Languages
B181: =VLOOKUP(O181,'OVS Price List'!A:C,2,0) -> KSA-00050 | C181: Office Comm Server Ext Conn-Ent | D181: Non-Specific | E181: =IF(ISERROR(B181),0,VLOOKUP(O181,'OVS Price List'!A:Q,16,0)) -> 905.25 | G181: 0 | O181: Office Comm Server Ext Conn-Ent Non-Specific All Languages
B182: =VLOOKUP(O182,'OVS Price List'!A:C,2,0) -> KTA-00033 | C182: Office Comm Server Ext Conn-Std | D182: Non-Specific | E182: =IF(ISERROR(B182),0,VLOOKUP(O182,'OVS Price List'!A:Q,16,0)) -> 905.25 | G182: 0 | O182: Office Comm Server Ext Conn-Std Non-Specific All Languages
B183: =VLOOKUP(O183,'OVS Price List'!A:C,2,0) -> KNA-00389 | C183: Office Comm Server Std | D183: Non-Specific | E183: =IF(ISERROR(B183),0,VLOOKUP(O183,'OVS Price List'!A:Q,16,0)) -> 316.95 | G183: 0 | O183: Office Comm Server Std Non-Specific All Languages
B184: =VLOOKUP(O184,'OVS Price List'!A:C,2,0) -> KLA-00465 | C184: Office Comm Server Std CAL | D184: Non-Specific | E184: =IF(ISERROR(B184),0,VLOOKUP(O184,'OVS Price List'!A:Q,16,0)) -> 13.95 | G184: 0 | O184: Office Comm Server Std CAL Non-Specific All Languages
B185: =VLOOKUP(O185,'OVS Price List'!A:C,2,0) -> YYB-00014 | C185: Groove Server | D185: Non-Specific | E185: =IF(ISERROR(B185),0,VLOOKUP(O185,'OVS Price List'!A:Q,16,0)) -> 2206.35 | G185: =IF(F185<>0,E185*F185,0) -> 0 | O185: Groove Server Non-Specific All Languages
B186: =VLOOKUP(O186,'OVS Price List'!A:C,2,0) -> A9S-00031 | C186: Office LCS Connect to Public IM (Per User; monthly) | D186: Non-Specific | E186: =IF(ISERROR(B186),0,VLOOKUP(O186,'OVS Price List'!A:Q,16,0)) -> 0.325 | G186: =IF(F186<>0,E186*F186*H186,0) -> 0 | H186: 12 | I186: nr de luni pana la urmatoarea aniversare, cu care se va inmulti automat cantitatea | O186: Office LCS Connect to Public IM (Per User; monthly) Non-Specific All Languages
B187: =VLOOKUP(O187,'OVS Price List'!A:C,2,0) -> BU8-00044 | C187: Office Live Mtg Professional (Per User; monthly) | D187: Non-Specific | E187: =IF(ISERROR(B187),0,VLOOKUP(O187,'OVS Price List'!A:Q,16,0)) -> 13.625 | G187: =IF(F187<>0,E187*F187*H187,0) -> 0 | H187: 12 | I187: nr de luni pana la urmatoarea aniversare, cu care se va inmulti automat cantitatea | O187: Office Live Mtg Professional (Per User; monthly) Non-Specific All Languages
B188: =VLOOKUP(O188,'OVS Price List'!A:C,2,0) -> BT1-00021 | C188: Office Live Mtg Standard (Per User; monthly) | D188: Non-Specific | E188: =IF(ISERROR(B188),0,VLOOKUP(O188,'OVS Price List'!A:Q,16,0)) -> 4.05 | G188: =IF(F188<>0,E188*F188*H188,0) -> 0 | H188: 12 | I188: nr de luni pana la urmatoarea aniversare, cu care se va inmulti automat cantitatea | O188: Office Live Mtg Standard (Per User; monthly) Non-Specific All Languages
B189: =VLOOKUP(O189,'OVS Price List'!A:C,2,0) -> H04-01506 | C189: Office SharePoint Server | D189: Non-Specific | E189: =IF(ISERROR(B189),0,VLOOKUP(O189,'OVS Price List'!A:Q,16,0)) -> 2206.35 | G189: 0 | O189: Office SharePoint Server Non-Specific All Languages
B190: =VLOOKUP(O190,'OVS Price List'!A:C,2,0) -> H22-01460 | C190: Project Server | D190: Non-Specific | E190: =IF(ISERROR(B190),0,VLOOKUP(O190,'OVS Price List'!A:Q,16,0)) -> 2206.35 | G190: 0 | O190: Project Server Non-Specific All Languages
B191: =VLOOKUP(O191,'OVS Price List'!A:C,2,0) -> H21-02129 | C191: Project Server CAL | D191: Non-Specific | E191: =IF(ISERROR(B191),0,VLOOKUP(O191,'OVS Price List'!A:Q,16,0)) -> 72 | G191: 0 | O191: Project Server CAL Non-Specific All Languages
B192: =VLOOKUP(O192,'OVS Price List'!A:C,2,0) -> 76N-01514 | C192: SharePoint Enterprise CAL | D192: Non-Specific | E192: =IF(ISERROR(B192),0,VLOOKUP(O192,'OVS Price List'!A:Q,16,0)) -> 37.05 | G192: 0 | O192: SharePoint Enterprise CAL Non-Specific All Languages
B193: =VLOOKUP(O193,'OVS Price List'!A:C,2,0) -> CLF-00086 | C193: SharePoint Internet Std | D193: Non-Specific | E193: =IF(ISERROR(B193),0,VLOOKUP(O193,'OVS Price List'!A:Q,16,0)) -> 5281.8 | G193: 0 | O193: SharePoint Internet Std Non-Specific All Languages
B194: =VLOOKUP(O194,'OVS Price List'!A:C,2,0) -> CKF-00086 | C194: SharePoint Internet Ent | D194: Non-Specific | E194: =IF(ISERROR(B194),0,VLOOKUP(O194,'OVS Price List'!A:Q,16,0)) -> 18538.8 | G194: 0 | O194: SharePoint Internet Ent Non-Specific All Languages
B195: =VLOOKUP(O195,'OVS Price List'!A:C,2,0) -> 359-01631 | C195: SQL CAL | D195: =IF(sysEligiblePCs<=249,"Non-Specific","C") -> Non-Specific | E195: =IF(ISERROR(B195),0,VLOOKUP(O195,'OVS Price List'!A:Q,16,0)) -> 73.35 | G195: 0 | O195: =CONCATENATE(C195,D195," ",$IP$5) -> SQL CAL Non-Specific All Languages
B196: =VLOOKUP(O196,'OVS Price List'!A:C,2,0) -> 810-04921 | C196: SQL Server Enterprise Edition | D196: Non-Specific | E196: =IF(ISERROR(B196),0,VLOOKUP(O196,'OVS Price List'!A:Q,16,0)) -> 3847.95 | G196: 0 | O196: SQL Server Enterprise Edition Non-Specific All Languages
B197: =VLOOKUP(O197,'OVS Price List'!A:C,2,0) -> 810-03110 | C197: SQL Server Enterprise Edition 1 Proc Lic | D197: Non-Specific | E197: =IF(ISERROR(B197),0,VLOOKUP(O197,'OVS Price List'!A:Q,16,0)) -> 12314.7 | G197: 0 | O197: SQL Server Enterprise Edition 1 Proc Lic Non-Specific All Languages
B198: =VLOOKUP(O198,'OVS Price List'!A:C,2,0) -> 228-04735 | C198: SQL Server Standard Edition | D198: Non-Specific | E198: =IF(ISERROR(B198),0,VLOOKUP(O198,'OVS Price List'!A:Q,16,0)) -> 401.85 | G198: 0 | O198: SQL Server Standard Edition Non-Specific All Languages
B199: =VLOOKUP(O199,'OVS Price List'!A:C,2,0) -> 228-05175 | C199: SQL Server Standard Edition 1 Proc Lic | D199: Non-Specific | E199: =IF(ISERROR(B199),0,VLOOKUP(O199,'OVS Price List'!A:Q,16,0)) -> 3211.65 | G199: 0 | O199: SQL Server Standard Edition 1 Proc Lic Non-Specific All Languages
B200: =VLOOKUP(O200,'OVS Price List'!A:C,2,0) -> TFA-00087 | C200: SQL Server Web Edition 1 Proc Lic | D200: Non-Specific | E200: =IF(ISERROR(B200),0,VLOOKUP(O200,'OVS Price List'!A:Q,16,0)) -> 1567.5 | G200: 0 | O200: SQL Server Web Edition 1 Proc Lic Non-Specific All Languages
B201: =VLOOKUP(O201,'OVS Price List'!A:C,2,0) -> P6R-00138 | C201: Search Server | D201: Non-Specific | E201: =IF(ISERROR(B201),0,VLOOKUP(O201,'OVS Price List'!A:Q,16,0)) -> 7148.7 | G201: 0 | O201: Search Server Non-Specific All Languages
B202: =VLOOKUP(O202,'OVS Price List'!A:C,2,0) -> J3A-00250 | C202: Sys Ctr Config Mgr Svr | D202: Non-Specific | E202: =IF(ISERROR(B202),0,VLOOKUP(O202,'OVS Price List'!A:Q,16,0)) -> 259.35 | G202: 0 | O202: Sys Ctr Config Mgr Svr Non-Specific All Languages
B203: =VLOOKUP(O203,'OVS Price List'!A:C,2,0) -> J7A-00245 | C203: Sys Ctr Config Mgr Svr Mgmt Lic Ent | D203: Non-Specific | E203: =IF(ISERROR(B203),0,VLOOKUP(O203,'OVS Price List'!A:Q,16,0)) -> 192.75 | G203: 0 | O203: Sys Ctr Config Mgr Svr Mgmt Lic Ent Non-Specific All Languages
B204: =VLOOKUP(O204,'OVS Price List'!A:C,2,0) -> J6A-00007 | C204: Sys Ctr Config Mgr Svr Mgmt Lic Std | D204: Non-Specific | E204: =IF(ISERROR(B204),0,VLOOKUP(O204,'OVS Price List'!A:Q,16,0)) -> 70.05 | G204: 0 | O204: Sys Ctr Config Mgr Svr Mgmt Lic Std Non-Specific All Languages
B205: =VLOOKUP(O205,'OVS Price List'!A:C,2,0) -> J4A-00243 | C205: Sys Ctr Config Mgr Svr wSQL | D205: Non-Specific | E205: =IF(ISERROR(B205),0,VLOOKUP(O205,'OVS Price List'!A:Q,16,0)) -> 591.6 | G205: 0 | O205: Sys Ctr Config Mgr Svr wSQL Non-Specific All Languages
B206: =VLOOKUP(O206,'OVS Price List'!A:C,2,0) -> TSC-00243 | C206: Sys Ctr Data Prtcn Mgr Clt Mgmt Lic Per OSE | D206: Non-Specific | E206: =IF(ISERROR(B206),0,VLOOKUP(O206,'OVS Price List'!A:Q,16,0)) -> 10.65 | G206: =IF(F206<>0,E206*F206,0) -> 0 | O206: Sys Ctr Data Prtcn Mgr Clt Mgmt Lic Per OSE Non-Specific All Languages
B207: =VLOOKUP(O207,'OVS Price List'!A:C,2,0) -> TSC-00760 | C207: Sys Ctr Data Prtcn Mgr Clt Mgmt Lic Per USER | D207: Non-Specific | E207: =IF(ISERROR(B207),0,VLOOKUP(O207,'OVS Price List'!A:Q,16,0)) -> 10.65 | G207: =IF(F207<>0,E207*F207,0) -> 0 | O207: Sys Ctr Data Prtcn Mgr Clt Mgmt Lic Per USER Non-Specific All Languages
B208: =VLOOKUP(O208,'OVS Price List'!A:C,2,0) -> CGA-00051 | C208: Sys Ctr Data Prtcn Mgr Svr ML Ent | D208: Non-Specific | E208: =IF(ISERROR(B208),0,VLOOKUP(O208,'OVS Price List'!A:Q,16,0)) -> 193.2 | G208: 0 | O208: Sys Ctr Data Prtcn Mgr Svr ML Ent Non-Specific All Languages
B209: =VLOOKUP(O209,'OVS Price List'!A:C,2,0) -> CVA-00032 | C209: Sys Ctr Data Prtcn Mgr Svr ML Std | D209: Non-Specific | E209: =IF(ISERROR(B209),0,VLOOKUP(O209,'OVS Price List'!A:Q,16,0)) -> 70.2 | G209: 0 | O209: Sys Ctr Data Prtcn Mgr Svr ML Std Non-Specific All Languages
B210: =VLOOKUP(O210,'OVS Price List'!A:C,2,0) -> UCH-02308 | C210: Sys Ctr Essentials | D210: Non-Specific | E210: =IF(ISERROR(B210),0,VLOOKUP(O210,'OVS Price List'!A:Q,16,0)) -> 44.55 | G210: 0 | O210: Sys Ctr Essentials Non-Specific All Languages
B211: =VLOOKUP(O211,'OVS Price List'!A:C,2,0) -> 4PX-01516 | C211: Sys Ctr Essentials Clt Mgmt Lic | D211: Non-Specific | E211: =IF(ISERROR(B211),0,VLOOKUP(O211,'OVS Price List'!A:Q,16,0)) -> 7.05 | G211: 0 | O211: Sys Ctr Essentials Clt Mgmt Lic Non-Specific All Languages
B212: =VLOOKUP(O212,'OVS Price List'!A:C,2,0) -> DJA-00869 | C212: Sys Ctr Essentials Svr Mgmt Lic | D212: Non-Specific | E212: =IF(ISERROR(B212),0,VLOOKUP(O212,'OVS Price List'!A:Q,16,0)) -> 44.55 | G212: 0 | O212: Sys Ctr Essentials Svr Mgmt Lic Non-Specific All Languages
B213: =VLOOKUP(O213,'OVS Price List'!A:C,2,0) -> EEC-00736 | C213: Sys Ctr Essentials wSQL | D213: Non-Specific | E213: =IF(ISERROR(B213),0,VLOOKUP(O213,'OVS Price List'!A:Q,16,0)) -> 361.5 | G213: 0 | O213: Sys Ctr Essentials wSQL Non-Specific All Languages
... 52 more rows

Sheet OVS Price List
A1: 7.5 | B1: Part Number | C1: Description Name | D1: Offering | E1: Level | F1: Purchase Unit | G1: Pool | H1: Current/ Non-Current | I1: Componente/ Platforma | J1: Product Family | K1: Version | L1: Operating System | M1: Language | N1: Product Type | O1: Prior NP USD | P1: End User Estimated Price (EURO) | Q1: Labels
B2: W06-00801 | C2: CoreCAL ALNG LicSAPk OLV C 1Yr Ent DvcCAL | D2: Enterprise | E2: C | F2: 1 Year(s) | G2: Servers | H2: Non-Current | I2: Component | J2: Core CAL (Client Access License) | K2: Non-specific | L2: Non-specific | M2: All Languages | P2: 63 | Q2: =CONCATENATE(J2," ",I2," ",H2," ",E2," ",M2) -> Core CAL (Client Access License) Component Non-Current C All Languages
A3: Core CAL (Client Access License) Component Non-Current C All Languages | B3: W06-00865 | C3: CoreCAL ALNG LicSAPk OLV C 1Yr Ent UsrCAL | D3: Enterprise | E3: C | F3: 1 Year(s) | G3: Servers | H3: Non-Current | I3: Component | J3: Core CAL (Client Access License) | K3: Non-specific | L3: Non-specific | M3: All Languages | P3: 63 | Q3: Core CAL (Client Access License) Component Non-Current C All Languages
B4: W06-01501 | C4: CoreCAL ALNG LicSAPk OLV C 1Yr Pltfrm DvcCAL | D4: Platform Offering | E4: C | F4: 1 Year(s) | G4: Servers | H4: Non-Current | I4: Platform | J4: Core CAL (Client Access License) | K4: Non-specific | L4: Non-specific | M4: All Languages | P4: 59.7 | Q4: Core CAL (Client Access License) Platform Non-Current C All Languages
A5: Core CAL (Client Access License) Platform Non-Current C All Languages | B5: W06-01503 | C5: CoreCAL ALNG LicSAPk OLV C 1Yr Pltfrm UsrCAL | D5: Platform Offering | E5: C | F5: 1 Year(s) | G5: Servers | H5: Non-Current | I5: Platform | J5: Core CAL (Client Access License) | K5: Non-specific | L5: Non-specific | M5: All Languages | P5: 59.7 | Q5: Core CAL (Client Access License) Platform Non-Current C All Languages
B6: W06-00793 | C6: CoreCAL ALNG LicSAPk OLV NL 1Yr Ent DvcCAL | D6: Enterprise | E6: Non-Specific | F6: 1 Year(s) | G6: Servers | H6: Non-Current | I6: Component | J6: Core CAL (Client Access License) | K6: Non-specific | L6: Non-specific | M6: All Languages | P6: 65.4 | Q6: Core CAL (Client Access License) Component Non-Current Non-Specific All Languages
A7: Core CAL (Client Access License) Component Non-Current Non-Specific All Languages | B7: W06-00857 | C7: CoreCAL ALNG LicSAPk OLV NL 1Yr Ent UsrCAL | D7: Enterprise | E7: Non-Specific | F7: 1 Year(s) | G7: Servers | H7: Non-Current | I7: Component | J7: Core CAL (Client Access License) | K7: Non-specific | L7: Non-specific | M7: All Languages | P7: 65.4 | Q7: Core CAL (Client Access License) Component Non-Current Non-Specific All Languages
B8: W06-01502 | C8: CoreCAL ALNG LicSAPk OLV NL 1Yr Pltfrm DvcCAL | D8: Platform Offering | E8: Non-Specific | F8: 1 Year(s) | G8: Servers | H8: Non-Current | I8: Platform | J8: Core CAL (Client Access License) | K8: Non-specific | L8: Non-specific | M8: All Languages | P8: 62.1 | Q8: Core CAL (Client Access License) Platform Non-Current Non-Specific All Languages
A9: Core CAL (Client Access License) Platform Non-Current Non-Specific All Languages | B9: W06-01504 | C9: CoreCAL ALNG LicSAPk OLV NL 1Yr Pltfrm UsrCAL | D9: Platform Offering | E9: Non-Specific | F9: 1 Year(s) | G9: Servers | H9: Non-Current | I9: Platform | J9: Core CAL (Client Access License) | K9: Non-specific | L9: Non-specific | M9: All Languages | P9: 62.1 | Q9: Core CAL (Client Access License) Platform Non-Current Non-Specific All Languages
B10: W06-01231 | C10: CoreCAL RAB LicSAPk OLV C 1Yr Ent DvcCAL | D10: Enterprise | E10: C | F10: 1 Year(s) | G10: Servers | H10: Non-Current | I10: Component | J10: Core CAL (Client Access License) | K10: Non-specific | L10: Non-specific | M10: RAB | P10: 63 | Q10: Core CAL (Client Access License) Component Non-Current C RAB
A11: Core CAL (Client Access License) Component Non-Current C RAB | B11: W06-01233 | C11: CoreCAL RAB LicSAPk OLV C 1Yr Ent UsrCAL | D11: Enterprise | E11: C | F11: 1 Year(s) | G11: Servers | H11: Non-Current | I11: Component | J11: Core CAL (Client Access License) | K11: Non-specific | L11: Non-specific | M11: RAB | P11: 63 | Q11: Core CAL (Client Access License) Component Non-Current C RAB
B12: W06-01505 | C12: CoreCAL RAB LicSAPk OLV C 1Yr Pltfrm DvcCAL | D12: Platform Offering | E12: C | F12: 1 Year(s) | G12: Servers | H12: Non-Current | I12: Platform | J12: Core CAL (Client Access License) | K12: Non-specific | L12: Non-specific | M12: RAB | P12: 59.7 | Q12: Core CAL (Client Access License) Platform Non-Current C RAB
A13: Core CAL (Client Access License) Platform Non-Current C RAB | B13: W06-01507 | C13: CoreCAL RAB LicSAPk OLV C 1Yr Pltfrm UsrCAL | D13: Platform Offering | E13: C | F13: 1 Year(s) | G13: Servers | H13: Non-Current | I13: Platform | J13: Core CAL (Client Access License) | K13: Non-specific | L13: Non-specific | M13: RAB | P13: 59.7 | Q13: Core CAL (Client Access License) Platform Non-Current C RAB
B14: W06-01232 | C14: CoreCAL RAB LicSAPk OLV NL 1Yr Ent DvcCAL | D14: Enterprise | E14: Non-Specific | F14: 1 Year(s) | G14: Servers | H14: Non-Current | I14: Component | J14: Core CAL (Client Access License) | K14: Non-specific | L14: Non-specific | M14: RAB | P14: 65.4 | Q14: =CONCATENATE(J14," ",I14," ",H14," ",E14," ",M14) -> Core CAL (Client Access License) Component Non-Current Non-Specific RAB
A15: Core CAL (Client Access License) Component Non-Current Non-Specific RAB | B15: W06-01234 | C15: CoreCAL RAB LicSAPk OLV NL 1Yr Ent UsrCAL | D15: Enterprise | E15: Non-Specific | F15: 1 Year(s) | G15: Servers | H15: Non-Current | I15: Component | J15: Core CAL (Client Access License) | K15: Non-specific | L15: Non-specific | M15: RAB | P15: 65.4 | Q15: Core CAL (Client Access License) Component Non-Current Non-Specific RAB
B16: W06-01506 | C16: CoreCAL RAB LicSAPk OLV NL 1Yr Pltfrm DvcCAL | D16: Platform Offering | E16: Non-Specific | F16: 1 Year(s) | G16: Servers | H16: Non-Current | I16: Platform | J16: Core CAL (Client Access License) | K16: Non-specific | L16: Non-specific | M16: RAB | P16: 62.1 | Q16: Core CAL (Client Access License) Platform Non-Current Non-Specific RAB
A17: Core CAL (Client Access License) Platform Non-Current Non-Specific RAB | B17: W06-01508 | C17: CoreCAL RAB LicSAPk OLV NL 1Yr Pltfrm UsrCAL | D17: Platform Offering | E17: Non-Specific | F17: 1 Year(s) | G17: Servers | H17: Non-Current | I17: Platform | J17: Core CAL (Client Access License) | K17: Non-specific | L17: Non-specific | M17: RAB | P17: 62.1 | Q17: Core CAL (Client Access License) Platform Non-Current Non-Specific RAB
B18: WSB-00112 | C18: DsktpOptmztnPkforSA ALNG SubsVL OLV NL 1Mth Ent PerDvc forWinSA | D18: Enterprise | E18: Non-Specific | F18: 1 Month(s) | G18: Systems | H18: Non-Current | I18: Component | J18: Desktop Optimization Pack for SA | K18: Non-specific | L18: Non-specific | M18: All Languages | P18: 0.9625 | Q18: Desktop Optimization Pack for SA Component Non-Current Non-Specific All Languages
B19: 76A-00324 | C19: EntCAL ALNG LicSAPk OLV C 1Yr Ent DvcCAL wSrvcs | D19: Enterprise | E19: C | F19: 1 Year(s) | G19: Servers | H19: Non-Current | I19: Component | J19: Enterprise CAL | K19: Non-specific | L19: Non-specific | M19: All Languages | P19: 159.9 | Q19: Enterprise CAL Component Non-Current C All Languages
A20: Enterprise CAL Component Non-Current C All Languages | B20: 76A-00326 | C20: EntCAL ALNG LicSAPk OLV C 1Yr Ent UsrCAL wSrvcs | D20: Enterprise | E20: C | F20: 1 Year(s) | G20: Servers | H20: Non-Current | I20: Component | J20: Enterprise CAL | K20: Non-specific | L20: Non-specific | M20: All Languages | P20: 159.9 | Q20: Enterprise CAL Component Non-Current C All Languages
B21: 76A-00492 | C21: EntCAL ALNG LicSAPk OLV C 1Yr Pltfrm DvcCAL wSrvcs | D21: Platform Offering | E21: C | F21: 1 Year(s) | G21: Servers | H21: Non-Current | I21: Platform | J21: Enterprise CAL | K21: Non-specific | L21: Non-specific | M21: All Languages | P21: 151.95 | Q21: Enterprise CAL Platform Non-Current C All Languages
A22: Enterprise CAL Platform Non-Current C All Languages | B22: 76A-00494 | C22: EntCAL ALNG LicSAPk OLV C 1Yr Pltfrm UsrCAL wSrvcs | D22: Platform Offering | E22: C | F22: 1 Year(s) | G22: Servers | H22: Non-Current | I22: Platform | J22: Enterprise CAL | K22: Non-specific | L22: Non-specific | M22: All Languages | P22: 151.95 | Q22: Enterprise CAL Platform Non-Current C All Languages
B23: 76A-00325 | C23: EntCAL ALNG LicSAPk OLV NL 1Yr Ent DvcCAL wSrvcs | D23: Enterprise | E23: Non-Specific | F23: 1 Year(s) | G23: Servers | H23: Non-Current | I23: Component | J23: Enterprise CAL | K23: Non-specific | L23: Non-specific | M23: All Languages | P23: 174.3 | Q23: Enterprise CAL Component Non-Current Non-Specific All Languages
A24: Enterprise CAL Component Non-Current Non-Specific All Languages | B24: 76A-00327 | C24: EntCAL ALNG LicSAPk OLV NL 1Yr Ent UsrCAL wSrvcs | D24: Enterprise | E24: Non-Specific | F24: 1 Year(s) | G24: Servers | H24: Non-Current | I24: Component | J24: Enterprise CAL | K24: Non-specific | L24: Non-specific | M24: All Languages | P24: 174.3 | Q24: Enterprise CAL Component Non-Current Non-Specific All Languages
B25: 76A-00493 | C25: EntCAL ALNG LicSAPk OLV NL 1Yr Pltfrm DvcCAL wSrvcs | D25: Platform Offering | E25: Non-Specific | F25: 1 Year(s) | G25: Servers | H25: Non-Current | I25: Platform | J25: Enterprise CAL | K25: Non-specific | L25: Non-specific | M25: All Languages | P25: 165.6 | Q25: Enterprise CAL Platform Non-Current Non-Specific All Languages
A26: Enterprise CAL Platform Non-Current Non-Specific All Languages | B26: 76A-00495 | C26: EntCAL ALNG LicSAPk OLV NL 1Yr Pltfrm UsrCAL wSrvcs | D26: Platform Offering | E26: Non-Specific | F26: 1 Year(s) | G26: Servers | H26: Non-Current | I26: Platform | J26: Enterprise CAL | K26: Non-specific | L26: Non-specific | M26: All Languages | P26: 165.6 | Q26: Enterprise CAL Platform Non-Current Non-Specific All Languages
B27: 76A-00328 | C27: EntCAL RAB LicSAPk OLV C 1Yr Ent DvcCAL wSrvcs | D27: Enterprise | E27: C | F27: 1 Year(s) | G27: Servers | H27: Non-Current | I27: Component | J27: Enterprise CAL | K27: Non-specific | L27: Non-specific | M27: RAB | P27: 159.9 | Q27: Enterprise CAL Component Non-Current C RAB
A28: Enterprise CAL Component Non-Current C RAB | B28: 76A-00330 | C28: EntCAL RAB LicSAPk OLV C 1Yr Ent UsrCAL wSrvcs | D28: Enterprise | E28: C | F28: 1 Year(s) | G28: Servers | H28: Non-Current | I28: Component | J28: Enterprise CAL | K28: Non-specific | L28: Non-specific | M28: RAB | P28: 159.9 | Q28: Enterprise CAL Component Non-Current C RAB
B29: 76A-00496 | C29: EntCAL RAB LicSAPk OLV C 1Yr Pltfrm DvcCAL wSrvcs | D29: Platform Offering | E29: C | F29: 1 Year(s) | G29: Servers | H29: Non-Current | I29: Platform | J29: Enterprise CAL | K29: Non-specific | L29: Non-specific | M29: RAB | P29: 151.95 | Q29: Enterprise CAL Platform Non-Current C RAB
A30: Enterprise CAL Platform Non-Current C RAB | B30: 76A-00498 | C30: EntCAL RAB LicSAPk OLV C 1Yr Pltfrm UsrCAL wSrvcs | D30: Platform Offering | E30: C | F30: 1 Year(s) | G30: Servers | H30: Non-Current | I30: Platform | J30: Enterprise CAL | K30: Non-specific | L30: Non-specific | M30: RAB | P30: 151.95 | Q30: Enterprise CAL Platform Non-Current C RAB
B31: 76A-00329 | C31: EntCAL RAB LicSAPk OLV NL 1Yr Ent DvcCAL wSrvcs | D31: Enterprise | E31: Non-Specific | F31: 1 Year(s) | G31: Servers | H31: Non-Current | I31: Component | J31: Enterprise CAL | K31: Non-specific | L31: Non-specific | M31: RAB | P31: 174.3 | Q31: Enterprise CAL Component Non-Current Non-Specific RAB
A32: Enterprise CAL Component Non-Current Non-Specific RAB | B32: 76A-00331 | C32: EntCAL RAB LicSAPk OLV NL 1Yr Ent UsrCAL wSrvcs | D32: Enterprise | E32: Non-Specific | F32: 1 Year(s) | G32: Servers | H32: Non-Current | I32: Component | J32: Enterprise CAL | K32: Non-specific | L32: Non-specific | M32: RAB | P32: 174.3 | Q32: Enterprise CAL Component Non-Current Non-Specific RAB
B33: 76A-00497 | C33: EntCAL RAB LicSAPk OLV NL 1Yr Pltfrm DvcCAL wSrvcs | D33: Platform Offering | E33: Non-Specific | F33: 1 Year(s) | G33: Servers | H33: Non-Current | I33: Platform | J33: Enterprise CAL | K33: Non-specific | L33: Non-specific | M33: RAB | P33: 165.6 | Q33: Enterprise CAL Platform Non-Current Non-Specific RAB
A34: Enterprise CAL Platform Non-Current Non-Specific RAB | B34: 76A-00499 | C34: EntCAL RAB LicSAPk OLV NL 1Yr Pltfrm UsrCAL wSrvcs | D34: Platform Offering | E34: Non-Specific | F34: 1 Year(s) | G34: Servers | H34: Non-Current | I34: Platform | J34: Enterprise CAL | K34: Non-specific | L34: Non-specific | M34: RAB | P34: 165.6 | Q34: Enterprise CAL Platform Non-Current Non-Specific RAB
A35: Office Professional Plus Component Non-Current C All Languages | B35: 269-09656 | C35: OfficeProPlus ALNG LicSAPk OLV C 1Yr Ent | D35: Enterprise | E35: C | F35: 1 Year(s) | G35: Applications | H35: Non-Current | I35: Component | J35: Office Professional Plus | K35: Non-specific | L35: Non-specific | M35: All Languages | P35: 186.15 | Q35: Office Professional Plus Component Non-Current C All Languages
A36: Office Professional Plus Platform Non-Current C All Languages | B36: 79P-02337 | C36: OfficeProPlus ALNG LicSAPk OLV C 1Yr Pltfrm | D36: Platform Offering | E36: C | F36: 1 Year(s) | G36: Applications | H36: Non-Current | I36: Platform | J36: Office Professional Plus | K36: Non-specific | L36: Non-specific | M36: All Languages | P36: 176.85 | Q36: Office Professional Plus Platform Non-Current C All Languages
A37: Office Professional Plus Component Non-Current Non-Specific All Languages | B37: 269-09648 | C37: OfficeProPlus ALNG LicSAPk OLV NL 1Yr Ent | D37: Enterprise | E37: Non-Specific | F37: 1 Year(s) | G37: Applications | H37: Non-Current | I37: Component | J37: Office Professional Plus | K37: Non-specific | L37: Non-specific | M37: All Languages | P37: 193.35 | Q37: Office Professional Plus Component Non-Current Non-Specific All Languages
A38: Office Professional Plus Platform Non-Current Non-Specific All Languages | B38: 79P-02338 | C38: OfficeProPlus ALNG LicSAPk OLV NL 1Yr Pltfrm | D38: Platform Offering | E38: Non-Specific | F38: 1 Year(s) | G38: Applications | H38: Non-Current | I38: Platform | J38: Office Professional Plus | K38: Non-specific | L38: Non-specific | M38: All Languages | P38: 183.75 | Q38: Office Professional Plus Platform Non-Current Non-Specific All Languages
A39: Office Professional Plus Component Non-Current C RAB | B39: 79P-01865 | C39: OfficeProPlus RAB LicSAPk OLV C 1Yr Ent | D39: Enterprise | E39: C | F39: 1 Year(s) | G39: Applications | H39: Non-Current | I39: Component | J39: Office Professional Plus | K39: Non-specific | L39: Non-specific | M39: RAB | P39: 156.3 | Q39: Office Professional Plus Component Non-Current C RAB
A40: Office Professional Plus Platform Non-Current C RAB | B40: 79P-02339 | C40: OfficeProPlus RAB LicSAPk OLV C 1Yr Pltfrm | D40: Platform Offering | E40: C | F40: 1 Year(s) | G40: Applications | H40: Non-Current | I40: Platform | J40: Office Professional Plus | K40: Non-specific | L40: Non-specific | M40: RAB | P40: 148.5 | Q40: Office Professional Plus Platform Non-Current C RAB
A41: Office Professional Plus Component Non-Current Non-Specific RAB | B41: 79P-01866 | C41: OfficeProPlus RAB LicSAPk OLV NL 1Yr Ent | D41: Enterprise | E41: Non-Specific | F41: 1 Year(s) | G41: Applications | H41: Non-Current | I41: Component | J41: Office Professional Plus | K41: Non-specific | L41: Non-specific | M41: RAB | P41: 162.45 | Q41: Office Professional Plus Component Non-Current Non-Specific RAB
A42: Office Professional Plus Platform Non-Current Non-Specific RAB | B42: 79P-02340 | C42: OfficeProPlus RAB LicSAPk OLV NL 1Yr Pltfrm | D42: Platform Offering | E42: Non-Specific | F42: 1 Year(s) | G42: Applications | H42: Non-Current | I42: Platform | J42: Office Professional Plus | K42: Non-specific | L42: Non-specific | M42: RAB | P42: 154.35 | Q42: Office Professional Plus Platform Non-Current Non-Specific RAB
B43: 6YA-01741 | C43: WinEssntlBsnssCALSte ALNG LicSAPk OLV C 1Yr Ent DvcCAL | D43: Enterprise | E43: C | F43: 1 Year(s) | G43: Servers | H43: Non-Current | I43: Component | J43: Windows Essntl Bus CAL Ste | K43: Non-specific | L43: Non-specific | M43: All Languages | P43: 25.5 | Q43: Windows Essntl Bus CAL Ste Component Non-Current C All Languages
A44: Windows Essntl Bus CAL Ste Component Non-Current C All Languages | B44: 6YA-01743 | C44: WinEssntlBsnssCALSte ALNG LicSAPk OLV C 1Yr Ent UsrCAL | D44: Enterprise | E44: C | F44: 1 Year(s) | G44: Servers | H44: Non-Current | I44: Component | J44: Windows Essntl Bus CAL Ste | K44: Non-specific | L44: Non-specific | M44: All Languages | P44: 25.5 | Q44: Windows Essntl Bus CAL Ste Component Non-Current C All Languages
B45: 6YA-01761 | C45: WinEssntlBsnssCALSte ALNG LicSAPk OLV C 1Yr Pltfrm DvcCAL | D45: Platform Offering | E45: C | F45: 1 Year(s) | G45: Servers | H45: Non-Current | I45: Platform | J45: Windows Essntl Bus CAL Ste | K45: Non-specific | L45: Non-specific | M45: All Languages | P45: 24.3 | Q45: Windows Essntl Bus CAL Ste Platform Non-Current C All Languages
A46: Windows Essntl Bus CAL Ste Platform Non-Current C All Languages | B46: 6YA-01763 | C46: WinEssntlBsnssCALSte ALNG LicSAPk OLV C 1Yr Pltfrm UsrCAL | D46: Platform Offering | E46: C | F46: 1 Year(s) | G46: Servers | H46: Non-Current | I46: Platform | J46: Windows Essntl Bus CAL Ste | K46: Non-specific | L46: Non-specific | M46: All Languages | P46: 24.3 | Q46: Windows Essntl Bus CAL Ste Platform Non-Current C All Languages
B47: 6YA-01742 | C47: WinEssntlBsnssCALSte ALNG LicSAPk OLV NL 1Yr Ent DvcCAL | D47: Enterprise | E47: Non-Specific | F47: 1 Year(s) | G47: Servers | H47: Non-Current | I47: Component | J47: Windows Essntl Bus CAL Ste | K47: Non-specific | L47: Non-specific | M47: All Languages | P47: 26.55 | Q47: Windows Essntl Bus CAL Ste Component Non-Current Non-Specific All Languages
A48: Windows Essntl Bus CAL Ste Component Non-Current Non-Specific All Languages | B48: 6YA-01744 | C48: WinEssntlBsnssCALSte ALNG LicSAPk OLV NL 1Yr Ent UsrCAL | D48: Enterprise | E48: Non-Specific | F48: 1 Year(s) | G48: Servers | H48: Non-Current | I48: Component | J48: Windows Essntl Bus CAL Ste | K48: Non-specific | L48: Non-specific | M48: All Languages | P48: 26.55 | Q48: Windows Essntl Bus CAL Ste Component Non-Current Non-Specific All Languages
B49: 6YA-01762 | C49: WinEssntlBsnssCALSte ALNG LicSAPk OLV NL 1Yr Pltfrm DvcCAL | D49: Platform Offering | E49: Non-Specific | F49: 1 Year(s) | G49: Servers | H49: Non-Current | I49: Platform | J49: Windows Essntl Bus CAL Ste | K49: Non-specific | L49: Non-specific | M49: All Languages | P49: 25.2 | Q49: Windows Essntl Bus CAL Ste Platform Non-Current Non-Specific All Languages
A50: Windows Essntl Bus CAL Ste Platform Non-Current Non-Specific All Languages | B50: 6YA-01764 | C50: WinEssntlBsnssCALSte ALNG LicSAPk OLV NL 1Yr Pltfrm UsrCAL | D50: Platform Offering | E50: Non-Specific | F50: 1 Year(s) | G50: Servers | H50: Non-Current | I50: Platform | J50: Windows Essntl Bus CAL Ste | K50: Non-specific | L50: Non-specific | M50: All Languages | P50: 25.2 | Q50: Windows Essntl Bus CAL Ste Platform Non-Current Non-Specific All Languages
B51: 7AA-02010 | C51: WinEssntlBsnssPremCALSte ALNG LicSAPk OLV C 1Yr Ent DvcCAL | D51: Enterprise | E51: C | F51: 1 Year(s) | G51: Servers | H51: Non-Current | I51: Component | J51: Windows Essntl Bus Prem CAL Ste | K51: Non-specific | L51: Non-specific | M51: All Languages | P51: 61.65 | Q51: Windows Essntl Bus Prem CAL Ste Component Non-Current C All Languages
A52: Windows Essntl Bus Prem CAL Ste Component Non-Current C All Languages | B52: 7AA-02012 | C52: WinEssntlBsnssPremCALSte ALNG LicSAPk OLV C 1Yr Ent UsrCAL | D52: Enterprise | E52: C | F52: 1 Year(s) | G52: Servers | H52: Non-Current | I52: Component | J52: Windows Essntl Bus Prem CAL Ste | K52: Non-specific | L52: Non-specific | M52: All Languages | P52: 61.65 | Q52: Windows Essntl Bus Prem CAL Ste Component Non-Current C All Languages
B53: 7AA-02042 | C53: WinEssntlBsnssPremCALSte ALNG LicSAPk OLV C 1Yr Pltfrm DvcCAL | D53: Platform Offering | E53: C | F53: 1 Year(s) | G53: Servers | H53: Non-Current | I53: Platform | J53: Windows Essntl Bus Prem CAL Ste | K53: Non-specific | L53: Non-specific | M53: All Languages | P53: 58.5 | Q53: Windows Essntl Bus Prem CAL Ste Platform Non-Current C All Languages
A54: Windows Essntl Bus Prem CAL Ste Platform Non-Current C All Languages | B54: 7AA-02044 | C54: WinEssntlBsnssPremCALSte ALNG LicSAPk OLV C 1Yr Pltfrm UsrCAL | D54: Platform Offering | E54: C | F54: 1 Year(s) | G54: Servers | H54: Non-Current | I54: Platform | J54: Windows Essntl Bus Prem CAL Ste | K54: Non-specific | L54: Non-specific | M54: All Languages | P54: 58.5 | Q54: Windows Essntl Bus Prem CAL Ste Platform Non-Current C All Languages
B55: 7AA-02011 | C55: WinEssntlBsnssPremCALSte ALNG LicSAPk OLV NL 1Yr Ent DvcCAL | D55: Enterprise | E55: Non-Specific | F55: 1 Year(s) | G55: Servers | H55: Non-Current | I55: Component | J55: Windows Essntl Bus Prem CAL Ste | K55: Non-specific | L55: Non-specific | M55: All Languages | P55: 64.05 | Q55: Windows Essntl Bus Prem CAL Ste Component Non-Current Non-Specific All Languages
A56: Windows Essntl Bus Prem CAL Ste Component Non-Current Non-Specific All Languages | B56: 7AA-02013 | C56: WinEssntlBsnssPremCALSte ALNG LicSAPk OLV NL 1Yr Ent UsrCAL | D56: Enterprise | E56: Non-Specific | F56: 1 Year(s) | G56: Servers | H56: Non-Current | I56: Component | J56: Windows Essntl Bus Prem CAL Ste | K56: Non-specific | L56: Non-specific | M56: All Languages | P56: 64.05 | Q56: Windows Essntl Bus Prem CAL Ste Component Non-Current Non-Specific All Languages
B57: 7AA-02043 | C57: WinEssntlBsnssPremCALSte ALNG LicSAPk OLV NL 1Yr Pltfrm DvcCAL | D57: Platform Offering | E57: Non-Specific | F57: 1 Year(s) | G57: Servers | H57: Non-Current | I57: Platform | J57: Windows Essntl Bus Prem CAL Ste | K57: Non-specific | L57: Non-specific | M57: All Languages | P57: 60.9 | Q57: Windows Essntl Bus Prem CAL Ste Platform Non-Current Non-Specific All Languages
A58: Windows Essntl Bus Prem CAL Ste Platform Non-Current Non-Specific All Languages | B58: 7AA-02045 | C58: WinEssntlBsnssPremCALSte ALNG LicSAPk OLV NL 1Yr Pltfrm UsrCAL | D58: Platform Offering | E58: Non-Specific | F58: 1 Year(s) | G58: Servers | H58: Non-Current | I58: Platform | J58: Windows Essntl Bus Prem CAL Ste | K58: Non-specific | L58: Non-specific | M58: All Languages | P58: 60.9 | Q58: Windows Essntl Bus Prem CAL Ste Platform Non-Current Non-Specific All Languages
B59: 6UA-01531 | C59: WinSBCALSte ALNG LicSAPk OLV C 1Yr Ent DvcCAL | D59: Enterprise | E59: C | F59: 1 Year(s) | G59: Servers | H59: Non-Current | I59: Component | J59: Windows Small Bus CAL Ste | K59: Non-specific | L59: Non-specific | M59: All Languages | P59: 21.15 | Q59: Windows Small Bus CAL Ste Component Non-Current C All Languages
A60: Windows Small Bus CAL Ste Component Non-Current C All Languages | B60: 6UA-01533 | C60: WinSBCALSte ALNG LicSAPk OLV C 1Yr Ent UsrCAL | D60: Enterprise | E60: C | F60: 1 Year(s) | G60: Servers | H60: Non-Current | I60: Component | J60: Windows Small Bus CAL Ste | K60: Non-specific | L60: Non-specific | M60: All Languages | P60: 21.15 | Q60: Windows Small Bus CAL Ste Component Non-Current C All Languages
B61: 6UA-02360 | C61: WinSBCALSte ALNG LicSAPk OLV C 1Yr Pltfrm DvcCAL | D61: Platform Offering | E61: C | F61: 1 Year(s) | G61: Servers | H61: Non-Current | I61: Platform | J61: Windows Small Bus CAL Ste | K61: Non-specific | L61: Non-specific | M61: All Languages | P61: 20.25 | Q61: Windows Small Bus CAL Ste Platform Non-Current C All Languages
A62: Windows Small Bus CAL Ste Platform Non-Current C All Languages | B62: 6UA-02362 | C62: WinSBCALSte ALNG LicSAPk OLV C 1Yr Pltfrm UsrCAL | D62: Platform Offering | E62: C | F62: 1 Year(s) | G62: Servers | H62: Non-Current | I62: Platform | J62: Windows Small Bus CAL Ste | K62: Non-specific | L62: Non-specific | M62: All Languages | P62: 20.25 | Q62: Windows Small Bus CAL Ste Platform Non-Current C All Languages
B63: 6UA-01532 | C63: WinSBCALSte ALNG LicSAPk OLV NL 1Yr Ent DvcCAL | D63: Enterprise | E63: Non-Specific | F63: 1 Year(s) | G63: Servers | H63: Non-Current | I63: Component | J63: Windows Small Bus CAL Ste | K63: Non-specific | L63: Non-specific | M63: All Languages | P63: 22.05 | Q63: Windows Small Bus CAL Ste Component Non-Current Non-Specific All Languages
A64: Windows Small Bus CAL Ste Component Non-Current Non-Specific All Languages | B64: 6UA-01534 | C64: WinSBCALSte ALNG LicSAPk OLV NL 1Yr Ent UsrCAL | D64: Enterprise | E64: Non-Specific | F64: 1 Year(s) | G64: Servers | H64: Non-Current | I64: Component | J64: Windows Small Bus CAL Ste | K64: Non-specific | L64: Non-specific | M64: All Languages | P64: 22.05 | Q64: Windows Small Bus CAL Ste Component Non-Current Non-Specific All Languages
B65: 6UA-02361 | C65: WinSBCALSte ALNG LicSAPk OLV NL 1Yr Pltfrm DvcCAL | D65: Platform Offering | E65: Non-Specific | F65: 1 Year(s) | G65: Servers | H65: Non-Current | I65: Platform | J65: Windows Small Bus CAL Ste | K65: Non-specific | L65: Non-specific | M65: All Languages | P65: 21 | Q65: Windows Small Bus CAL Ste Platform Non-Current Non-Specific All Languages
A66: Windows Small Bus CAL Ste Platform Non-Current Non-Specific All Languages | B66: 6UA-02363 | C66: WinSBCALSte ALNG LicSAPk OLV NL 1Yr Pltfrm UsrCAL | D66: Platform Offering | E66: Non-Specific | F66: 1 Year(s) | G66: Servers | H66: Non-Current | I66: Platform | J66: Windows Small Bus CAL Ste | K66: Non-specific | L66: Non-specific | M66: All Languages | P66: 21 | Q66: Windows Small Bus CAL Ste Platform Non-Current Non-Specific All Languages
B67: 6UA-01711 | C67: WinSBCALSte RAB LicSAPk OLV C 1Yr Ent DvcCAL | D67: Enterprise | E67: C | F67: 1 Year(s) | G67: Servers | H67: Non-Current | I67: Component | J67: Windows Small Bus CAL Ste | K67: Non-specific | L67: Non-specific | M67: RAB | P67: 21.15 | Q67: Windows Small Bus CAL Ste Component Non-Current C RAB
A68: Windows Small Bus CAL Ste Component Non-Current C RAB | B68: 6UA-01713 | C68: WinSBCALSte RAB LicSAPk OLV C 1Yr Ent UsrCAL | D68: Enterprise | E68: C | F68: 1 Year(s) | G68: Servers | H68: Non-Current | I68: Component | J68: Windows Small Bus CAL Ste | K68: Non-specific | L68: Non-specific | M68: RAB | P68: 21.15 | Q68: Windows Small Bus CAL Ste Component Non-Current C RAB
B69: 6UA-02364 | C69: WinSBCALSte RAB LicSAPk OLV C 1Yr Pltfrm DvcCAL | D69: Platform Offering | E69: C | F69: 1 Year(s) | G69: Servers | H69: Non-Current | I69: Platform | J69: Windows Small Bus CAL Ste | K69: Non-specific | L69: Non-specific | M69: RAB | P69: 20.25 | Q69: Windows Small Bus CAL Ste Platform Non-Current C RAB
A70: Windows Small Bus CAL Ste Platform Non-Current C RAB | B70: 6UA-02366 | C70: WinSBCALSte RAB LicSAPk OLV C 1Yr Pltfrm UsrCAL | D70: Platform Offering | E70: C | F70: 1 Year(s) | G70: Servers | H70: Non-Current | I70: Platform | J70: Windows Small Bus CAL Ste | K70: Non-specific | L70: Non-specific | M70: RAB | P70: 20.25 | Q70: Windows Small Bus CAL Ste Platform Non-Current C RAB
B71: 6UA-01712 | C71: WinSBCALSte RAB LicSAPk OLV NL 1Yr Ent DvcCAL | D71: Enterprise | E71: Non-Specific | F71: 1 Year(s) | G71: Servers | H71: Non-Current | I71: Component | J71: Windows Small Bus CAL Ste | K71: Non-specific | L71: Non-specific | M71: RAB | P71: 22.05 | Q71: Windows Small Bus CAL Ste Component Non-Current Non-Specific RAB
A72: Windows Small Bus CAL Ste Component Non-Current Non-Specific RAB | B72: 6UA-01714 | C72: WinSBCALSte RAB LicSAPk OLV NL 1Yr Ent UsrCAL | D72: Enterprise | E72: Non-Specific | F72: 1 Year(s) | G72: Servers | H72: Non-Current | I72: Component | J72: Windows Small Bus CAL Ste | K72: Non-specific | L72: Non-specific | M72: RAB | P72: 22.05 | Q72: Windows Small Bus CAL Ste Component Non-Current Non-Specific RAB
B73: 6UA-02365 | C73: WinSBCALSte RAB LicSAPk OLV NL 1Yr Pltfrm DvcCAL | D73: Platform Offering | E73: Non-Specific | F73: 1 Year(s) | G73: Servers | H73: Non-Current | I73: Platform | J73: Windows Small Bus CAL Ste | K73: Non-specific | L73: Non-specific | M73: RAB | P73: 21 | Q73: Windows Small Bus CAL Ste Platform Non-Current Non-Specific RAB
A74: Windows Small Bus CAL Ste Platform Non-Current Non-Specific RAB | B74: 6UA-02367 | C74: WinSBCALSte RAB LicSAPk OLV NL 1Yr Pltfrm UsrCAL | D74: Platform Offering | E74: Non-Specific | F74: 1 Year(s) | G74: Servers | H74: Non-Current | I74: Platform | J74: Windows Small Bus CAL Ste | K74: Non-specific | L74: Non-specific | M74: RAB | P74: 21 | Q74: Windows Small Bus CAL Ste Platform Non-Current Non-Specific RAB
B75: 6VA-00987 | C75: WinSBSvrPremCALSte ALNG LicSAPk OLV C 1Yr Ent DvcCAL | D75: Enterprise | E75: C | F75: 1 Year(s) | G75: Servers | H75: Non-Current | I75: Component | J75: Windows Small Bus Svr Prem CAL Ste | K75: Non-specific | L75: Non-specific | M75: All Languages | P75: 52.2 | Q75: Windows Small Bus Svr Prem CAL Ste Component Non-Current C All Languages
A76: Windows Small Bus Svr Prem CAL Ste Component Non-Current C All Languages | B76: 6VA-00989 | C76: WinSBSvrPremCALSte ALNG LicSAPk OLV C 1Yr Ent UsrCAL | D76: Enterprise | E76: C | F76: 1 Year(s) | G76: Servers | H76: Non-Current | I76: Component | J76: Windows Small Bus Svr Prem CAL Ste | K76: Non-specific | L76: Non-specific | M76: All Languages | P76: 52.2 | Q76: Windows Small Bus Svr Prem CAL Ste Component Non-Current C All Languages
B77: 6VA-02550 | C77: WinSBSvrPremCALSte ALNG LicSAPk OLV C 1Yr Pltfrm DvcCAL | D77: Platform Offering | E77: C | F77: 1 Year(s) | G77: Servers | H77: Non-Current | I77: Platform | J77: Windows Small Bus Svr Prem CAL Ste | K77: Non-specific | L77: Non-specific | M77: All Languages | P77: 49.65 | Q77: Windows Small Bus Svr Prem CAL Ste Platform Non-Current C All Languages
A78: Windows Small Bus Svr Prem CAL Ste Platform Non-Current C All Languages | B78: 6VA-02552 | C78: WinSBSvrPremCALSte ALNG LicSAPk OLV C 1Yr Pltfrm UsrCAL | D78: Platform Offering | E78: C | F78: 1 Year(s) | G78: Servers | H78: Non-Current | I78: Platform | J78: Windows Small Bus Svr Prem CAL Ste | K78: Non-specific | L78: Non-specific | M78: All Languages | P78: 49.65 | Q78: Windows Small Bus Svr Prem CAL Ste Platform Non-Current C All Languages
B79: 6VA-00988 | C79: WinSBSvrPremCALSte ALNG LicSAPk OLV NL 1Yr Ent DvcCAL | D79: Enterprise | E79: Non-Specific | F79: 1 Year(s) | G79: Servers | H79: Non-Current | I79: Component | J79: Windows Small Bus Svr Prem CAL Ste | K79: Non-specific | L79: Non-specific | M79: All Languages | P79: 54.3 | Q79: Windows Small Bus Svr Prem CAL Ste Component Non-Current Non-Specific All Languages
A80: Windows Small Bus Svr Prem CAL Ste Component Non-Current Non-Specific All Languages | B80: 6VA-00990 | C80: WinSBSvrPremCALSte ALNG LicSAPk OLV NL 1Yr Ent UsrCAL | D80: Enterprise | E80: Non-Specific | F80: 1 Year(s) | G80: Servers | H80: Non-Current | I80: Component | J80: Windows Small Bus Svr Prem CAL Ste | K80: Non-specific | L80: Non-specific | M80: All Languages | P80: 54.3 | Q80: Windows Small Bus Svr Prem CAL Ste Component Non-Current Non-Specific All Languages
B81: 6VA-02551 | C81: WinSBSvrPremCALSte ALNG LicSAPk OLV NL 1Yr Pltfrm DvcCAL | D81: Platform Offering | E81: Non-Specific | F81: 1 Year(s) | G81: Servers | H81: Non-Current | I81: Platform | J81: Windows Small Bus Svr Prem CAL Ste | K81: Non-specific | L81: Non-specific | M81: All Languages | P81: 51.6 | Q81: Windows Small Bus Svr Prem CAL Ste Platform Non-Current Non-Specific All Languages
A82: Windows Small Bus Svr Prem CAL Ste Platform Non-Current Non-Specific All Languages | B82: 6VA-02553 | C82: WinSBSvrPremCALSte ALNG LicSAPk OLV NL 1Yr Pltfrm UsrCAL | D82: Platform Offering | E82: Non-Specific | F82: 1 Year(s) | G82: Servers | H82: Non-Current | I82: Platform | J82: Windows Small Bus Svr Prem CAL Ste | K82: Non-specific | L82: Non-specific | M82: All Languages | P82: 51.6 | Q82: Windows Small Bus Svr Prem CAL Ste Platform Non-Current Non-Specific All Languages
B83: 6VA-01167 | C83: WinSBSvrPremCALSte RAB LicSAPk OLV C 1Yr Ent DvcCAL | D83: Enterprise | E83: C | F83: 1 Year(s) | G83: Servers | H83: Non-Current | I83: Component | J83: Windows Small Bus Svr Prem CAL Ste | K83: Non-specific | L83: Non-specific | M83: RAB | P83: 52.2 | Q83: Windows Small Bus Svr Prem CAL Ste Component Non-Current C RAB
A84: Windows Small Bus Svr Prem CAL Ste Component Non-Current C RAB | B84: 6VA-01169 | C84: WinSBSvrPremCALSte RAB LicSAPk OLV C 1Yr Ent UsrCAL | D84: Enterprise | E84: C | F84: 1 Year(s) | G84: Servers | H84: Non-Current | I84: Component | J84: Windows Small Bus Svr Prem CAL Ste | K84: Non-specific | L84: Non-specific | M84: RAB | P84: 52.2 | Q84: Windows Small Bus Svr Prem CAL Ste Component Non-Current C RAB
B85: 6VA-02554 | C85: WinSBSvrPremCALSte RAB LicSAPk OLV C 1Yr Pltfrm DvcCAL | D85: Platform Offering | E85: C | F85: 1 Year(s) | G85: Servers | H85: Non-Current | I85: Platform | J85: Windows Small Bus Svr Prem CAL Ste | K85: Non-specific | L85: Non-specific | M85: RAB | P85: 49.65 | Q85: Windows Small Bus Svr Prem CAL Ste Platform Non-Current C RAB
A86: Windows Small Bus Svr Prem CAL Ste Platform Non-Current C RAB | B86: 6VA-02556 | C86: WinSBSvrPremCALSte RAB LicSAPk OLV C 1Yr Pltfrm UsrCAL | D86: Platform Offering | E86: C | F86: 1 Year(s) | G86: Servers | H86: Non-Current | I86: Platform | J86: Windows Small Bus Svr Prem CAL Ste | K86: Non-specific | L86: Non-specific | M86: RAB | P86: 49.65 | Q86: Windows Small Bus Svr Prem CAL Ste Platform Non-Current C RAB
B87: 6VA-01168 | C87: WinSBSvrPremCALSte RAB LicSAPk OLV NL 1Yr Ent DvcCAL | D87: Enterprise | E87: Non-Specific | F87: 1 Year(s) | G87: Servers | H87: Non-Current | I87: Component | J87: Windows Small Bus Svr Prem CAL Ste | K87: Non-specific | L87: Non-specific | M87: RAB | P87: 54.3 | Q87: Windows Small Bus Svr Prem CAL Ste Component Non-Current Non-Specific RAB
A88: Windows Small Bus Svr Prem CAL Ste Component Non-Current Non-Specific RAB | B88: 6VA-01170 | C88: WinSBSvrPremCALSte RAB LicSAPk OLV NL 1Yr Ent UsrCAL | D88: Enterprise | E88: Non-Specific | F88: 1 Year(s) | G88: Servers | H88: Non-Current | I88: Component | J88: Windows Small Bus Svr Prem CAL Ste | K88: Non-specific | L88: Non-specific | M88: RAB | P88: 54.3 | Q88: Windows Small Bus Svr Prem CAL Ste Component Non-Current Non-Specific RAB
B89: 6VA-02555 | C89: WinSBSvrPremCALSte RAB LicSAPk OLV NL 1Yr Pltfrm DvcCAL | D89: Platform Offering | E89: Non-Specific | F89: 1 Year(s) | G89: Servers | H89: Non-Current | I89: Platform | J89: Windows Small Bus Svr Prem CAL Ste | K89: Non-specific | L89: Non-specific | M89: RAB | P89: 51.6 | Q89: Windows Small Bus Svr Prem CAL Ste Platform Non-Current Non-Specific RAB
A90: Windows Small Bus Svr Prem CAL Ste Platform Non-Current Non-Specific RAB | B90: 6VA-02557 | C90: WinSBSvrPremCALSte RAB LicSAPk OLV NL 1Yr Pltfrm UsrCAL | D90: Platform Offering | E90: Non-Specific | F90: 1 Year(s) | G90: Servers | H90: Non-Current | I90: Platform | J90: Windows Small Bus Svr Prem CAL Ste | K90: Non-specific | L90: Non-specific | M90: RAB | P90: 51.6 | Q90: Windows Small Bus Svr Prem CAL Ste Platform Non-Current Non-Specific RAB
A91: Win Pro Upgr w/MDOP Component Non-Current C All Languages | B91: FQC-02903 | C91: WinPro ALNG UpgrdSAPk OLV C 1Y Ent wMDOP | D91: Enterprise | E91: C | F91: 1 Year(s) | G91: Systems | H91: Non-Current | I91: Upgr w/MDOP Component | J91: Win Pro | K91: Non-specific | L91: Non-specific | M91: All Languages | P91: 79.35 | Q91: Win Pro Upgr w/MDOP Component Non-Current C All Languages
A92: Win Pro Upgr w/MDOP Component Non-Current Non-Specific All Languages | B92: FQC-02904 | C92: WinPro ALNG UpgrdSAPk OLV NL 1Y Ent wMDOP | D92: Enterprise | E92: Non-Specific | F92: 1 Year(s) | G92: Systems | H92: Non-Current | I92: Upgr w/MDOP Component | J92: Win Pro | K92: Non-specific | L92: Non-specific | M92: All Languages | P92: 82.35 | Q92: =CONCATENATE(J92," ",I92," ",H92," ",E92," ",M92) -> Win Pro Upgr w/MDOP Component Non-Current Non-Specific All Languages
A93: Win Pro Upgr w/MDOP Component Non-Current C RAB | B93: FQC-02905 | C93: WinPro RAB UpgrdSAPk OLV C 1Y Ent wMDOP | D93: Enterprise | E93: C | F93: 1 Year(s) | G93: Systems | H93: Non-Current | I93: Upgr w/MDOP Component | J93: Win Pro | K93: Non-specific | L93: Non-specific | M93: RAB | P93: 79.35 | Q93: Win Pro Upgr w/MDOP Component Non-Current C RAB
A94: Win Pro Upgr w/MDOP Component Non-Current Non-Specific RAB | B94: FQC-02906 | C94: WinPro RAB UpgrdSAPk OLV NL 1Y Ent wMDOP | D94: Enterprise | E94: Non-Specific | F94: 1 Year(s) | G94: Systems | H94: Non-Current | I94: Upgr w/MDOP Component | J94: Win Pro | K94: Non-specific | L94: Non-specific | M94: RAB | P94: 82.35 | Q94: Win Pro Upgr w/MDOP Component Non-Current Non-Specific RAB
A95: Win Pro Upgr w/MDOP Platform Non-Current C All Languages | B95: FQC-02923 | C95: WinPro ALNG UpgrdSAPk OLV C 1Y Pltfrm wMDOP | D95: Platform Offering | E95: C | F95: 1 Year(s) | G95: Systems | H95: Non-Current | I95: Upgr w/MDOP Platform | J95: Win Pro | K95: Non-specific | L95: Non-specific | M95: All Languages | P95: 75.3 | Q95: Win Pro Upgr w/MDOP Platform Non-Current C All Languages
A96: Win Pro Upgr w/MDOP Platform Non-Current Non-Specific All Languages | B96: FQC-02924 | C96: WinPro ALNG UpgrdSAPk OLV NL 1Y Pltfrm wMDOP | D96: Platform Offering | E96: Non-Specific | F96: 1 Year(s) | G96: Systems | H96: Non-Current | I96: Upgr w/MDOP Platform | J96: Win Pro | K96: Non-specific | L96: Non-specific | M96: All Languages | P96: 78.3 | Q96: Win Pro Upgr w/MDOP Platform Non-Current Non-Specific All Languages
A97: Win Pro Upgr w/MDOP Platform Non-Current C RAB | B97: FQC-02925 | C97: WinPro RAB UpgrdSAPk OLV C 1Y Pltfrm wMDOP | D97: Platform Offering | E97: C | F97: 1 Year(s) | G97: Systems | H97: Non-Current | I97: Upgr w/MDOP Platform | J97: Win Pro | K97: Non-specific | L97: Non-specific | M97: RAB | P97: 75.3 | Q97: Win Pro Upgr w/MDOP Platform Non-Current C RAB
A98: Win Pro Upgr w/MDOP Platform Non-Current Non-Specific RAB | B98: FQC-02926 | C98: WinPro RAB UpgrdSAPk OLV NL 1Y Pltfrm wMDOP | D98: Platform Offering | E98: Non-Specific | F98: 1 Year(s) | G98: Systems | H98: Non-Current | I98: Upgr w/MDOP Platform | J98: Win Pro | K98: Non-specific | L98: Non-specific | M98: RAB | P98: 78.3 | Q98: Win Pro Upgr w/MDOP Platform Non-Current Non-Specific RAB
A99: Win Pro Upgr Component Non-Current C All Languages | B99: FQC-02141 | C99: WinPro ALNG UpgrdSAPk OLV C 1Y Ent | D99: Enterprise | E99: C | F99: 1 Year(s) | G99: Systems | H99: Non-Current | I99: Upgr Component | J99: Win Pro | K99: Non-specific | L99: Non-specific | M99: All Languages | P99: 68.55 | Q99: Win Pro Upgr Component Non-Current C All Languages
A100: Win Pro Upgr Component Non-Current Non-Specific All Languages | B100: FQC-02142 | C100: WinPro ALNG UpgrdSAPk OLV NL 1Y Ent | D100: Enterprise | E100: Non-Specific | F100: 1 Year(s) | G100: Systems | H100: Non-Current | I100: Upgr Component | J100: Win Pro | K100: Non-specific | L100: Non-specific | M100: All Languages | P100: 71.1 | Q100: Win Pro Upgr Component Non-Current Non-Specific All Languages
A101: Win Pro Upgr Component Non-Current C RAB | B101: FQC-02734 | C101: WinPro RAB UpgrdSAPk OLV C 1Y Ent | D101: Enterprise | E101: C | F101: 1 Year(s) | G101: Systems | H101: Non-Current | I101: Upgr Component | J101: Win Pro | K101: Non-specific | L101: Non-specific | M101: RAB | P101: 68.55 | Q101: Win Pro Upgr Component Non-Current C RAB
A102: Win Pro Upgr Component Non-Current Non-Specific RAB | B102: FQC-02735 | C102: WinPro RAB UpgrdSAPk OLV NL 1Y Ent | D102: Enterprise | E102: Non-Specific | F102: 1 Year(s) | G102: Systems | H102: Non-Current | I102: Upgr Component | J102: Win Pro | K102: Non-specific | L102: Non-specific | M102: RAB | P102: 71.1 | Q102: Win Pro Upgr Component Non-Current Non-Specific RAB
A103: Win Pro Upgr Platform Non-Current C All Languages | B103: FQC-02151 | C103: WinPro ALNG UpgrdSAPk OLV C 1Y Pltfrm | D103: Platform Offering | E103: C | F103: 1 Year(s) | G103: Systems | H103: Non-Current | I103: Upgr Platform | J103: Win Pro | K103: Non-specific | L103: Non-specific | M103: All Languages | P103: 65.1 | Q103: =CONCATENATE(J103," ",I103," ",H103," ",E103," ",M103) -> Win Pro Upgr Platform Non-Current C All Languages
A104: Win Pro Upgr Platform Non-Current Non-Specific All Languages | B104: FQC-02152 | C104: WinPro ALNG UpgrdSAPk OLV NL 1Y Pltfrm | D104: Platform Offering | E104: Non-Specific | F104: 1 Year(s) | G104: Systems | H104: Non-Current | I104: Upgr Platform | J104: Win Pro | K104: Non-specific | L104: Non-specific | M104: All Languages | P104: 67.65 | Q104: Win Pro Upgr Platform Non-Current Non-Specific All Languages
A105: Win Pro Upgr Platform Non-Current C RAB | B105: FQC-02744 | C105: WinPro RAB UpgrdSAPk OLV C 1Y Pltfrm | D105: Platform Offering | E105: C | F105: 1 Year(s) | G105: Systems | H105: Non-Current | I105: Upgr Platform | J105: Win Pro | K105: Non-specific | L105: Non-specific | M105: RAB | P105: 65.1 | Q105: Win Pro Upgr Platform Non-Current C RAB
A106: Win Pro Upgr Platform Non-Current Non-Specific RAB | B106: FQC-02745 | C106: WinPro RAB UpgrdSAPk OLV NL 1Y Pltfrm | D106: Platform Offering | E106: Non-Specific | F106: 1 Year(s) | G106: Systems | H106: Non-Current | I106: Upgr Platform | J106: Win Pro | K106: Non-specific | L106: Non-specific | M106: RAB | P106: 67.65 | Q106: Win Pro Upgr Platform Non-Current Non-Specific RAB
B108: Discountul UTD se ofera clientilor care detin produse in versiuni anterioare (N, N-1) - vezi sectiunea Specificatii pentru detalii
B109: W06-01591 | C109: CoreCAL ALNG LicSAPk OLV C 1Yr PltfrmUTD DvcCAL | D109: Platform Up-to-date | E109: C | F109: 1 Year(s) | G109: Servers | H109: Current (UTD) | I109: =IF(D109="Up To Date","Component UTD","Platform UTD") -> Platform UTD | J109: Core CAL (Client Access License) | K109: Non-specific | L109: Non-specific | M109: All Languages | P109: 29.85 | Q109: =CONCATENATE(J109," ",I109," ",H109," ",E109," ",M109) -> Core CAL (Client Access License) Platform UTD Current (UTD) C All Languages
A110: Core CAL (Client Access License) Platform UTD Current (UTD) C All Languages | B110: W06-01593 | C110: CoreCAL ALNG LicSAPk OLV C 1Yr PltfrmUTD UsrCAL | D110: Platform Up-to-date | E110: C | F110: 1 Year(s) | G110: Servers | H110: Current (UTD) | I110: =IF(D110="Up To Date","Component UTD","Platform UTD") -> Platform UTD | J110: Core CAL (Client Access License) | K110: Non-specific | L110: Non-specific | M110: All Languages | P110: 29.85 | Q110: Core CAL (Client Access License) Platform UTD Current (UTD) C All Languages
B111: W06-01027 | C111: CoreCAL ALNG LicSAPk OLV C 1Yr UTD DvcCAL | D111: Up To Date | E111: C | F111: 1 Year(s) | G111: Servers | H111: Current (UTD) | I111: Component UTD | J111: Core CAL (Client Access License) | K111: Non-specific | L111: Non-specific | M111: All Languages | P111: 31.5 | Q111: Core CAL (Client Access License) Component UTD Current (UTD) C All Languages
A112: Core CAL (Client Access License) Component UTD Current (UTD) C All Languages | B112: W06-01028 | C112: CoreCAL ALNG LicSAPk OLV C 1Yr UTD UsrCAL | D112: Up To Date | E112: C | F112: 1 Year(s) | G112: Servers | H112: Current (UTD) | I112: Component UTD | J112: Core CAL (Client Access License) | K112: Non-specific | L112: Non-specific | M112: All Languages | P112: 31.5 | Q112: Core CAL (Client Access License) Component UTD Current (UTD) C All Languages
B113: W06-01592 | C113: CoreCAL ALNG LicSAPk OLV NL 1Yr PltfrmUTD DvcCAL | D113: Platform Up-to-date | E113: Non-Specific | F113: 1 Year(s) | G113: Servers | H113: Current (UTD) | I113: Platform UTD | J113: Core CAL (Client Access License) | K113: Non-specific | L113: Non-specific | M113: All Languages | P113: 31.05 | Q113: Core CAL (Client Access License) Platform UTD Current (UTD) Non-Specific All Languages
A114: Core CAL (Client Access License) Platform UTD Current (UTD) Non-Specific All Languages | B114: W06-01594 | C114: CoreCAL ALNG LicSAPk OLV NL 1Yr PltfrmUTD UsrCAL | D114: Platform Up-to-date | E114: Non-Specific | F114: 1 Year(s) | G114: Servers | H114: Current (UTD) | I114: Platform UTD | J114: Core CAL (Client Access License) | K114: Non-specific | L114: Non-specific | M114: All Languages | P114: 31.05 | Q114: Core CAL (Client Access License) Platform UTD Current (UTD) Non-Specific All Languages
B115: W06-00794 | C115: CoreCAL ALNG LicSAPk OLV NL 1Yr UTD DvcCAL | D115: Up To Date | E115: Non-Specific | F115: 1 Year(s) | G115: Servers | H115: Current (UTD) | I115: Component UTD | J115: Core CAL (Client Access License) | K115: Non-specific | L115: Non-specific | M115: All Languages | P115: 32.7 | Q115: Core CAL (Client Access License) Component UTD Current (UTD) Non-Specific All Languages
A116: Core CAL (Client Access License) Component UTD Current (UTD) Non-Specific All Languages | B116: W06-00858 | C116: CoreCAL ALNG LicSAPk OLV NL 1Yr UTD UsrCAL | D116: Up To Date | E116: Non-Specific | F116: 1 Year(s) | G116: Servers | H116: Current (UTD) | I116: Component UTD | J116: Core CAL (Client Access License) | K116: Non-specific | L116: Non-specific | M116: All Languages | P116: 32.7 | Q116: Core CAL (Client Access License) Component UTD Current (UTD) Non-Specific All Languages
B117: W06-01595 | C117: CoreCAL RAB LicSAPk OLV C 1Yr PltfrmUTD DvcCAL | D117: Platform Up-to-date | E117: C | F117: 1 Year(s) | G117: Servers | H117: Current (UTD) | I117: Platform UTD | J117: Core CAL (Client Access License) | K117: Non-specific | L117: Non-specific | M117: RAB | P117: 29.85 | Q117: Core CAL (Client Access License) Platform UTD Current (UTD) C RAB
A118: Core CAL (Client Access License) Platform UTD Current (UTD) C RAB | B118: W06-01597 | C118: CoreCAL RAB LicSAPk OLV C 1Yr PltfrmUTD UsrCAL | D118: Platform Up-to-date | E118: C | F118: 1 Year(s) | G118: Servers | H118: Current (UTD) | I118: Platform UTD | J118: Core CAL (Client Access License) | K118: Non-specific | L118: Non-specific | M118: RAB | P118: 29.85 | Q118: Core CAL (Client Access License) Platform UTD Current (UTD) C RAB
B119: W06-01187 | C119: CoreCAL RAB LicSAPk OLV C 1Yr UTD DvcCAL | D119: Up To Date | E119: C | F119: 1 Year(s) | G119: Servers | H119: Current (UTD) | I119: Component UTD | J119: Core CAL (Client Access License) | K119: Non-specific | L119: Non-specific | M119: RAB | P119: 31.5 | Q119: Core CAL (Client Access License) Component UTD Current (UTD) C RAB
A120: Core CAL (Client Access License) Component UTD Current (UTD) C RAB | B120: W06-01188 | C120: CoreCAL RAB LicSAPk OLV C 1Yr UTD UsrCAL | D120: Up To Date | E120: C | F120: 1 Year(s) | G120: Servers | H120: Current (UTD) | I120: Component UTD | J120: Core CAL (Client Access License) | K120: Non-specific | L120: Non-specific | M120: RAB | P120: 31.5 | Q120: Core CAL (Client Access License) Component UTD Current (UTD) C RAB
B121: W06-01596 | C121: CoreCAL RAB LicSAPk OLV NL 1Yr PltfrmUTD DvcCAL | D121: Platform Up-to-date | E121: Non-Specific | F121: 1 Year(s) | G121: Servers | H121: Current (UTD) | I121: Platform UTD | J121: Core CAL (Client Access License) | K121: Non-specific | L121: Non-specific | M121: RAB | P121: 31.05 | Q121: Core CAL (Client Access License) Platform UTD Current (UTD) Non-Specific RAB
A122: Core CAL (Client Access License) Platform UTD Current (UTD) Non-Specific RAB | B122: W06-01598 | C122: CoreCAL RAB LicSAPk OLV NL 1Yr PltfrmUTD UsrCAL | D122: Platform Up-to-date | E122: Non-Specific | F122: 1 Year(s) | G122: Servers | H122: Current (UTD) | I122: Platform UTD | J122: Core CAL (Client Access License) | K122: Non-specific | L122: Non-specific | M122: RAB | P122: 31.05 | Q122: Core CAL (Client Access License) Platform UTD Current (UTD) Non-Specific RAB
B123: W06-01235 | C123: CoreCAL RAB LicSAPk OLV NL 1Yr UTD DvcCAL | D123: Up To Date | E123: Non-Specific | F123: 1 Year(s) | G123: Servers | H123: Current (UTD) | I123: Component UTD | J123: Core CAL (Client Access License) | K123: Non-specific | L123: Non-specific | M123: RAB | P123: 32.7 | Q123: Core CAL (Client Access License) Component UTD Current (UTD) Non-Specific RAB
A124: Core CAL (Client Access License) Component UTD Current (UTD) Non-Specific RAB | B124: W06-01236 | C124: CoreCAL RAB LicSAPk OLV NL 1Yr UTD UsrCAL | D124: Up To Date | E124: Non-Specific | F124: 1 Year(s) | G124: Servers | H124: Current (UTD) | I124: Component UTD | J124: Core CAL (Client Access License) | K124: Non-specific | L124: Non-specific | M124: RAB | P124: 32.7 | Q124: Core CAL (Client Access License) Component UTD Current (UTD) Non-Specific RAB
B125: 76A-00818 | C125: EntCAL ALNG LicSAPk OLV C 1Yr PltfrmUTD DvcCAL wSrvcs | D125: Platform Up-to-date | E125: C | F125: 1 Year(s) | G125: Servers | H125: Current (UTD) | I125: Platform UTD | J125: Enterprise CAL | K125: Non-specific | L125: Non-specific | M125: All Languages | P125: 75.975 | Q125: Enterprise CAL Platform UTD Current (UTD) C All Languages
A126: Enterprise CAL Platform UTD Current (UTD) C All Languages | B126: 76A-00820 | C126: EntCAL ALNG LicSAPk OLV C 1Yr PltfrmUTD UsrCAL wSrvcs | D126: Platform Up-to-date | E126: C | F126: 1 Year(s) | G126: Servers | H126: Current (UTD) | I126: Platform UTD | J126: Enterprise CAL | K126: Non-specific | L126: Non-specific | M126: All Languages | P126: 75.975 | Q126: Enterprise CAL Platform UTD Current (UTD) C All Languages
B127: 76A-00830 | C127: EntCAL ALNG LicSAPk OLV C 1Yr UTD DvcCAL wSrvcs | D127: Up To Date | E127: C | F127: 1 Year(s) | G127: Servers | H127: Current (UTD) | I127: Component UTD | J127: Enterprise CAL | K127: Non-specific | L127: Non-specific | M127: All Languages | P127: 79.95 | Q127: Enterprise CAL Component UTD Current (UTD) C All Languages
A128: Enterprise CAL Component UTD Current (UTD) C All Languages | B128: 76A-00832 | C128: EntCAL ALNG LicSAPk OLV C 1Yr UTD UsrCAL wSrvcs | D128: Up To Date | E128: C | F128: 1 Year(s) | G128: Servers | H128: Current (UTD) | I128: Component UTD | J128: Enterprise CAL | K128: Non-specific | L128: Non-specific | M128: All Languages | P128: 79.95 | Q128: Enterprise CAL Component UTD Current (UTD) C All Languages
B129: 76A-00819 | C129: EntCAL ALNG LicSAPk OLV NL 1Yr PltfrmUTD DvcCAL wSrvcs | D129: Platform Up-to-date | E129: Non-Specific | F129: 1 Year(s) | G129: Servers | H129: Current (UTD) | I129: Platform UTD | J129: Enterprise CAL | K129: Non-specific | L129: Non-specific | M129: All Languages | P129: 82.8 | Q129: Enterprise CAL Platform UTD Current (UTD) Non-Specific All Languages
A130: Enterprise CAL Platform UTD Current (UTD) Non-Specific All Languages | B130: 76A-00821 | C130: EntCAL ALNG LicSAPk OLV NL 1Yr PltfrmUTD UsrCAL wSrvcs | D130: Platform Up-to-date | E130: Non-Specific | F130: 1 Year(s) | G130: Servers | H130: Current (UTD) | I130: Platform UTD | J130: Enterprise CAL | K130: Non-specific | L130: Non-specific | M130: All Languages | P130: 82.8 | Q130: Enterprise CAL Platform UTD Current (UTD) Non-Specific All Languages
B131: 76A-00831 | C131: EntCAL ALNG LicSAPk OLV NL 1Yr UTD DvcCAL wSrvcs | D131: Up To Date | E131: Non-Specific | F131: 1 Year(s) | G131: Servers | H131: Current (UTD) | I131: Component UTD | J131: Enterprise CAL | K131: Non-specific | L131: Non-specific | M131: All Languages | P131: 87.15 | Q131: Enterprise CAL Component UTD Current (UTD) Non-Specific All Languages
A132: Enterprise CAL Component UTD Current (UTD) Non-Specific All Languages | B132: 76A-00833 | C132: EntCAL ALNG LicSAPk OLV NL 1Yr UTD UsrCAL wSrvcs | D132: Up To Date | E132: Non-Specific | F132: 1 Year(s) | G132: Servers | H132: Current (UTD) | I132: Component UTD | J132: Enterprise CAL | K132: Non-specific | L132: Non-specific | M132: All Languages | P132: 87.15 | Q132: Enterprise CAL Component UTD Current (UTD) Non-Specific All Languages
B133: 76A-00822 | C133: EntCAL RAB LicSAPk OLV C 1Yr PltfrmUTD DvcCAL wSrvcs | D133: Platform Up-to-date | E133: C | F133: 1 Year(s) | G133: Servers | H133: Current (UTD) | I133: Platform UTD | J133: Enterprise CAL | K133: Non-specific | L133: Non-specific | M133: RAB | P133: 75.975 | Q133: Enterprise CAL Platform UTD Current (UTD) C RAB
A134: Enterprise CAL Platform UTD Current (UTD) C RAB | B134: 76A-00824 | C134: EntCAL RAB LicSAPk OLV C 1Yr PltfrmUTD UsrCAL wSrvcs | D134: Platform Up-to-date | E134: C | F134: 1 Year(s) | G134: Servers | H134: Current (UTD) | I134: Platform UTD | J134: Enterprise CAL | K134: Non-specific | L134: Non-specific | M134: RAB | P134: 75.975 | Q134: Enterprise CAL Platform UTD Current (UTD) C RAB
B135: 76A-00834 | C135: EntCAL RAB LicSAPk OLV C 1Yr UTD DvcCAL wSrvcs | D135: Up To Date | E135: C | F135: 1 Year(s) | G135: Servers | H135: Current (UTD) | I135: Component UTD | J135: Enterprise CAL | K135: Non-specific | L135: Non-specific | M135: RAB | P135: 79.95 | Q135: Enterprise CAL Component UTD Current (UTD) C RAB
A136: Enterprise CAL Component UTD Current (UTD) C RAB | B136: 76A-00836 | C136: EntCAL RAB LicSAPk OLV C 1Yr UTD UsrCAL wSrvcs | D136: Up To Date | E136: C | F136: 1 Year(s) | G136: Servers | H136: Current (UTD) | I136: Component UTD | J136: Enterprise CAL | K136: Non-specific | L136: Non-specific | M136: RAB | P136: 79.95 | Q136: Enterprise CAL Component UTD Current (UTD) C RAB
B137: 76A-00823 | C137: EntCAL RAB LicSAPk OLV NL 1Yr PltfrmUTD DvcCAL wSrvcs | D137: Platform Up-to-date | E137: Non-Specific | F137: 1 Year(s) | G137: Servers | H137: Current (UTD) | I137: Platform UTD | J137: Enterprise CAL | K137: Non-specific | L137: Non-specific | M137: RAB | P137: 82.8 | Q137: Enterprise CAL Platform UTD Current (UTD) Non-Specific RAB
A138: Enterprise CAL Platform UTD Current (UTD) Non-Specific RAB | B138: 76A-00825 | C138: EntCAL RAB LicSAPk OLV NL 1Yr PltfrmUTD UsrCAL wSrvcs | D138: Platform Up-to-date | E138: Non-Specific | F138: 1 Year(s) | G138: Servers | H138: Current (UTD) | I138: Platform UTD | J138: Enterprise CAL | K138: Non-specific | L138: Non-specific | M138: RAB | P138: 82.8 | Q138: Enterprise CAL Platform UTD Current (UTD) Non-Specific RAB
B139: 76A-00835 | C139: EntCAL RAB LicSAPk OLV NL 1Yr UTD DvcCAL wSrvcs | D139: Up To Date | E139: Non-Specific | F139: 1 Year(s) | G139: Servers | H139: Current (UTD) | I139: Component UTD | J139: Enterprise CAL | K139: Non-specific | L139: Non-specific | M139: RAB | P139: 87.15 | Q139: Enterprise CAL Component UTD Current (UTD) Non-Specific RAB
A140: Enterprise CAL Component UTD Current (UTD) Non-Specific RAB | B140: 76A-00837 | C140: EntCAL RAB LicSAPk OLV NL 1Yr UTD UsrCAL wSrvcs | D140: Up To Date | E140: Non-Specific | F140: 1 Year(s) | G140: Servers | H140: Current (UTD) | I140: Component UTD | J140: Enterprise CAL | K140: Non-specific | L140: Non-specific | M140: RAB | P140: 87.15 | Q140: Enterprise CAL Component UTD Current (UTD) Non-Specific RAB
A141: Office Professional Plus Platform UTD Current (UTD) C All Languages | B141: 79P-02403 | C141: OfficeProPlus ALNG LicSAPk OLV C 1Yr PltfrmUTD | D141: Platform Up-to-date | E141: C | F141: 1 Year(s) | G141: Applications | H141: Current (UTD) | I141: Platform UTD | J141: Office Professional Plus | K141: Non-specific | L141: Non-specific | M141: All Languages | P141: 88.425 | Q141: Office Professional Plus Platform UTD Current (UTD) C All Languages
A142: Office Professional Plus Component UTD Current (UTD) C All Languages | B142: 269-10041 | C142: OfficeProPlus ALNG LicSAPk OLV C 1Yr UTD | D142: Up To Date | E142: C | F142: 1 Year(s) | G142: Applications | H142: Current (UTD) | I142: Component UTD | J142: Office Professional Plus | K142: Non-specific | L142: Non-specific | M142: All Languages | P142: 93.075 | Q142: Office Professional Plus Component UTD Current (UTD) C All Languages
A143: Office Professional Plus Platform UTD Current (UTD) Non-Specific All Languages | B143: 79P-02404 | C143: OfficeProPlus ALNG LicSAPk OLV NL 1Yr PltfrmUTD | D143: Platform Up-to-date | E143: Non-Specific | F143: 1 Year(s) | G143: Applications | H143: Current (UTD) | I143: Platform UTD | J143: Office Professional Plus | K143: Non-specific | L143: Non-specific | M143: All Languages | P143: 91.875 | Q143: Office Professional Plus Platform UTD Current (UTD) Non-Specific All Languages
A144: Office Professional Plus Component UTD Current (UTD) Non-Specific All Languages | B144: 269-09649 | C144: OfficeProPlus ALNG LicSAPk OLV NL 1Yr UTD | D144: Up To Date | E144: Non-Specific | F144: 1 Year(s) | G144: Applications | H144: Current (UTD) | I144: Component UTD | J144: Office Professional Plus | K144: Non-specific | L144: Non-specific | M144: All Languages | P144: 96.675 | Q144: Office Professional Plus Component UTD Current (UTD) Non-Specific All Languages
A145: Office Professional Plus Platform UTD Current (UTD) C RAB | B145: 79P-02405 | C145: OfficeProPlus RAB LicSAPk OLV C 1Yr PltfrmUTD | D145: Platform Up-to-date | E145: C | F145: 1 Year(s) | G145: Applications | H145: Current (UTD) | I145: Platform UTD | J145: Office Professional Plus | K145: Non-specific | L145: Non-specific | M145: RAB | P145: 74.25 | Q145: Office Professional Plus Platform UTD Current (UTD) C RAB
A146: Office Professional Plus Component UTD Current (UTD) C RAB | B146: 79P-01873 | C146: OfficeProPlus RAB LicSAPk OLV C 1Yr UTD | D146: Up To Date | E146: C | F146: 1 Year(s) | G146: Applications | H146: Current (UTD) | I146: Component UTD | J146: Office Professional Plus | K146: Non-specific | L146: Non-specific | M146: RAB | P146: 78.15 | Q146: Office Professional Plus Component UTD Current (UTD) C RAB
A147: Office Professional Plus Platform UTD Current (UTD) Non-Specific RAB | B147: 79P-02406 | C147: OfficeProPlus RAB LicSAPk OLV NL 1Yr PltfrmUTD | D147: Platform Up-to-date | E147: Non-Specific | F147: 1 Year(s) | G147: Applications | H147: Current (UTD) | I147: Platform UTD | J147: Office Professional Plus | K147: Non-specific | L147: Non-specific | M147: RAB | P147: 77.175 | Q147: Office Professional Plus Platform UTD Current (UTD) Non-Specific RAB
A148: Office Professional Plus Component UTD Current (UTD) Non-Specific RAB | B148: 79P-01874 | C148: OfficeProPlus RAB LicSAPk OLV NL 1Yr UTD | D148: Up To Date | E148: Non-Specific | F148: 1 Year(s) | G148: Applications | H148: Current (UTD) | I148: Component UTD | J148: Office Professional Plus | K148: Non-specific | L148: Non-specific | M148: RAB | P148: 81.225 | Q148: Office Professional Plus Component UTD Current (UTD) Non-Specific RAB
B149: 6UA-02454 | C149: WinSBCALSte ALNG LicSAPk OLV C 1Yr PltfrmUTD DvcCAL | D149: Platform Up-to-date | E149: C | F149: 1 Year(s) | G149: Servers | H149: Current (UTD) | I149: =IF(D149="Up To Date","Component UTD","Platform UTD") -> Platform UTD | J149: Windows Small Bus CAL Ste | K149: Non-specific | L149: Non-specific | M149: All Languages | P149: 10.125 | Q149: Windows Small Bus CAL Ste Platform UTD Current (UTD) C All Languages
A150: Windows Small Bus CAL Ste Platform UTD Current (UTD) C All Languages | B150: 6UA-02456 | C150: WinSBCALSte ALNG LicSAPk OLV C 1Yr PltfrmUTD UsrCAL | D150: Platform Up-to-date | E150: C | F150: 1 Year(s) | G150: Servers | H150: Current (UTD) | I150: Platform UTD | J150: Windows Small Bus CAL Ste | K150: Non-specific | L150: Non-specific | M150: All Languages | P150: 10.125 | Q150: Windows Small Bus CAL Ste Platform UTD Current (UTD) C All Languages
B151: 6UA-01535 | C151: WinSBCALSte ALNG LicSAPk OLV C 1Yr UTD DvcCAL | D151: Up To Date | E151: C | F151: 1 Year(s) | G151: Servers | H151: Current (UTD) | I151: Component UTD | J151: Windows Small Bus CAL Ste | K151: Non-specific | L151: Non-specific | M151: All Languages | P151: 10.575 | Q151: Windows Small Bus CAL Ste Component UTD Current (UTD) C All Languages
A152: Windows Small Bus CAL Ste Component UTD Current (UTD) C All Languages | B152: 6UA-01537 | C152: WinSBCALSte ALNG LicSAPk OLV C 1Yr UTD UsrCAL | D152: Up To Date | E152: C | F152: 1 Year(s) | G152: Servers | H152: Current (UTD) | I152: Component UTD | J152: Windows Small Bus CAL Ste | K152: Non-specific | L152: Non-specific | M152: All Languages | P152: 10.575 | Q152: Windows Small Bus CAL Ste Component UTD Current (UTD) C All Languages
B153: 6UA-02455 | C153: WinSBCALSte ALNG LicSAPk OLV NL 1Yr PltfrmUTD DvcCAL | D153: Platform Up-to-date | E153: Non-Specific | F153: 1 Year(s) | G153: Servers | H153: Current (UTD) | I153: Platform UTD | J153: Windows Small Bus CAL Ste | K153: Non-specific | L153: Non-specific | M153: All Languages | P153: 10.5 | Q153: Windows Small Bus CAL Ste Platform UTD Current (UTD) Non-Specific All Languages
A154: Windows Small Bus CAL Ste Platform UTD Current (UTD) Non-Specific All Languages | B154: 6UA-02457 | C154: WinSBCALSte ALNG LicSAPk OLV NL 1Yr PltfrmUTD UsrCAL | D154: Platform Up-to-date | E154: Non-Specific | F154: 1 Year(s) | G154: Servers | H154: Current (UTD) | I154: Platform UTD | J154: Windows Small Bus CAL Ste | K154: Non-specific | L154: Non-specific | M154: All Languages | P154: 10.5 | Q154: Windows Small Bus CAL Ste Platform UTD Current (UTD) Non-Specific All Languages
B155: 6UA-01536 | C155: WinSBCALSte ALNG LicSAPk OLV NL 1Yr UTD DvcCAL | D155: Up To Date | E155: Non-Specific | F155: 1 Year(s) | G155: Servers | H155: Current (UTD) | I155: Component UTD | J155: Windows Small Bus CAL Ste | K155: Non-specific | L155: Non-specific | M155: All Languages | P155: 11.025 | Q155: Windows Small Bus CAL Ste Component UTD Current (UTD) Non-Specific All Languages
A156: Windows Small Bus CAL Ste Component UTD Current (UTD) Non-Specific All Languages | B156: 6UA-01538 | C156: WinSBCALSte ALNG LicSAPk OLV NL 1Yr UTD UsrCAL | D156: Up To Date | E156: Non-Specific | F156: 1 Year(s) | G156: Servers | H156: Current (UTD) | I156: Component UTD | J156: Windows Small Bus CAL Ste | K156: Non-specific | L156: Non-specific | M156: All Languages | P156: 11.025 | Q156: Windows Small Bus CAL Ste Component UTD Current (UTD) Non-Specific All Languages
B157: 6UA-02458 | C157: WinSBCALSte RAB LicSAPk OLV C 1Yr PltfrmUTD DvcCAL | D157: Platform Up-to-date | E157: C | F157: 1 Year(s) | G157: Servers | H157: Current (UTD) | I157: Platform UTD | J157: Windows Small Bus CAL Ste | K157: Non-specific | L157: Non-specific | M157: RAB | P157: 10.125 | Q157: Windows Small Bus CAL Ste Platform UTD Current (UTD) C RAB
A158: Windows Small Bus CAL Ste Platform UTD Current (UTD) C RAB | B158: 6UA-02460 | C158: WinSBCALSte RAB LicSAPk OLV C 1Yr PltfrmUTD UsrCAL | D158: Platform Up-to-date | E158: C | F158: 1 Year(s) | G158: Servers | H158: Current (UTD) | I158: Platform UTD | J158: Windows Small Bus CAL Ste | K158: Non-specific | L158: Non-specific | M158: RAB | P158: 10.125 | Q158: Windows Small Bus CAL Ste Platform UTD Current (UTD) C RAB
B159: 6UA-01715 | C159: WinSBCALSte RAB LicSAPk OLV C 1Yr UTD DvcCAL | D159: Up To Date | E159: C | F159: 1 Year(s) | G159: Servers | H159: Current (UTD) | I159: Component UTD | J159: Windows Small Bus CAL Ste | K159: Non-specific | L159: Non-specific | M159: RAB | P159: 10.575 | Q159: Windows Small Bus CAL Ste Component UTD Current (UTD) C RAB
A160: Windows Small Bus CAL Ste Component UTD Current (UTD) C RAB | B160: 6UA-01717 | C160: WinSBCALSte RAB LicSAPk OLV C 1Yr UTD UsrCAL | D160: Up To Date | E160: C | F160: 1 Year(s) | G160: Servers | H160: Current (UTD) | I160: Component UTD | J160: Windows Small Bus CAL Ste | K160: Non-specific | L160: Non-specific | M160: RAB | P160: 10.575 | Q160: Windows Small Bus CAL Ste Component UTD Current (UTD) C RAB
B161: 6UA-02459 | C161: WinSBCALSte RAB LicSAPk OLV NL 1Yr PltfrmUTD DvcCAL | D161: Platform Up-to-date | E161: Non-Specific | F161: 1 Year(s) | G161: Servers | H161: Current (UTD) | I161: Platform UTD | J161: Windows Small Bus CAL Ste | K161: Non-specific | L161: Non-specific | M161: RAB | P161: 10.5 | Q161: Windows Small Bus CAL Ste Platform UTD Current (UTD) Non-Specific RAB
A162: Windows Small Bus CAL Ste Platform UTD Current (UTD) Non-Specific RAB | B162: 6UA-02461 | C162: WinSBCALSte RAB LicSAPk OLV NL 1Yr PltfrmUTD UsrCAL | D162: Platform Up-to-date | E162: Non-Specific | F162: 1 Year(s) | G162: Servers | H162: Current (UTD) | I162: Platform UTD | J162: Windows Small Bus CAL Ste | K162: Non-specific | L162: Non-specific | M162: RAB | P162: 10.5 | Q162: Windows Small Bus CAL Ste Platform UTD Current (UTD) Non-Specific RAB
B163: 6UA-01716 | C163: WinSBCALSte RAB LicSAPk OLV NL 1Yr UTD DvcCAL | D163: Up To Date | E163: Non-Specific | F163: 1 Year(s) | G163: Servers | H163: Current (UTD) | I163: Component UTD | J163: Windows Small Bus CAL Ste | K163: Non-specific | L163: Non-specific | M163: RAB | P163: 11.025 | Q163: Windows Small Bus CAL Ste Component UTD Current (UTD) Non-Specific RAB
A164: Windows Small Bus CAL Ste Component UTD Current (UTD) Non-Specific RAB | B164: 6UA-01718 | C164: WinSBCALSte RAB LicSAPk OLV NL 1Yr UTD UsrCAL | D164: Up To Date | E164: Non-Specific | F164: 1 Year(s) | G164: Servers | H164: Current (UTD) | I164: Component UTD | J164: Windows Small Bus CAL Ste | K164: Non-specific | L164: Non-specific | M164: RAB | P164: 11.025 | Q164: Windows Small Bus CAL Ste Component UTD Current (UTD) Non-Specific RAB
B165: 6VA-02632 | C165: WinSBSvrPremCALSte ALNG LicSAPk OLV C 1Yr PltfrmUTD DvcCAL | D165: Platform Up-to-date | E165: C | F165: 1 Year(s) | G165: Servers | H165: Current (UTD) | I165: Platform UTD | J165: Windows Small Bus Svr Prem CAL Ste | K165: Non-specific | L165: Non-specific | M165: All Languages | P165: 24.825 | Q165: Windows Small Bus Svr Prem CAL Ste Platform UTD Current (UTD) C All Languages
A166: Windows Small Bus Svr Prem CAL Ste Platform UTD Current (UTD) C All Languages | B166: 6VA-02634 | C166: WinSBSvrPremCALSte ALNG LicSAPk OLV C 1Yr PltfrmUTD UsrCAL | D166: Platform Up-to-date | E166: C | F166: 1 Year(s) | G166: Servers | H166: Current (UTD) | I166: Platform UTD | J166: Windows Small Bus Svr Prem CAL Ste | K166: Non-specific | L166: Non-specific | M166: All Languages | P166: 24.825 | Q166: Windows Small Bus Svr Prem CAL Ste Platform UTD Current (UTD) C All Languages
B167: 6VA-00991 | C167: WinSBSvrPremCALSte ALNG LicSAPk OLV C 1Yr UTD DvcCAL | D167: Up To Date | E167: C | F167: 1 Year(s) | G167: Servers | H167: Current (UTD) | I167: Component UTD | J167: Windows Small Bus Svr Prem CAL Ste | K167: Non-specific | L167: Non-specific | M167: All Languages | P167: 26.1 | Q167: Windows Small Bus Svr Prem CAL Ste Component UTD Current (UTD) C All Languages
A168: Windows Small Bus Svr Prem CAL Ste Component UTD Current (UTD) C All Languages | B168: 6VA-00993 | C168: WinSBSvrPremCALSte ALNG LicSAPk OLV C 1Yr UTD UsrCAL | D168: Up To Date | E168: C | F168: 1 Year(s) | G168: Servers | H168: Current (UTD) | I168: Component UTD | J168: Windows Small Bus Svr Prem CAL Ste | K168: Non-specific | L168: Non-specific | M168: All Languages | P168: 26.1 | Q168: Windows Small Bus Svr Prem CAL Ste Component UTD Current (UTD) C All Languages
B169: 6VA-02633 | C169: WinSBSvrPremCALSte ALNG LicSAPk OLV NL 1Yr PltfrmUTD DvcCAL | D169: Platform Up-to-date | E169: Non-Specific | F169: 1 Year(s) | G169: Servers | H169: Current (UTD) | I169: Platform UTD | J169: Windows Small Bus Svr Prem CAL Ste | K169: Non-specific | L169: Non-specific | M169: All Languages | P169: 25.8 | Q169: Windows Small Bus Svr Prem CAL Ste Platform UTD Current (UTD) Non-Specific All Languages
A170: Windows Small Bus Svr Prem CAL Ste Platform UTD Current (UTD) Non-Specific All Languages | B170: 6VA-02635 | C170: WinSBSvrPremCALSte ALNG LicSAPk OLV NL 1Yr PltfrmUTD UsrCAL | D170: Platform Up-to-date | E170: Non-Specific | F170: 1 Year(s) | G170: Servers | H170: Current (UTD) | I170: Platform UTD | J170: Windows Small Bus Svr Prem CAL Ste | K170: Non-specific | L170: Non-specific | M170: All Languages | P170: 25.8 | Q170: Windows Small Bus Svr Prem CAL Ste Platform UTD Current (UTD) Non-Specific All Languages
B171: 6VA-00992 | C171: WinSBSvrPremCALSte ALNG LicSAPk OLV NL 1Yr UTD DvcCAL | D171: Up To Date | E171: Non-Specific | F171: 1 Year(s) | G171: Servers | H171: Current (UTD) | I171: Component UTD | J171: Windows Small Bus Svr Prem CAL Ste | K171: Non-specific | L171: Non-specific | M171: All Languages | P171: 27.15 | Q171: Windows Small Bus Svr Prem CAL Ste Component UTD Current (UTD) Non-Specific All Languages
A172: Windows Small Bus Svr Prem CAL Ste Component UTD Current (UTD) Non-Specific All Languages | B172: 6VA-00994 | C172: WinSBSvrPremCALSte ALNG LicSAPk OLV NL 1Yr UTD UsrCAL | D172: Up To Date | E172: Non-Specific | F172: 1 Year(s) | G172: Servers | H172: Current (UTD) | I172: Component UTD | J172: Windows Small Bus Svr Prem CAL Ste | K172: Non-specific | L172: Non-specific | M172: All Languages | P172: 27.15 | Q172: Windows Small Bus Svr Prem CAL Ste Component UTD Current (UTD) Non-Specific All Languages
B173: 6VA-02636 | C173: WinSBSvrPremCALSte RAB LicSAPk OLV C 1Yr PltfrmUTD DvcCAL | D173: Platform Up-to-date | E173: C | F173: 1 Year(s) | G173: Servers | H173: Current (UTD) | I173: Platform UTD | J173: Windows Small Bus Svr Prem CAL Ste | K173: Non-specific | L173: Non-specific | M173: RAB | P173: 24.825 | Q173: Windows Small Bus Svr Prem CAL Ste Platform UTD Current (UTD) C RAB
A174: Windows Small Bus Svr Prem CAL Ste Platform UTD Current (UTD) C RAB | B174: 6VA-02638 | C174: WinSBSvrPremCALSte RAB LicSAPk OLV C 1Yr PltfrmUTD UsrCAL | D174: Platform Up-to-date | E174: C | F174: 1 Year(s) | G174: Servers | H174: Current (UTD) | I174: Platform UTD | J174: Windows Small Bus Svr Prem CAL Ste | K174: Non-specific | L174: Non-specific | M174: RAB | P174: 24.825 | Q174: Windows Small Bus Svr Prem CAL Ste Platform UTD Current (UTD) C RAB
B175: 6VA-01171 | C175: WinSBSvrPremCALSte RAB LicSAPk OLV C 1Yr UTD DvcCAL | D175: Up To Date | E175: C | F175: 1 Year(s) | G175: Servers | H175: Current (UTD) | I175: Component UTD | J175: Windows Small Bus Svr Prem CAL Ste | K175: Non-specific | L175: Non-specific | M175: RAB | P175: 26.1 | Q175: Windows Small Bus Svr Prem CAL Ste Component UTD Current (UTD) C RAB
A176: Windows Small Bus Svr Prem CAL Ste Component UTD Current (UTD) C RAB | B176: 6VA-01173 | C176: WinSBSvrPremCALSte RAB LicSAPk OLV C 1Yr UTD UsrCAL | D176: Up To Date | E176: C | F176: 1 Year(s) | G176: Servers | H176: Current (UTD) | I176: Component UTD | J176: Windows Small Bus Svr Prem CAL Ste | K176: Non-specific | L176: Non-specific | M176: RAB | P176: 26.1 | Q176: Windows Small Bus Svr Prem CAL Ste Component UTD Current (UTD) C RAB
B177: 6VA-02637 | C177: WinSBSvrPremCALSte RAB LicSAPk OLV NL 1Yr PltfrmUTD DvcCAL | D177: Platform Up-to-date | E177: Non-Specific | F177: 1 Year(s) | G177: Servers | H177: Current (UTD) | I177: Platform UTD | J177: Windows Small Bus Svr Prem CAL Ste | K177: Non-specific | L177: Non-specific | M177: RAB | P177: 25.8 | Q177: Windows Small Bus Svr Prem CAL Ste Platform UTD Current (UTD) Non-Specific RAB
A178: Windows Small Bus Svr Prem CAL Ste Platform UTD Current (UTD) Non-Specific RAB | B178: 6VA-02639 | C178: WinSBSvrPremCALSte RAB LicSAPk OLV NL 1Yr PltfrmUTD UsrCAL | D178: Platform Up-to-date | E178: Non-Specific | F178: 1 Year(s) | G178: Servers | H178: Current (UTD) | I178: Platform UTD | J178: Windows Small Bus Svr Prem CAL Ste | K178: Non-specific | L178: Non-specific | M178: RAB | P178: 25.8 | Q178: Windows Small Bus Svr Prem CAL Ste Platform UTD Current (UTD) Non-Specific RAB
B179: 6VA-01172 | C179: WinSBSvrPremCALSte RAB LicSAPk OLV NL 1Yr UTD DvcCAL | D179: Up To Date | E179: Non-Specific | F179: 1 Year(s) | G179: Servers | H179: Current (UTD) | I179: Component UTD | J179: Windows Small Bus Svr Prem CAL Ste | K179: Non-specific | L179: Non-specific | M179: RAB | P179: 27.15 | Q179: Windows Small Bus Svr Prem CAL Ste Component UTD Current (UTD) Non-Specific RAB
A180: Windows Small Bus Svr Prem CAL Ste Component UTD Current (UTD) Non-Specific RAB | B180: 6VA-01174 | C180: WinSBSvrPremCALSte RAB LicSAPk OLV NL 1Yr UTD UsrCAL | D180: Up To Date | E180: Non-Specific | F180: 1 Year(s) | G180: Servers | H180: Current (UTD) | I180: Component UTD | J180: Windows Small Bus Svr Prem CAL Ste | K180: Non-specific | L180: Non-specific | M180: RAB | P180: 27.15 | Q180: Windows Small Bus Svr Prem CAL Ste Component UTD Current (UTD) Non-Specific RAB
A181: Win Pro Upgr w/MDOP Platform UTD Current (UTD) C All Languages | B181: FQC-02927 | C181: WinPro ALNG UpgrdSAPk OLV C 1Y PltfrmUTD wMDOP | D181: Platform Up-to-date | E181: C | F181: 1 Year(s) | G181: Systems | H181: Current (UTD) | I181: Upgr w/MDOP Platform UTD | J181: Win Pro | K181: Non-specific | L181: Non-specific | M181: All Languages | P181: 37.65 | Q181: Win Pro Upgr w/MDOP Platform UTD Current (UTD) C All Languages
A182: Win Pro Upgr w/MDOP Platform UTD Current (UTD) Non-Specific All Languages | B182: FQC-02928 | C182: WinPro ALNG UpgrdSAPk OLV NL 1Y PltfrmUTD wMDOP | D182: Platform Up-to-date | E182: Non-Specific | F182: 1 Year(s) | G182: Systems | H182: Current (UTD) | I182: Upgr w/MDOP Platform UTD | J182: Win Pro | K182: Non-specific | L182: Non-specific | M182: All Languages | P182: 39.15 | Q182: Win Pro Upgr w/MDOP Platform UTD Current (UTD) Non-Specific All Languages
A183: Win Pro Upgr w/MDOP Platform UTD Current (UTD) C RAB | B183: FQC-02929 | C183: WinPro RAB UpgrdSAPk OLV C 1Y PltfrmUTD wMDOP | D183: Platform Up-to-date | E183: C | F183: 1 Year(s) | G183: Systems | H183: Current (UTD) | I183: Upgr w/MDOP Platform UTD | J183: Win Pro | K183: Non-specific | L183: Non-specific | M183: RAB | P183: 37.65 | Q183: =CONCATENATE(J183," ",I183," ",H183," ",E183," ",M183) -> Win Pro Upgr w/MDOP Platform UTD Current (UTD) C RAB
A184: Win Pro Upgr w/MDOP Platform UTD Current (UTD) Non-Specific RAB | B184: FQC-02930 | C184: WinPro RAB UpgrdSAPk OLV NL 1Y PltfrmUTD wMDOP | D184: Platform Up-to-date | E184: Non-Specific | F184: 1 Year(s) | G184: Systems | H184: Current (UTD) | I184: Upgr w/MDOP Platform UTD | J184: Win Pro | K184: Non-specific | L184: Non-specific | M184: RAB | P184: 39.15 | Q184: Win Pro Upgr w/MDOP Platform UTD Current (UTD) Non-Specific RAB
A185: Win Pro Upgr w/MDOP Component UTD Current (UTD) C All Languages | B185: FQC-02931 | C185: WinPro ALNG UpgrdSAPk OLV C 1Y UTD wMDOP | D185: Up To Date | E185: C | F185: 1 Year(s) | G185: Systems | H185: Current (UTD) | I185: Upgr w/MDOP Component UTD | J185: Win Pro | K185: Non-specific | L185: Non-specific | M185: All Languages | P185: 39.675 | Q185: Win Pro Upgr w/MDOP Component UTD Current (UTD) C All Languages
A186: Win Pro Upgr w/MDOP Component UTD Current (UTD) Non-Specific All Languages | B186: FQC-02932 | C186: WinPro ALNG UpgrdSAPk OLV NL 1Y UTD wMDOP | D186: Up To Date | E186: Non-Specific | F186: 1 Year(s) | G186: Systems | H186: Current (UTD) | I186: Upgr w/MDOP Component UTD | J186: Win Pro | K186: Non-specific | L186: Non-specific | M186: All Languages | P186: 41.175 | Q186: Win Pro Upgr w/MDOP Component UTD Current (UTD) Non-Specific All Languages
A187: Win Pro Upgr w/MDOP Component UTD Current (UTD) C RAB | B187: FQC-02933 | C187: WinPro RAB UpgrdSAPk OLV C 1Y UTD wMDOP | D187: Up To Date | E187: C | F187: 1 Year(s) | G187: Systems | H187: Current (UTD) | I187: Upgr w/MDOP Component UTD | J187: Win Pro | K187: Non-specific | L187: Non-specific | M187: RAB | P187: 39.675 | Q187: Win Pro Upgr w/MDOP Component UTD Current (UTD) C RAB
A188: Win Pro Upgr w/MDOP Component UTD Current (UTD) Non-Specific RAB | B188: FQC-02934 | C188: WinPro RAB UpgrdSAPk OLV NL 1Y UTD wMDOP | D188: Up To Date | E188: Non-Specific | F188: 1 Year(s) | G188: Systems | H188: Current (UTD) | I188: Upgr w/MDOP Component UTD | J188: Win Pro | K188: Non-specific | L188: Non-specific | M188: RAB | P188: 41.175 | Q188: Win Pro Upgr w/MDOP Component UTD Current (UTD) Non-Specific RAB
A189: Win Pro Upgr Platform UTD Current (UTD) C All Languages | B189: FQC-02153 | C189: WinPro ALNG UpgrdSAPk OLV C 1Y PltfrmUTD | D189: Platform Up-to-date | E189: C | F189: 1 Year(s) | G189: Systems | H189: Current (UTD) | I189: Upgr Platform UTD | J189: Win Pro | K189: Non-specific | L189: Non-specific | M189: All Languages | P189: 32.55 | Q189: Win Pro Upgr Platform UTD Current (UTD) C All Languages
A190: Win Pro Upgr Platform UTD Current (UTD) Non-Specific All Languages | B190: FQC-02154 | C190: WinPro ALNG UpgrdSAPk OLV NL 1Y PltfrmUTD | D190: Platform Up-to-date | E190: Non-Specific | F190: 1 Year(s) | G190: Systems | H190: Current (UTD) | I190: Upgr Platform UTD | J190: Win Pro | K190: Non-specific | L190: Non-specific | M190: All Languages | P190: 33.825 | Q190: Win Pro Upgr Platform UTD Current (UTD) Non-Specific All Languages
A191: Win Pro Upgr Platform UTD Current (UTD) C RAB | B191: FQC-02746 | C191: WinPro RAB UpgrdSAPk OLV C 1Y PltfrmUTD | D191: Platform Up-to-date | E191: C | F191: 1 Year(s) | G191: Systems | H191: Current (UTD) | I191: Upgr Platform UTD | J191: Win Pro | K191: Non-specific | L191: Non-specific | M191: RAB | P191: 32.55 | Q191: Win Pro Upgr Platform UTD Current (UTD) C RAB
A192: Win Pro Upgr Platform UTD Current (UTD) Non-Specific RAB | B192: FQC-02747 | C192: WinPro RAB UpgrdSAPk OLV NL 1Y PltfrmUTD | D192: Platform Up-to-date | E192: Non-Specific | F192: 1 Year(s) | G192: Systems | H192: Current (UTD) | I192: Upgr Platform UTD | J192: Win Pro | K192: Non-specific | L192: Non-specific | M192: RAB | P192: 33.825 | Q192: =CONCATENATE(J192," ",I192," ",H192," ",E192," ",M192) -> Win Pro Upgr Platform UTD Current (UTD) Non-Specific RAB
A193: Win Pro Upgr Component UTD Current (UTD) C All Languages | B193: FQC-02155 | C193: WinPro ALNG UpgrdSAPk OLV C 1Y UTD | D193: Up To Date | E193: C | F193: 1 Year(s) | G193: Systems | H193: Current (UTD) | I193: Upgr Component UTD | J193: Win Pro | K193: Non-specific | L193: Non-specific | M193: All Languages | P193: 34.275 | Q193: Win Pro Upgr Component UTD Current (UTD) C All Languages
A194: Win Pro Upgr Component UTD Current (UTD) Non-Specific All Languages | B194: FQC-02156 | C194: WinPro ALNG UpgrdSAPk OLV NL 1Y UTD | D194: Up To Date | E194: Non-Specific | F194: 1 Year(s) | G194: Systems | H194: Current (UTD) | I194: Upgr Component UTD | J194: Win Pro | K194: Non-specific | L194: Non-specific | M194: All Languages | P194: 35.55 | Q194: Win Pro Upgr Component UTD Current (UTD) Non-Specific All Languages
A195: Win Pro Upgr Component UTD Current (UTD) C RAB | B195: FQC-02748 | C195: WinPro RAB UpgrdSAPk OLV C 1Y UTD | D195: Up To Date | E195: C | F195: 1 Year(s) | G195: Systems | H195: Current (UTD) | I195: Upgr Component UTD | J195: Win Pro | K195: Non-specific | L195: Non-specific | M195: RAB | P195: 34.275 | Q195: =CONCATENATE(J195," ",I195," ",H195," ",E195," ",M195) -> Win Pro Upgr Component UTD Current (UTD) C RAB
A196: Win Pro Upgr Component UTD Current (UTD) Non-Specific RAB | B196: FQC-02749 | C196: WinPro RAB UpgrdSAPk OLV NL 1Y UTD | D196: Up To Date | E196: Non-Specific | F196: 1 Year(s) | G196: Systems | H196: Current (UTD) | I196: Upgr Component UTD | J196: Win Pro | K196: Non-specific | L196: Non-specific | M196: RAB | P196: 35.55 | Q196: =CONCATENATE(J196," ",I196," ",H196," ",E196," ",M196) -> Win Pro Upgr Component UTD Current (UTD) Non-Specific RAB
Q197: =CONCATENATE(J197," ",I197," ",H197," ",E197," ",M197) -> 
B198: Produse Aditionale - nivel de pret unic, nu sunt supuse discountului UTD
A199: Access C All Languages | B199: 077-05652 | C199: Access ALNG LicSAPk OLV C 1Yr AP | D199: Additional Product | E199: C | F199: 1 Year(s) | G199: Applications | J199: Access | K199: Non-specific | L199: Non-specific | M199: All Languages | P199: 93.75 | Q199: Access C All Languages
A200: Access Non-Specific All Languages | B200: 077-03627 | C200: Access ALNG LicSAPk OLV NL 1Yr AP | D200: Additional Product | E200: Non-Specific | F200: 1 Year(s) | G200: Applications | J200: Access | K200: Non-specific | L200: Non-specific | M200: All Languages | P200: 97.5 | Q200: Access Non-Specific All Languages
A201: Antigen Enterprise Manager (Services; monthly) C All Languages | B201: 73F-00039 | C201: AntigenEntMgr ALNG SubsVL OLV C 1Mth AP Srvcs | D201: Additional Product | E201: C | F201: 1 Month(s) | G201: Servers | I201: (Services; monthly) | J201: Antigen Enterprise Manager | K201: Non-specific | L201: Non-specific | M201: All Languages | P201: 8.05 | Q201: Antigen Enterprise Manager (Services; monthly) C All Languages
... 387 more rows

Sheet Specificatii
A1: Definiţii:
A2: Contractul include toate PC-urile eligibile din companie
A4: PC eligibil (Computer desktop calificat) înseamnă un computer personal care întruneşte specificaţiile tehnice minime pentru executarea oricărui Produs. Computerele desktop calificate nu includ (a) servere, (b) computere care execută exclusiv software specializat pe sectoare de activitate sau (c) dispozitive care execută sisteme de operare integrate. "a executa" înseamnă a copia, a instala, a utiliza, a accesa, a afișa sau a interacționa în vreun fel cu un Produs
A7: Versiuni calificate pentru discount-ul Up-To-Date (50% in primul an de contract):
A8: (*) indiferent de varianta de limbă: Romanian, English, etc.
A9: Produs | B9: Versiuni calificate
A10: Windows Professional Upgrade | B10: Windows 7 Professional, Windows 7 Ultimate
B11: Windows Vista Business, Windows Vista Ultimate
B12: Windows XP Professional
A13: Office Professional | B13: Office 2007 Professional Plus, Office 2007 Professional, Standard, Small Business, Enterprise, Ultimate
B14: Office 2003 Professional, Standard, Small Business
A15: Office Small Business | B15: Office 2007 Small Business, Standard, Professional, Professional Plus, Enterprise, Ultimate
B16: Office 2003 Small Business, Standard, Professional
A17: Core-CAL | B17: Windows Svr 2008 CAL sau Exchange Svr 2007 CAL
B18: Windows Svr 2003 CAL sau Exchange Svr 2003 CAL
A19: Windows SBS CAL | B19: SBS 2008 CAL
B20: SBS 2003 CAL
A22: Licenţe Client Access License (CAL): User CAL sau Device CAL
A23: Exemplul din formularul de calcul estimativ are la bază licenţe tip User CAL. Pentru comenzi explicite de licenţe tip Device CAL vă rugăm să folosiţi Part Number-ele specifice din lista de preţuri.
A26: Variante limbi:
A27: RAB: include dreptul de folosire a produselor doar in variantele de limbă română și bulgară - folositi foaia de calcul "OVS Proposal Form - ROMANIAN"
A28: All Languages: Toate variantele de limbă suportate la acest moment de Microsoft, inclusiv engleză - folositi foaia de calcul "OVS Proposal Form - ALL Languages"
A33: Declaraţie de confidenţialitate
A35: At Microsoft, we are committed to protecting your privacy. The Web site linking to this privacy statement does not request or collect any personal information from you. Nor does this site use any cookies or other technologies to track your usage of the site. This site may contain links to other sites and services. We encourage you to review the privacy statements of those sites and services that you choose to visit, so that you can understand how they may collect, use and share your personal information. Microsoft is not responsible for the privacy statements or practices of sites and services controlled by other companies or organizations. Click on the link below for more information on Microsoft's commitment to privacy.
A36: http://www.microsoft.com/security/articles/safe_harbor.asp
